Workbook

Sheet CIjumping
V1: CIjumping | AJ1: =($Y$6+$Y$8+$T$18+$Y$28+$CB$2+$P$23+$P$24+$BW$8)/1000000 -> 0.000237686 | AK1: =$AJ$1 -> 0.000237686 | AL1: 0.000237686 | AM1: 0.000237686 | AN1: 0.000237686 | AO1: 0.000237686 | AP1: 0.000237686 | AQ1: 0.000237686 | AR1: 0.000237686 | AS1: 0.000237686 | AT1: 0.000237686 | AU1: 0.000237686 | AV1: 0.000237686 | BV1: For s known | BY1: X step size | BZ1: 0.1 | CA1: Show m0 | CB1: TRUE | CC1: SwToMeanHeap | CD1: TRUE | CE1: meanheapOK? | CF1: =(K4=K3) -> TRUE | CR1: rand no. | CS1: data point | CU1: New Sample, for display | CW1: Rectangular distribution | DB1: 1 | DC1: =IF(ISNA(CY15),NA(),IF(CY15<CW16,CW16,CX16)) ->  | DD1: =DA16 -> 2
M2: =$Y$6+$Y$8+$T$18+$Y$28 -> 185 | N2: TRUE | O2: n samp | V2: Take samples, explore CI concepts | AJ2: =$AJ$1 -> 0.000237686 | AV2: =$AJ$1 -> 0.000237686 | BV2: 1=known | BY2: Bars indicator | BZ2: =IF(BZ4,2,1) -> 1 | CA2: m0 value | CB2: =Y6 -> 50 | CC2: DispMeanHeap | CD2: =CD6 -> TRUE | CF2: Hide dropping means | CG2: TRUE | CQ2: 1 | CR2: =$G$4 -> 0.7122118545 | CS2: =IF(AND($CB$7,$CQ2<=$T$18),IF($BY$12=1,$C$4+$D$4*NORMSINV(CR2),IF($BY$12=2,$CW$8+CR2*$CW$11,VLOOKUP(CR2,$BV$42:$BY$4042,4))),"") -> 61.19716022 | CT2: =IF(AND($CB$4,CS2<>"",$M$4<>""),CS2,-999) -> 61.19716022 | CU2: =IF(CT2=-999,-999,0) -> 0 | CW2: Min = mu - sqrt3*sigma | DC2: =IF(ISNA(CY15),NA(),CY15) ->  | DD2: =CZ16 -> 1
A3: =CB5 -> TRUE | B3: =BZ2 -> 1 | C3: =Y6 -> 50 | D3: =Y8 -> 20 | E3: =Y28 -> 95 | F3: =T18 -> 20 | G3: =RAND() -> 0.132441308 | H3: =CB2 -> 50 | I3: =BY12 -> 1 | J3: =BW8 -> 0.7 | K3: =CD1 -> TRUE | L3: =CD5 -> TRUE | M3: =BY14 -> 45.84387262 | N3: =BZ14 -> 18.96021309 | O3: =O4+1 -> 63 | V3: See the dance of the means, and the mean heap | AJ3: 0.000237686 | AV3: 0.000237686 | BV3: 1 | BY3: Max height | BZ3: =MAX(BZ42:BZ1042) -> 0.01994711402 | CA3: Show t, p | CB3: FALSE | CC3: DispSampDist | CD3: TRUE | CQ3: 2 | CR3: =MOD(CR2*10000013,1) -> 0.8033247869 | CS3: 67.07114239 | CT3: 67.07114239 | CU3: 0 | CW3: Max = mu + sqrt3*sigma | DB3: 2 | DC3: =IF(ISNA(CY16),NA(),IF(CY16<CW17,CW17,CX17)) ->  | DD3: =DA17 -> 3
A4: TRUE | B4: 1 | C4: 50 | D4: 20 | E4: 95 | F4: 20 | G4: 0.7122118545 | H4: 50 | I4: 1 | J4: 0.7 | K4: TRUE | L4: TRUE | M4: 45.84387262 | N4: 18.96021309 | O4: 62 | AJ4: 0.000237686 | AV4: 0.000237686 | BY4: Show CI | BZ4: FALSE | CA4: Show data pts | CB4: TRUE | CC4: Display MOE | CD4: FALSE | CQ4: 3 | CR4: 0.3126840051 | CS4: 40.23486551 | CT4: 40.23486551 | CU4: 0 | CW4: Height = 1 / (Max - Min) | DC4: =IF(ISNA(CY16),NA(),CY16) ->  | DD4: =CZ17 -> 2 | DF4: =CW18 ->  | DG4: =DA18 -> 4
M5: 51.44037882 | N5: 22.13372721 | O5: 61 | S5: 1 | T5: The population | AA5: 2 Click to display: | AJ5: 0.000237686 | AV5: 0.000237686 | BY5: DisplayPopDist | BZ5: TRUE | CA5: Show m0 capt | CB5: TRUE | CC5: Assume s known | CD5: =IF(BV3=1,TRUE,FALSE) -> TRUE | CQ5: 4 | CR5: 0.1161556374 | CS5: 26.11147506 | CT5: 26.11147506 | CU5: 0 | CW5: Length = Max - Min | DB5: 3 | DC5: =IF(ISNA(CY17),NA(),IF(CY17<CW18,CW18,CX18)) ->  | DD5: =DA18 -> 4 | DF5: =CY17 ->  | DG5: =CZ18 -> 3
M6: 48.64229025 | N6: 21.12624777 | O6: 60 | X6: m | Y6: 50 | AJ6: 0.000237686 | AV6: 0.000237686 | BW6: For skew, use lognormal | BY6: Disp SD lines | BZ6: FALSE | CA6: Don'tClearDisp | CB6: =AND(B4=B3,C4=C3,D4=D3,E4=E3,F4=F3,H4=H3,I4=I3,J4=J3,K4=K3,L4=L3) -> TRUE | CC6: Display means | CD6: TRUE | CQ6: 5 | CR6: 0.8843049314 | CS6: 73.93571175 | CT6: 73.93571175 | CU6: 0 | CW6: Rand is on (0, 1) | DC6: =IF(ISNA(CY17),NA(),CY17) ->  | DD6: =CZ18 -> 3
M7: 45.76816523 | N7: 20.23899044 | O7: 59 | AB7: Population | AJ7: 0.000237686 | AV7: 0.000237686 | BW7: 7 | BY7: Disp SE lines | BZ7: TRUE | CA7: KeepShowSmps | CB7: =AND(C4=C3,D4=D3,F4=F3,I4=I3,J4=J3) -> TRUE | CC7: Population SE | CD7: =$Y$8/SQRT($T$18) -> 4.472135955 | CE7: BarCaptMU | CQ7: 6 | CR7: 0.8098371606 | CS7: 67.54592757 | CT7: 67.54592757 | CU7: 0 | CW7: Random data point = Min + Rand*Length | DB7: 4 | DC7: =IF(ISNA(CY18),NA(),IF(CY18<CW19,CW19,CX19)) ->  | DD7: =DA19 -> 5 | DF7: =CX25 ->  | DG7: =DA25 -> 11
M8: 41.23871325 | N8: 15.67043932 | O8: 58 | X8: s | Y8: 20 | AJ8: 0.000237686 | AV8: 0.000237686 | BW8: =BW7/10 -> 0.7 | BX8: shape, sigma | BY8: For m0 line | BZ8: 24.5 | CA8: =IF(CB1,CB2,NA()) -> 50 | CB8: For Tails | CC8: ToCountCaptMU | CD8: =IF(ISNA(CE8),BY15,IF(AND($BZ$2>1,BY15+CE8>=$CB$2,BY15-CE8<=$CB$2),BY15,-999)) -> -999 | CE8: =IF($CD$5,$CD$7*NORMSINV(0.5+$Y$28/200),CA15*TINV(1-$Y$28/100,($T$18-1))) -> 8.765225406 | CQ8: 7 | CR8: 0.134203231 | CS8: 27.8652049 | CT8: 27.8652049 | CU8: 0 | CV8: Min | CW8: =Y6-SQRT(3)*Y8 -> 15.35898385 | DC8: =IF(ISNA(CY18),NA(),CY18) ->  | DD8: =CZ19 -> 4 | DF8: =CY24 ->  | DG8: =CZ25 -> 10
M9: 47.45469488 | N9: 20.3192255 | O9: 57 | AC9: SD lines | AJ9: 0.000237686 | AV9: 0.000237686 | BW9: Mean of lognormal | BX9: =EXP(0.5*BW8^2) -> 1.277621313 | BY9: For m line | BZ9: =IF(BZ6,Y6,NA()) ->  | CA9: 0 | CC9: =IF($CD$4,$Y$6-$Y$26,NA()) ->  | CD9: 26 | CE9: Previous Bar | CQ9: 8 | CR9: 0.054263575 | CS9: 17.90303004 | CT9: 17.90303004 | CU9: 0 | CV9: Max | CW9: =Y6+SQRT(3)*Y8 -> 84.64101615 | DB9: 5 | DC9: =IF(ISNA(CY19),NA(),IF(CY19<CW20,CW20,CX20)) ->  | DD9: =DA20 -> 6
M10: 55.96123246 | N10: 18.7867767 | O10: 56 | U10: Shape: | AJ10: 0.000237686 | AV10: 0.000237686 | BW10: Var of lognormal | BX10: =(EXP(BW8^2)-1)*EXP(BW8^2) -> 1.032140022 | BY10: 3 points on MOE | BZ10: =CC11-CB11 ->  | CA10: 26 | CB10: For MOE | CC10: =IF($CD$4,$Y$6+$Y$26,NA()) ->  | CD10: 26 | CE10: =IF(CA16="",NA(),IF($CD$5,$CD$7*NORMSINV(0.5+$Y$28/200),CA16*TINV(1-$Y$28/100,($T$18-1)))) -> 8.765225406 | CQ10: 9 | CR10: 0.4554519858 | CS10: 47.76203216 | CT10: 47.76203216 | CU10: 0 | CV10: Height | CW10: =1/(CW9-CW8) -> 0.01443375673 | CZ10: -999=noncapture | DC10: =IF(ISNA(CY19),NA(),CY19) ->  | DD10: =CZ20 -> 5 | DF10: =CW26 ->  | DG10: =DA26 -> 12
M11: 46.61174229 | N11: 21.93246988 | O11: 55 | Y11: =IF(BY12=3,BW8,"") ->  | AC11: Fill random | AJ11: 0.000237686 | AV11: 0.000237686 | BW11: SD of lognormal | BX11: =SQRT(BX10) -> 1.015942923 | BY11: Which shape? | BZ11: =CC11 ->  | CA11: 26 | CB11: =$CD$7*NORMSINV(0.5+$Y$28/200) -> 8.765225406 | CC11: =IF($CD$4,$Y$6,NA()) ->  | CD11: 25.85 | CQ11: 10 | CR11: 0.7790870946 | CS11: 65.38227417 | CT11: 65.38227417 | CU11: 0 | CV11: Length | CW11: =CW9-CW8 -> 69.2820323 | CY11: Count next not capt | CZ11: =IF(ISNA(CE10),BY15,IF(AND($BZ$2>1,BY16+CE10>BY15,BY16-CE10<BY15),BY16,-999)) -> -999 | DA11: Length | DB11: 6 | DC11: =IF(ISNA(CY20),NA(),IF(CY20<CW21,CW21,CX21)) ->  | DD11: =DA21 -> 7 | DF11: =CY25 ->  | DG11: =CZ26 -> 11
M12: 46.77089566 | N12: 21.13839228 | O12: 54 | AJ12: 0.000237686 | AV12: 0.000237686 | BW12: My scale factor | BX12: =Y8/BX11 -> 19.68614531 | BY12: 1 | BZ12: =CC11+CB11 ->  | CA12: 26 | CC12: m0 line bar | CD12: =IF(CB1,25.5,0) -> 25.5 | CQ12: 11 | CR12: 0.07403290831 | CS12: 21.07205528 | CT12: 21.07205528 | CU12: 0 | CV12: Show capt | CW12: FALSE | DA12: 0.6 | DC12: =IF(ISNA(CY20),NA(),CY20) ->  | DD12: =CZ21 -> 6
M13: 52.49771451 | N13: 20.98879203 | O13: 53 | S13: 3 | AJ13: 0.000237686 | AV13: 0.000237686 | BW13: Zero | BX13: =Y6-BX12*BX9 -> 24.84856118 | BY13: Samp mean | BZ13: SD | CC13: Bars capture pop mean? | CQ13: 12 | CR13: 0.04548306577 | CS13: 16.19353522 | CT13: 16.19353522 | CU13: 0 | CV13: Does CI capture next mean above? | CZ13: Stripes | DA13: End verticals | DB13: 7 | DC13: =IF(ISNA(CY21),NA(),IF(CY21<CW22,CW22,CX22)) ->  | DD13: =DA22 -> 8 | DF13: =CX27 ->  | DG13: =DA27 -> 13
M14: 48.13669594 | N14: 14.22886375 | O14: 52 | P14: Show Stats | Q14: TRUE | AJ14: 0.000237686 | AV14: 0.000237686 | BW14: SD, my units | BX14: =BW8*BX12 -> 13.78030172 | BY14: =IF($CB$7,AVERAGE(CS2:CS101),-999) -> 45.84387262 | BZ14: =IF(AND($CB$7,$T$18>1),STDEV(CS2:CS101),-999) -> 18.96021309 | CA14: SE | CB14: Bar disp | CC14: Yes | CD14: No | CE14: Bar | CF14: Disp mean | CG14: meanheap? | CH14: y | CQ14: 13 | CR14: 0.2489706185 | CS14: 36.44534751 | CT14: 36.44534751 | CU14: 0 | CV14: Mean disp | CW14: LL | CX14: UL | CY14: Next mean | CZ14: 1 | DA14: 0 | DC14: =IF(ISNA(CY21),NA(),CY21) ->  | DD14: =CZ22 -> 7 | DF14: =CY26 ->  | DG14: =CZ27 -> 12
M15: 48.75332779 | N15: 17.22629234 | O15: 51 | P15: For fill | AJ15: 0.000237686 | AV15: 0.000237686 | BY15: =IF(AND($CB$7,M4<>""),M4,-999) -> 45.84387262 | BZ15: =IF(AND($CB$7,$T$18>1,N4<>""),N4,-999) -> 18.96021309 | CA15: =IF(AND($CB$7,$T$18>1,BZ15>-999),BZ15/SQRT($T$18),"") -> 4.239632534 | CB15: =IF(NOT($CD$1),IF(CH15<$CF$103,IF(AND($CB$7,$T$18>1,CA15<>""),IF($BZ$2=2,IF($CD$5,$CD$7*NORMSINV(0.5+$Y$28/200),CA15*TINV(1-$Y$28/100,($T$18-1))),NA()),NA()),NA()),NA()) ->  | CC15: =IF(AND(NOT($CD$1),$CD$6,$CF$1,$CB$5,$CB$1,$BZ$2>1,BY15+CE15>=$CB$2,BY15-CE15<=$CB$2),BY15,NA()) ->  | CD15: =IF(AND(NOT($CD$1),$CD$6,$CF$1,$CB$5,$CB$1,$BZ$2>1,OR(BY15+CE15<$CB$2,BY15-CE15>$CB$2)),BY15,NA()) ->  | CE15: =IF(AND($CB$7,$T$18>1,CA15<>""),IF($BZ$2=2,IF($CD$5,$CD$7*NORMSINV(0.5+$Y$28/200),CA15*TINV(1-$Y$28/100,($T$18-1))),NA()),NA()) ->  | CF15: =IF(OR(CG15=1,BY15=-999,NOT($CD$6),NOT($CG$2)),NA(),BY15) -> 45.84387262 | CG15: =CH105 -> 0 | CH15: 1 | CQ15: 14 | CR15: 0.4213330727 | CS15: 46.03031344 | CT15: 46.03031344 | CU15: 0 | CY15: =IF(ISNA(CV16),NA(),BY15) ->  | CZ15: =1-$CZ$14 -> 0 | DA15: =1-$DA$14 -> 1 | DB15: 8 | DC15: =IF(ISNA(CY22),NA(),IF(CY22<CW23,CW23,CX23)) ->  | DD15: =DA23 -> 9
M16: 46.23291337 | N16: 19.07387019 | O16: 50 | P16: TRUE | S16: 4 | T16: Samples | X16: Latest sample: | Z16: Number of | AC16: Data points | AJ16: 0.000237686 | AV16: 0.000237686 | BJ16: Mean heap | BY16: =IF(AND($CB$7,M5<>""),M5,-999) -> 51.44037882 | BZ16: 22.13372721 | CA16: 4.949251863 | CC16: =IF(AND(NOT($CD$1),$CD$6,$CF$1,$CB$5,$CB$1,$BZ$2>1,BY16+CE16>=$CB$2,BY16-CE16<=$CB$2),BY16,NA()) ->  | CD16: =IF(AND(NOT($CD$1),$CD$6,$CF$1,$CB$5,$CB$1,$BZ$2>1,OR(BY16+CE16<$CB$2,BY16-CE16>$CB$2)),BY16,NA()) ->  | CE16: =IF(AND($CB$7,$T$18>1,CA16<>""),IF($BZ$2=2,IF($CD$5,$CD$7*NORMSINV(0.5+$Y$28/200),CA16*TINV(1-$Y$28/100,($T$18-1))),NA()),NA()) ->  | CF16: =IF(OR(CG16=1,BY16=-999,NOT($CD$6),NOT($CG$2)),NA(),BY16) -> 51.44037882 | CG16: =CH106 -> 0 | CH16: 2 | CQ16: 15 | CR16: 0.2044005152 | CS16: 33.47989206 | CT16: 33.47989206 | CU16: 0 | CV16: =IF(AND($CD$6,$CF$1,$CW$12,$BZ$2>1,OR(BY16+CB16<BY15,BY16-CB16>BY15)),BY16,NA()) ->  | CW16: =IF(ISNA(CV16),NA(),BY16-CB16) ->  | CX16: =IF(ISNA(CV16),NA(),BY16+CB16) ->  | CZ16: =CZ15+1 -> 1 | DA16: =DA15+1 -> 2 | DC16: =IF(ISNA(CY22),NA(),CY22) ->  | DD16: =CZ23 -> 8 | DF16: =CW30 ->  | DG16: =DA30 -> 16
M17: 53.88062536 | N17: 21.9912704 | O17: 49 | P17: =RAND() -> 0.9568658639 | W17: Mean M | X17: =IF(AND(Q14,$CB$7,$CD$6,M4<>""),BY14,"") -> 45.84387262 | Z17: samples | AJ17: =$AJ$1 -> 0.000237686 | AV17: 0.000237686 | BJ17: appearance | BY17: 48.64229025 | BZ17: 21.12624777 | CA17: 4.723972612 | CF17: 48.64229025 | CG17: 0 | CH17: 3 | CQ17: 16 | CR17: 0.8090447616 | CS17: 67.48763191 | CT17: 67.48763191 | CU17: 0 | CV17: =IF(AND($CD$6,$CF$1,$CW$12,$BZ$2>1,OR(BY17+CB17<BY16,BY17-CB17>BY16)),BY17,NA()) ->  | CZ17: =CZ16+1 -> 2 | DA17: =DA16+1 -> 3 | DB17: 9 | DC17: =IF(ISNA(CY23),NA(),IF(CY23<CW24,CW24,CX24)) ->  | DD17: =DA24 -> 10 | DF17: =CY29 ->  | DG17: =CZ30 -> 15
M18: 48.00204517 | N18: 18.85927729 | O18: 48 | P18: 0.3616096414 | S18: N | T18: 20 | W18: SD s | X18: =IF(AND(Q14,CD6,$CB$7,$T$18>1,N4<>""),BZ14,"") -> 18.96021309 | Z18: =IF(AND($CB$7,O4<>""),O4,"") -> 62 | AC18: Sample means | AJ18: 0.000237686 | AV18: 0.000237686 | BI18: y | BW18: =(BW40-BX13)/BX12 -> 1.295427756 | BY18: 45.76816523 | BZ18: 20.23899044 | CA18: 4.525575842 | CF18: 45.76816523 | CG18: 0 | CH18: 4 | CQ18: 17 | CR18: 0.133413991 | CS18: 27.79205961 | CT18: 27.79205961 | CU18: 0 | CZ18: 3 | DA18: 4 | DC18: =IF(ISNA(CY23),NA(),CY23) ->  | DD18: =CZ24 -> 9
M19: 47.34283333 | N19: 28.6470218 | O19: 47 | P19: not capt'g | W19: MoE | X19: =IF(AND(Q14,CD6,NOT(CD1),NOT(ISNA(CB15))),CB15,"") ->  | AE19: Dropping | AJ19: 0.000237686 | AV19: 0.000237686 | BI19: 305 | BK19: 305 | BY19: 41.23871325 | BZ19: 15.67043932 | CA19: 3.504016756 | CF19: 41.23871325 | CG19: 0 | CH19: 5 | CQ19: 18 | CR19: 0.6439771336 | CS19: 57.38220007 | CT19: 57.38220007 | CU19: 0 | CZ19: 4 | DA19: 5 | DB19: 10 | DC19: =IF(ISNA(CY24),NA(),IF(CY24<CW25,CW25,CX25)) ->  | DD19: =DA25 -> 11 | DF19: =CX31 ->  | DG19: =DA31 -> 17
M20: 40.90876892 | N20: 21.07098542 | O20: 46 | P20: 62 | AE20: means | AJ20: 0.000237686 | AV20: 0.000237686 | BY20: 47.45469488 | BZ20: 20.3192255 | CA20: 4.543516948 | CF20: 47.45469488 | CG20: 0 | CH20: 6 | CQ20: 19 | CR20: 0.7072747406 | CS20: 60.90881213 | CT20: 60.90881213 | CU20: 0 | CZ20: 5 | DA20: 6 | DC20: =IF(ISNA(CY24),NA(),CY24) ->  | DD20: =CZ25 -> 10 | DF20: =CY30 ->  | DG20: =CZ31 -> 16
M21: 48.56747813 | N21: 17.10035824 | O21: 45 | P21: =P20+1 -> 63 | S21: 5 | T21: Mean heap | AB21: Mean heap | AJ21: 0.000237686 | AV21: 0.000237686 | BI21: x | BY21: 55.96123246 | BZ21: 18.7867767 | CA21: 4.200850978 | CF21: 55.96123246 | CG21: 0 | CH21: 7 | CQ21: 20 | CR21: 0.6001900565 | CS21: 55.07678143 | CT21: 55.07678143 | CU21: 0 | CZ21: 6 | DA21: 7 | DB21: 11 | DC21: =IF(ISNA(CY25),NA(),IF(CY25<CW26,CW26,CX26)) ->  | DD21: =DA26 -> 12
M22: 55.96232432 | N22: 23.47564411 | O22: 44 | P22: increments | X22: Mean heap SE | Y22: =IF(CD1,IF(AND(CK103<>"",CB7),CK103,""),"") -> 4.215376169 | AC22: Sampling | AJ22: 0.000237686 | AV22: 0.000237686 | BI22: 688 | BK22: 688 | BY22: 46.61174229 | BZ22: 21.93246988 | CA22: 4.904249357 | CF22: 46.61174229 | CG22: 0 | CH22: 8 | CQ22: 21 | CR22: 0.3673499133 | CT22: -999 | CU22: -999 | CZ22: 7 | DA22: 8 | DC22: =IF(ISNA(CY25),NA(),CY25) ->  | DD22: =CZ26 -> 11 | DF22: =CW35 ->  | DG22: =DA35 -> 21
M23: 52.53740484 | N23: 14.3872063 | O23: 43 | P23: =BI19/500 -> 0.61 | Q23: y | X23: Curve SE | Y23: =IF(CD3,$CD$7,"") -> 4.472135955 | AC23: distribution curve | AJ23: 0.000237686 | AV23: 0.000237686 | BY23: 46.77089566 | BZ23: 21.13839228 | CA23: 4.726688208 | CF23: 46.77089566 | CG23: 0 | CH23: 9 | CQ23: 22 | CR23: 0.9089867454 | CT23: -999 | CU23: -999 | CZ23: 8 | DA23: 9 | DB23: 12 | DC23: =IF(ISNA(CY26),NA(),IF(CY26<CW27,CW27,CX27)) ->  | DD23: =DA27 -> 13 | DF23: =CY34 ->  | DG23: =CZ35 -> 20
M24: 41.62885571 | N24: 21.69812811 | O24: 42 | P24: =BI22/500 -> 1.376 | Q24: x | Y24: Number in mean heap | Z24: =IF(CD1,IF($CB$7,CH103,""),"") -> 39 | AC24: SE lines | AJ24: 0.000237686 | AV24: 0.000237686 | BX24: HND | BY24: 52.49771451 | BZ24: 20.98879203 | CA24: 4.693236574 | CF24: 52.49771451 | CG24: 0 | CH24: 10 | CQ24: 23 | CR24: 0.2708498593 | CT24: -999 | CU24: -999 | CZ24: 9 | DA24: 10 | DC24: =IF(ISNA(CY26),NA(),CY26) ->  | DD24: =CZ27 -> 12
M25: 45.73073723 | N25: 19.2529507 | O25: 41 | P25: num not cap next | AJ25: 0.000237686 | AV25: 0.000237686 | BW25: alpha | BX25: =Y8/SQRT(1-2/PI()) -> 33.1779348 | BY25: 48.13669594 | BZ25: 14.22886375 | CA25: 3.181670658 | CF25: 48.13669594 | CG25: 0 | CH25: 11 | CQ25: 24 | CR25: 0.1144679617 | CT25: -999 | CU25: -999 | CZ25: 10 | DA25: 11 | DB25: 13 | DC25: =IF(ISNA(CY27),NA(),IF(CY27<CW28,CW28,CX28)) ->  | DD25: =DA28 -> 14 | DF25: =CX36 ->  | DG25: =DA36 -> 22
M26: 44.15136162 | N26: 20.88403336 | O26: 40 | P26: 61 | X26: MoE | Y26: =IF(AND($CD$4,T18>1),$CD$7*NORMSINV(0.5+$Y$28/200),"") ->  | AC26: ±MoE around m | AJ26: 0.000237686 | AV26: 0.000237686 | BW26: mu | BX26: =BX25*SQRT(2)/SQRT(PI()) -> 26.47216194 | BY26: 48.75332779 | BZ26: 17.22629234 | CA26: 3.851916067 | CF26: 48.75332779 | CG26: 0 | CH26: 12 | CQ26: 25 | CR26: 0.1052202191 | CT26: -999 | CU26: -999 | CZ26: 11 | DA26: 12 | DC26: =IF(ISNA(CY27),NA(),CY27) ->  | DD26: =CZ28 -> 13 | DF26: =CY35 ->  | DG26: =CZ36 -> 21
M27: 51.7618609 | N27: 24.51615419 | O27: 39 | P27: =P26+1 -> 62 | S27: 6 | T27: Confidence intervals | AJ27: 0.000237686 | AV27: 0.000237686 | BW27: zero | BX27: =Y6-BX26 -> 23.52783806 | BY27: 46.23291337 | BZ27: 19.07387019 | CA27: 4.265047035 | CF27: 46.23291337 | CG27: 0 | CH27: 13 | CQ27: 26 | CR27: 0.5590666812 | CT27: -999 | CU27: -999 | CZ27: 12 | DA27: 13 | DB27: 14 | DC27: =IF(ISNA(CY28),NA(),IF(CY28<CW29,CW29,CX29)) ->  | DD27: =DA29 -> 15
M28: 56.5973977 | N28: 21.16765291 | O28: 38 | T28: Assume s is: | X28: C | Y28: 95 | AC28: CIs | AJ28: 0.000237686 | AV28: 0.000237686 | BW28: s | BX28: =BX25*SQRT(1-2/PI()) -> 20 | BY28: 53.88062536 | BZ28: 21.9912704 | CA28: 4.917397552 | CF28: 53.88062536 | CG28: 0 | CH28: 14 | CQ28: 27 | CR28: 0.07978010736 | CT28: -999 | CU28: -999 | CZ28: 13 | DA28: 14 | DC28: =IF(ISNA(CY28),NA(),CY28) ->  | DD28: =CZ29 -> 14
M29: 45.66049993 | N29: 15.26212383 | O29: 37 | T29: Known | V29: Unknown | AJ29: 0.000237686 | AV29: 0.000237686 | BY29: 48.00204517 | BZ29: 18.85927729 | CA29: 4.217062602 | CF29: 48.00204517 | CG29: 0 | CH29: 15 | CQ29: 28 | CR29: 0.1107819807 | CT29: -999 | CU29: -999 | CZ29: 14 | DA29: 15 | DB29: 15 | DC29: =IF(ISNA(CY29),NA(),IF(CY29<CW30,CW30,CX30)) ->  | DD29: =DA30 -> 16
M30: 60.17757455 | N30: 22.19726221 | O30: 36 | AJ30: 0.000237686 | AV30: 0.000237686 | BX30: Rectangular distribution | BY30: 47.34283333 | BZ30: 28.6470218 | CA30: 6.40566881 | CF30: 47.34283333 | CG30: 0 | CH30: 16 | CQ30: 29 | CR30: 0.2469501402 | CT30: -999 | CU30: -999 | CZ30: 15 | DA30: 16 | DC30: =IF(ISNA(CY29),NA(),CY29) ->  | DD30: =CZ30 -> 15
M31: 58.49045775 | N31: 17.60538159 | O31: 35 | S31: 7 | T31: Capture of m | AB31: m line | AJ31: 0.000237686 | AV31: 0.000237686 | BW31: Min | BX31: =CW8 -> 15.35898385 | BY31: 40.90876892 | BZ31: 21.07098542 | CA31: 4.711615575 | CF31: 40.90876892 | CG31: 0 | CH31: 17 | CQ31: 30 | CR31: 0.6125808936 | CT31: -999 | CU31: -999 | CZ31: 16 | DA31: 17 | DB31: 16 | DC31: =IF(ISNA(CY30),NA(),IF(CY30<CW31,CW31,CX31)) ->  | DD31: =DA31 -> 17
M32: 48.50563745 | N32: 13.99771035 | O32: 34 | Y32: Number capturing m | Z32: =IF(AND(NOT(CD1),$CB$7,$CB$5,$CB$1,$CB$6,BZ2=2,O4<>""),O4-P20,"") ->  | AJ32: 0.000237686 | AV32: 0.000237686 | BW32: Max | BX32: =CW9 -> 84.64101615 | BY32: 48.56747813 | BZ32: 17.10035824 | CA32: 3.823756347 | CF32: 48.56747813 | CG32: 0 | CH32: 18 | CQ32: 31 | CR32: 0.8991640564 | CT32: -999 | CU32: -999 | CZ32: 17 | DA32: 18 | DC32: =IF(ISNA(CY30),NA(),CY30) ->  | DD32: =CZ31 -> 16
M33: 50.80214369 | N33: 16.70677089 | O33: 33 | X33: Percent capturing m | Y33: =IF(AND(Z18<>"",Z32<>"",Z18<>0),Z32*100/Z18,"") ->  | AC33: Capture of m | AJ33: 0.000237686 | AV33: 0.000237686 | BW33: Height | BX33: =CW10 -> 0.01443375673 | BY33: 55.96232432 | BZ33: 23.47564411 | CA33: 5.249313605 | CF33: 55.96232432 | CG33: 0 | CH33: 19 | CQ33: 32 | CR33: 0.253186984 | CT33: -999 | CU33: -999 | CZ33: 18 | DA33: 19 | DB33: 17 | DC33: =IF(ISNA(CY31),NA(),IF(CY31<CW32,CW32,CX32)) ->  | DD33: =DA32 -> 18
M34: 46.38070258 | N34: 24.94439026 | O34: 32 | AJ34: 0.000237686 | AV34: 0.000237686 | BW34: Length | BX34: =CW11 -> 69.2820323 | BY34: 52.53740484 | BZ34: 14.3872063 | CA34: 3.21707713 | CF34: 52.53740484 | CG34: 0 | CH34: 20 | CQ34: 33 | CR34: 0.131307682 | CS34: =IF(AND($CB$7,$CQ34<=$T$18),IF($BY$12=1,$C$4+$D$4*NORMSINV(CR34),IF($BY$12=2,$CW$8+CR34*$CW$11,VLOOKUP(CR34,$BV$42:$BY$4042,4))),"") ->  | CT34: =IF(AND($CB$4,CS34<>"",$M$4<>""),CS34,-999) -> -999 | CU34: =IF(CT34=-999,-999,0) -> -999 | CZ34: 19 | DA34: 20 | DC34: =IF(ISNA(CY31),NA(),CY31) ->  | DD34: =CZ32 -> 17
M35: 51.44165472 | N35: 20.69332849 | O35: 31 | S35: 8 | T35: Capture of next mean | AJ35: 0.000237686 | AV35: 0.000237686 | BY35: 41.62885571 | BZ35: 21.69812811 | CA35: 4.851848943 | CF35: 41.62885571 | CG35: 0 | CH35: 21 | CQ35: 34 | CR35: =MOD(CR34*10000013,1) -> 0.5272243898 | CT35: -999 | CU35: -999 | CZ35: 20 | DA35: 21 | DB35: 18 | DC35: =IF(ISNA(CY32),NA(),IF(CY32<CW33,CW33,CX33)) ->  | DD35: =DA33 -> 19
M36: 46.45264775 | N36: 24.46802704 | O36: 30 | Y36: =IF(CW12,"Number capturing next mean ","") ->  | Z36: =IF(AND(NOT(CD1),$CB$7,$CW$12,$CB$6,BZ2=2),O5-P26,"") ->  | AC36: Capture of | AJ36: 0.000237686 | AV36: 0.000237686 | BW36: check mean (1) | BY36: 45.73073723 | BZ36: 19.2529507 | CA36: 4.305090653 | CF36: 45.73073723 | CG36: 0 | CH36: 22 | CQ36: 35 | CR36: 0.7522789892 | CT36: -999 | CU36: -999 | CZ36: 21 | DA36: 22 | DC36: =IF(ISNA(CY32),NA(),CY32) ->  | DD36: =CZ33 -> 18
M37: 49.20004756 | N37: 18.73350934 | O37: 29 | X37: =IF(CW12,"Percent capturing next mean ","") ->  | Y37: =IF(AND(Z18<>"",Z36<>"",Z18>1),(Z36*100/O5),"") ->  | AC37: next mean | AJ37: 0.000237686 | AV37: 0.000237686 | BW37: to 1042 | BY37: 44.15136162 | BZ37: 20.88403336 | CA37: 4.669811823 | CF37: 44.15136162 | CG37: 0 | CH37: 23 | CQ37: 36 | CR37: 0.6714360844 | CT37: -999 | CU37: -999 | CZ37: 22 | DA37: 23 | DB37: 19 | DC37: =IF(ISNA(CY33),NA(),IF(CY33<CW34,CW34,CX34)) ->  | DD37: =DA34 -> 20
M38: 52.99740756 | N38: 12.21817682 | O38: 28 | BW38: =SUM(BW42:BW1042)/SUM(BZ42:BZ1042) -> 50 | BY38: 51.7618609 | BZ38: 24.51615419 | CA38: 5.481978731 | CG38: 1 | CH38: 24 | CQ38: 37 | CR38: 0.5730129983 | CT38: -999 | CU38: -999 | CZ38: 23 | DA38: 24 | DC38: =IF(ISNA(CY33),NA(),CY33) ->  | DD38: =CZ34 -> 19
M39: 54.69390195 | N39: 21.00868605 | O39: 27 | BW39: =SUM(BW42:BW2042)/SUM(BZ42:BZ2042) -> 50.35054022 | BX39: Sum (ordinates) | BY39: 56.5973977 | BZ39: 21.16765291 | CA39: 4.733231082 | CG39: 1 | CH39: 25 | CQ39: 38 | CR39: 0.432445107 | CT39: -999 | CU39: -999 | CZ39: 24 | DA39: 25 | DB39: 20 | DC39: =IF(ISNA(CY34),NA(),IF(CY34<CW35,CW35,CX35)) ->  | DD39: =DA35 -> 21
M40: 55.34348413 | N40: 20.55494521 | O40: 26 | BV40: =IF(BY12<3,SUM(BZ42:BZ4042),SUM(BU42:BU4042)) -> 9.938340641 | BW40: =SUM(BW42:BW4042)/SUM(BZ42:BZ4042) -> 50.35054022 | BX40: =SUM(BZ42:BZ1042) -> 9.876681283 | BY40: Maxpop | BZ40: =MAX(BZ42:BZ1042) -> 0.01994711402 | CA40: DotFraction | CB40: 40 | CC40: SampDistMult | CD40: =COUNT(M29:M628)*$P$23*$P$24 -> 31.05632 | CQ40: 39 | CR40: 0.6920652743 | CT40: -999 | CU40: -999 | DC40: =IF(ISNA(CY34),NA(),CY34) ->  | DD40: =CZ35 -> 20
M41: 55.83753962 | N41: 22.28053467 | O41: 25 | BU41: Skew ordinate | BV41: Pop'n area to L | BW41: x*height | BX41: Pop'n area to L | BY41: x | BZ41: Pop'n ordinate | CA41: SampDist | CC41: For pop label | CQ41: 40 | CR41: 0.740277512 | CT41: -999 | CU41: -999 | DB41: 21 | DC41: =IF(ISNA(CY35),NA(),IF(CY35<CW36,CW36,CX36)) ->  | DD41: =DA36 -> 22
M42: 53.7925723 | N42: 13.0718325 | O42: 24 | BU42: =IF($BY$12<3,0,IF(BY42<=$BX$13,0,NORMDIST(LN((BY42-$BX$13)/$BX$12),0,$BW$8,FALSE)/((BY42-$BX$13)/$BX$12))) -> 0 | BV42: =IF($BY$12=1,NORMDIST(BY42,$Y$6,$Y$8,TRUE),IF($BY$12=2,IF(BY42<=$BX$31,0,IF(BY42>=$BX$32,1,(BY42-$BX$31)*$BX$33)),SUM($BU$42:BU42)/$BV$40)) -> 0.006209665326 | BW42: =BY42*BZ42 -> 0 | BX42: =IF($BY$12<3,BV42,SUM($BZ$42:BZ42)/$BX$40) -> 0.006209665326 | BY42: 0 | BZ42: =IF($BZ$5,IF($BY$12=1,NORMDIST(BY42,$Y$6,$Y$8,FALSE),IF($BY$12=2,IF(AND(BY42>=$BX$31,BY42<=$BX$32),$BX$33,0),IF(BY42<=$BX$13,0,NORMDIST(LN((BY42-$BX$13)/$BX$12),0,$BW$8,FALSE)/((BY42-$BX$13)/$BX$12)))),-999) -> 0.0008764150247 | CA42: =IF(AND($CD$1,$CD$3),26-$CD$40*NORMDIST(BY42,$Y$6,$Y$8/SQRT($T$18),FALSE),-999) -> 26 | CB42: maxheight | CC42: 8 | CD42: =BZ40 -> 0.01994711402 | CQ42: 41 | CR42: 0.7435977664 | CT42: -999 | CU42: -999 | DC42: =IF(ISNA(CY35),NA(),CY35) ->  | DD42: =CZ36 -> 21
M43: 48.01799202 | N43: 15.63909297 | O43: 23 | BU43: =IF($BY$12<3,0,IF(BY43<=$BX$13,0,NORMDIST(LN((BY43-$BX$13)/$BX$12),0,$BW$8,FALSE)/((BY43-$BX$13)/$BX$12))) -> 0 | BV43: =IF($BY$12=1,NORMDIST(BY43,$Y$6,$Y$8,TRUE),IF($BY$12=2,IF(BY43<=$BX$31,0,IF(BY43>=$BX$32,1,(BY43-$BX$31)*$BX$33)),SUM($BU$42:BU43)/$BV$40)) -> 0.006297856509 | BW43: =BY43*BZ43 -> 8.874278757e-05 | BX43: =IF($BY$12<3,BV43,SUM($BZ$42:BZ43)/$BX$40) -> 0.006297856509 | BY43: =BY42+$BZ$1 -> 0.1 | BZ43: 0.0008874278757 | CA43: =IF(AND($CD$1,$CD$3),26-$CD$40*NORMDIST(BY43,$Y$6,$Y$8/SQRT($T$18),FALSE),-999) -> 26 | CB43: =MIN(CA42:CA4042) -> 23.22958353 | CQ43: 42 | CR43: 0.3306157868 | CT43: -999 | CU43: -999 | DB43: 22 | DC43: =IF(ISNA(CY36),NA(),IF(CY36<CW37,CW37,CX37)) ->  | DD43: =DA37 -> 23
M44: 55.64446133 | N44: 16.82268888 | O44: 22 | BU44: 0 | BV44: =IF($BY$12=1,NORMDIST(BY44,$Y$6,$Y$8,TRUE),IF($BY$12=2,IF(BY44<=$BX$31,0,IF(BY44>=$BX$32,1,(BY44-$BX$31)*$BX$33)),SUM($BU$42:BU44)/$BV$40)) -> 0.006387154765 | BW44: 0.0001797113295 | BX44: =IF($BY$12<3,BV44,SUM($BZ$42:BZ44)/$BX$40) -> 0.006387154765 | BY44: 0.2 | BZ44: 0.0008985566477 | CA44: 26 | CB44: SElinelength | CC44: For SD lines | CQ44: 43 | CR44: 0.1663607415 | CT44: -999 | CU44: -999 | DC44: =IF(ISNA(CY36),NA(),CY36) ->  | DD44: =CZ37 -> 22
M45: 48.17440216 | N45: 14.78153022 | O45: 21 | BU45: 0 | BV45: =IF($BY$12=1,NORMDIST(BY45,$Y$6,$Y$8,TRUE),IF($BY$12=2,IF(BY45<=$BX$31,0,IF(BY45>=$BX$32,1,(BY45-$BX$31)*$BX$33)),SUM($BU$42:BU45)/$BV$40)) -> 0.006477571732 | BW45: 0.0002729406704 | BX45: =IF($BY$12<3,BV45,SUM($BZ$42:BZ45)/$BX$40) -> 0.006477571732 | BY45: 0.3 | BZ45: 0.0009098022345 | CA45: 26 | CB45: =26-CB43+CB47 -> 3.070416474 | CC45: =IF(AND($BZ$5,$BZ$6),$Y$6-5*$Y$8,NA()) ->  | CD45: 0 | CQ45: 44 | CR45: 0.5775014888 | CT45: -999 | CU45: -999 | DB45: 23 | DC45: =IF(ISNA(CY37),NA(),IF(CY37<CW38,CW38,CX38)) ->  | DD45: =DA38 -> 24
M46: 48.27922486 | N46: 22.85505907 | O46: 20 | BU46: 0 | BV46: =IF($BY$12=1,NORMDIST(BY46,$Y$6,$Y$8,TRUE),IF($BY$12=2,IF(BY46<=$BX$31,0,IF(BY46>=$BX$32,1,(BY46-$BX$31)*$BX$33)),SUM($BU$42:BU46)/$BV$40)) -> 0.006569119136 | BW46: 0.0003684662129 | BX46: =IF($BY$12<3,BV46,SUM($BZ$42:BZ46)/$BX$40) -> 0.006569119136 | BY46: 0.4 | BZ46: 0.0009211655323 | CA46: 26 | CB46: extra | CC46: =IF(AND($BZ$5,$BZ$6),$Y$6-4*$Y$8,NA()) ->  | CD46: 0 | CQ46: 45 | CR46: 0.3960145619 | CT46: -999 | CU46: -999 | DC46: =IF(ISNA(CY37),NA(),CY37) ->  | DD46: =CZ38 -> 23
M47: 44.95444476 | N47: 20.81896355 | O47: 19 | BU47: 0 | BV47: =IF($BY$12=1,NORMDIST(BY47,$Y$6,$Y$8,TRUE),IF($BY$12=2,IF(BY47<=$BX$31,0,IF(BY47>=$BX$32,1,(BY47-$BX$31)*$BX$33)),SUM($BU$42:BU47)/$BV$40)) -> 0.006661808792 | BW47: 0.0004663237198 | BX47: =IF($BY$12<3,BV47,SUM($BZ$42:BZ47)/$BX$40) -> 0.006661808792 | BY47: 0.5 | BZ47: 0.0009326474396 | CA47: 26 | CB47: 0.3 | CC47: =IF(AND($BZ$5,$BZ$6),$Y$6-3*$Y$8,NA()) ->  | CD47: 0 | CQ47: 46 | CR47: 0.7669558506 | CT47: -999 | CU47: -999 | DB47: 24 | DC47: =IF(ISNA(CY38),NA(),IF(CY38<CW39,CW39,CX39)) ->  | DD47: =DA39 -> 25
M48: 52.65132129 | N48: 25.23642693 | O48: 18 | BU48: 0 | BV48: =IF($BY$12=1,NORMDIST(BY48,$Y$6,$Y$8,TRUE),IF($BY$12=2,IF(BY48<=$BX$31,0,IF(BY48>=$BX$32,1,(BY48-$BX$31)*$BX$33)),SUM($BU$42:BU48)/$BV$40)) -> 0.006755652607 | BW48: 0.0005665493143 | BX48: =IF($BY$12<3,BV48,SUM($BZ$42:BZ48)/$BX$40) -> 0.006755652607 | BY48: 0.6 | BZ48: 0.0009442488571 | CA48: 26 | CC48: =IF(AND($BZ$5,$BZ$6),$Y$6-2*$Y$8,NA()) ->  | CD48: 0 | CQ48: 47 | CR48: 0.4768850561 | CT48: -999 | CU48: -999 | DC48: =IF(ISNA(CY38),NA(),CY38) ->  | DD48: =CZ39 -> 24
M49: 45.73142641 | N49: 19.44283461 | O49: 17 | BU49: 0 | BV49: =IF($BY$12=1,NORMDIST(BY49,$Y$6,$Y$8,TRUE),IF($BY$12=2,IF(BY49<=$BX$31,0,IF(BY49>=$BX$32,1,(BY49-$BX$31)*$BX$33)),SUM($BU$42:BU49)/$BV$40)) -> 0.006850662577 | BW49: 0.0006691794814 | BX49: =IF($BY$12<3,BV49,SUM($BZ$42:BZ49)/$BX$40) -> 0.006850662577 | BY49: 0.7 | BZ49: 0.0009559706877 | CA49: 26 | CC49: =IF(AND($BZ$5,$BZ$6),$Y$6-1*$Y$8,NA()) ->  | CD49: 0 | CQ49: 48 | CR49: 0.7607371043 | CT49: -999 | CU49: -999
M50: 47.53160844 | N50: 19.05322667 | O50: 16 | BU50: 0 | BV50: =IF($BY$12=1,NORMDIST(BY50,$Y$6,$Y$8,TRUE),IF($BY$12=2,IF(BY50<=$BX$31,0,IF(BY50>=$BX$32,1,(BY50-$BX$31)*$BX$33)),SUM($BU$42:BU50)/$BV$40)) -> 0.006946850789 | BW50: 0.0007742510693 | BX50: =IF($BY$12<3,BV50,SUM($BZ$42:BZ50)/$BX$40) -> 0.006946850789 | BY50: 0.8 | BZ50: 0.0009678138366 | CA50: 26 | CC50: =IF(AND($BZ$5,$BZ$6),$Y$6+1*$Y$8,NA()) ->  | CD50: 0 | CQ50: 49 | CR50: 0.9329962339 | CT50: -999 | CU50: -999
M51: 49.47905464 | N51: 21.71514865 | O51: 15 | BU51: 0 | BV51: =IF($BY$12=1,NORMDIST(BY51,$Y$6,$Y$8,TRUE),IF($BY$12=2,IF(BY51<=$BX$31,0,IF(BY51>=$BX$32,1,(BY51-$BX$31)*$BX$33)),SUM($BU$42:BU51)/$BV$40)) -> 0.007044229419 | BW51: 0.0008818012897 | BX51: =IF($BY$12<3,BV51,SUM($BZ$42:BZ51)/$BX$40) -> 0.007044229419 | BY51: 0.9 | BZ51: 0.0009797792108 | CA51: 26 | CC51: =IF(AND($BZ$5,$BZ$6),$Y$6+2*$Y$8,NA()) ->  | CD51: 0 | CQ51: 50 | CR51: 0.4682032745 | CT51: -999 | CU51: -999
M52: 42.34555317 | N52: 25.94991427 | O52: 14 | BU52: 0 | BV52: =IF($BY$12=1,NORMDIST(BY52,$Y$6,$Y$8,TRUE),IF($BY$12=2,IF(BY52<=$BX$31,0,IF(BY52>=$BX$32,1,(BY52-$BX$31)*$BX$33)),SUM($BU$42:BU52)/$BV$40)) -> 0.007142810735 | BW52: 0.0009918677196 | BX52: =IF($BY$12<3,BV52,SUM($BZ$42:BZ52)/$BX$40) -> 0.007142810735 | BY52: 1 | BZ52: 0.0009918677196 | CA52: 26 | CC52: =IF(AND($BZ$5,$BZ$6),$Y$6+3*$Y$8,NA()) ->  | CD52: 0 | CQ52: 51 | CR52: 0.8319740947 | CT52: -999 | CU52: -999
M53: 52.11029385 | N53: 18.03235535 | O53: 13 | BU53: 0 | BV53: =IF($BY$12=1,NORMDIST(BY53,$Y$6,$Y$8,TRUE),IF($BY$12=2,IF(BY53<=$BX$31,0,IF(BY53>=$BX$32,1,(BY53-$BX$31)*$BX$33)),SUM($BU$42:BU53)/$BV$40)) -> 0.007242607097 | BW53: 0.001104488301 | BX53: =IF($BY$12<3,BV53,SUM($BZ$42:BZ53)/$BX$40) -> 0.007242607097 | BY53: 1.1 | BZ53: 0.001004080274 | CA53: 26 | CC53: =IF(AND($BZ$5,$BZ$6),$Y$6+4*$Y$8,NA()) ->  | CD53: 0 | CQ53: 52 | CR53: 0.76299919 | CT53: -999 | CU53: -999
M54: 55.33945218 | N54: 17.26321602 | O54: 12 | BU54: 0 | BV54: =IF($BY$12=1,NORMDIST(BY54,$Y$6,$Y$8,TRUE),IF($BY$12=2,IF(BY54<=$BX$31,0,IF(BY54>=$BX$32,1,(BY54-$BX$31)*$BX$33)),SUM($BU$42:BU54)/$BV$40)) -> 0.007343630955 | BW54: 0.001219701344 | BX54: =IF($BY$12<3,BV54,SUM($BZ$42:BZ54)/$BX$40) -> 0.007343630955 | BY54: 1.2 | BZ54: 0.001016417787 | CA54: 26 | CC54: =IF(AND($BZ$5,$BZ$6),$Y$6+5*$Y$8,NA()) ->  | CD54: 0 | CQ54: 53 | CR54: 0.8191652801 | CT54: -999 | CU54: -999
M55: 53.78119834 | N55: 22.85215668 | O55: 11 | BU55: 0 | BV55: =IF($BY$12=1,NORMDIST(BY55,$Y$6,$Y$8,TRUE),IF($BY$12=2,IF(BY55<=$BX$31,0,IF(BY55>=$BX$32,1,(BY55-$BX$31)*$BX$33)),SUM($BU$42:BU55)/$BV$40)) -> 0.007445894851 | BW55: 0.001337545525 | BX55: =IF($BY$12<3,BV55,SUM($BZ$42:BZ55)/$BX$40) -> 0.007445894851 | BY55: 1.3 | BZ55: 0.001028881173 | CA55: 26 | CQ55: 54 | CR55: 0.4500364643 | CT55: -999 | CU55: -999
M56: 49.02694245 | N56: 22.47539012 | O56: 10 | BU56: 0 | BV56: =IF($BY$12=1,NORMDIST(BY56,$Y$6,$Y$8,TRUE),IF($BY$12=2,IF(BY56<=$BX$31,0,IF(BY56>=$BX$32,1,(BY56-$BX$31)*$BX$33)),SUM($BU$42:BU56)/$BV$40)) -> 0.007549411416 | BW56: 0.001458059889 | BX56: =IF($BY$12<3,BV56,SUM($BZ$42:BZ56)/$BX$40) -> 0.007549411416 | BY56: 1.4 | BZ56: 0.001041471349 | CA56: 26 | CQ56: 55 | CR56: 0.4930643197 | CT56: -999 | CU56: -999
M57: 49.49926271 | N57: 18.58440342 | O57: 9 | BU57: 0 | BV57: =IF($BY$12=1,NORMDIST(BY57,$Y$6,$Y$8,TRUE),IF($BY$12=2,IF(BY57<=$BX$31,0,IF(BY57>=$BX$32,1,(BY57-$BX$31)*$BX$33)),SUM($BU$42:BU57)/$BV$40)) -> 0.007654193377 | BW57: 0.00158128385 | BX57: =IF($BY$12<3,BV57,SUM($BZ$42:BZ57)/$BX$40) -> 0.007654193377 | BY57: 1.5 | BZ57: 0.001054189233 | CA57: 26 | CQ57: 56 | CR57: 0.6069851946 | CT57: -999 | CU57: -999
M58: 50.92842298 | N58: 26.39031443 | O58: 8 | BU58: 0 | BV58: =IF($BY$12=1,NORMDIST(BY58,$Y$6,$Y$8,TRUE),IF($BY$12=2,IF(BY58<=$BX$31,0,IF(BY58>=$BX$32,1,(BY58-$BX$31)*$BX$33)),SUM($BU$42:BU58)/$BV$40)) -> 0.007760253551 | BW58: 0.001707257192 | BX58: =IF($BY$12<3,BV58,SUM($BZ$42:BZ58)/$BX$40) -> 0.007760253551 | BY58: 1.6 | BZ58: 0.001067035745 | CA58: 26 | CC58: For SE lines | CQ58: 57 | CR58: 0.8368932214 | CT58: -999 | CU58: -999
M59: 51.15280588 | N59: 23.96852693 | O59: 7 | BU59: 0 | BV59: =IF($BY$12=1,NORMDIST(BY59,$Y$6,$Y$8,TRUE),IF($BY$12=2,IF(BY59<=$BX$31,0,IF(BY59>=$BX$32,1,(BY59-$BX$31)*$BX$33)),SUM($BU$42:BU59)/$BV$40)) -> 0.007867604845 | BW59: 0.00183602007 | BX59: =IF($BY$12<3,BV59,SUM($BZ$42:BZ59)/$BX$40) -> 0.007867604845 | BY59: 1.7 | BZ59: 0.001080011806 | CA59: 26 | CB59: -5 | CC59: =IF(AND($CD$1,$CD$3,$BZ$7),$Y$6+CB59*$Y$23,NA()) -> 27.63932023 | CD59: 26 | CQ59: 58 | CR59: 0.09324613027 | CT59: -999 | CU59: -999
M60: 50.08969423 | N60: 25.12765465 | O60: 6 | BU60: 0 | BV60: =IF($BY$12=1,NORMDIST(BY60,$Y$6,$Y$8,TRUE),IF($BY$12=2,IF(BY60<=$BX$31,0,IF(BY60>=$BX$32,1,(BY60-$BX$31)*$BX$33)),SUM($BU$42:BU60)/$BV$40)) -> 0.007976260261 | BW60: 0.001967613008 | BX60: =IF($BY$12<3,BV60,SUM($BZ$42:BZ60)/$BX$40) -> 0.007976260261 | BY60: 1.8 | BZ60: 0.001093118338 | CA60: 26 | CB60: -4 | CC60: =IF(AND($CD$1,$CD$3,$BZ$7),$Y$6+CB60*$Y$23,NA()) -> 32.11145618 | CD60: 26 | CQ60: 59 | CR60: 0.5149271544 | CT60: -999 | CU60: -999
M61: 41.09043737 | N61: 19.27995654 | O61: 5 | BU61: 0 | BV61: =IF($BY$12=1,NORMDIST(BY61,$Y$6,$Y$8,TRUE),IF($BY$12=2,IF(BY61<=$BX$31,0,IF(BY61>=$BX$32,1,(BY61-$BX$31)*$BX$33)),SUM($BU$42:BU61)/$BV$40)) -> 0.008086232892 | BW61: 0.002102076905 | BX61: =IF($BY$12<3,BV61,SUM($BZ$42:BZ61)/$BX$40) -> 0.008086232892 | BY61: 1.9 | BZ61: 0.001106356266 | CA61: 26 | CB61: -3 | CC61: 36.58359214 | CD61: 26 | CQ61: 60 | CR61: 0.238122059 | CT61: -999 | CU61: -999
M62: 52.99032852 | N62: 25.08800189 | O62: 4 | BU62: 0 | BV62: =IF($BY$12=1,NORMDIST(BY62,$Y$6,$Y$8,TRUE),IF($BY$12=2,IF(BY62<=$BX$31,0,IF(BY62>=$BX$32,1,(BY62-$BX$31)*$BX$33)),SUM($BU$42:BU62)/$BV$40)) -> 0.008197535925 | BW62: 0.002239453029 | BX62: =IF($BY$12<3,BV62,SUM($BZ$42:BZ62)/$BX$40) -> 0.008197535925 | BY62: 2 | BZ62: 0.001119726515 | CA62: 26 | CB62: -2 | CC62: 41.05572809 | CD62: 26 | CQ62: 61 | CR62: 0.6859099772 | CT62: -999 | CU62: -999
M63: 47.43525643 | N63: 22.72048518 | O63: 3 | BU63: 0 | BV63: =IF($BY$12=1,NORMDIST(BY63,$Y$6,$Y$8,TRUE),IF($BY$12=2,IF(BY63<=$BX$31,0,IF(BY63>=$BX$32,1,(BY63-$BX$31)*$BX$33)),SUM($BU$42:BU63)/$BV$40)) -> 0.008310182637 | BW63: 0.002379783024 | BX63: =IF($BY$12<3,BV63,SUM($BZ$42:BZ63)/$BX$40) -> 0.008310182637 | BY63: 2.1 | BZ63: 0.001133230011 | CA63: 26 | CB63: -1 | CC63: 45.52786405 | CD63: 26 | CQ63: 62 | CR63: 0.6886571627 | CT63: -999 | CU63: -999
M64: 47.95264815 | N64: 20.82982567 | O64: 2 | BU64: 0 | BV64: =IF($BY$12=1,NORMDIST(BY64,$Y$6,$Y$8,TRUE),IF($BY$12=2,IF(BY64<=$BX$31,0,IF(BY64>=$BX$32,1,(BY64-$BX$31)*$BX$33)),SUM($BU$42:BU64)/$BV$40)) -> 0.008424186399 | BW64: 0.002523108902 | BX64: =IF($BY$12<3,BV64,SUM($BZ$42:BZ64)/$BX$40) -> 0.008424186399 | BY64: 2.2 | BZ64: 0.001146867683 | CA64: 26 | CB64: 0 | CC64: 50 | CD64: 26 | CQ64: 63 | CR64: 0.5796533581 | CT64: -999 | CU64: -999
M65: 51.25874454 | N65: 15.63954198 | O65: 1 | BU65: 0 | BV65: =IF($BY$12=1,NORMDIST(BY65,$Y$6,$Y$8,TRUE),IF($BY$12=2,IF(BY65<=$BX$31,0,IF(BY65>=$BX$32,1,(BY65-$BX$31)*$BX$33)),SUM($BU$42:BU65)/$BV$40)) -> 0.008539560677 | BW65: 0.002669473055 | BX65: =IF($BY$12<3,BV65,SUM($BZ$42:BZ65)/$BX$40) -> 0.008539560677 | BY65: 2.3 | BZ65: 0.001160640459 | CA65: 26 | CB65: 1 | CC65: 54.47213595 | CD65: 26 | CQ65: 64 | CR65: 0.1163630914 | CT65: -999 | CU65: -999
O66: 0 | BU66: 0 | BV66: =IF($BY$12=1,NORMDIST(BY66,$Y$6,$Y$8,TRUE),IF($BY$12=2,IF(BY66<=$BX$31,0,IF(BY66>=$BX$32,1,(BY66-$BX$31)*$BX$33)),SUM($BU$42:BU66)/$BV$40)) -> 0.008656319026 | BW66: 0.002818918243 | BX66: =IF($BY$12<3,BV66,SUM($BZ$42:BZ66)/$BX$40) -> 0.008656319026 | BY66: 2.4 | BZ66: 0.001174549268 | CA66: 26 | CB66: 2 | CC66: 58.94427191 | CD66: 26 | CQ66: 65 | CR66: 0.4266632404 | CS66: =IF(AND($CB$7,$CQ66<=$T$18),IF($BY$12=1,$C$4+$D$4*NORMSINV(CR66),IF($BY$12=2,$CW$8+CR66*$CW$11,VLOOKUP(CR66,$BV$42:$BY$4042,4))),"") ->  | CT66: =IF(AND($CB$4,CS66<>"",$M$4<>""),CS66,-999) -> -999 | CU66: =IF(CT66=-999,-999,0) -> -999
BU67: 0 | BV67: =IF($BY$12=1,NORMDIST(BY67,$Y$6,$Y$8,TRUE),IF($BY$12=2,IF(BY67<=$BX$31,0,IF(BY67>=$BX$32,1,(BY67-$BX$31)*$BX$33)),SUM($BU$42:BU67)/$BV$40)) -> 0.008774475096 | BW67: 0.002971487604 | BX67: =IF($BY$12<3,BV67,SUM($BZ$42:BZ67)/$BX$40) -> 0.008774475096 | BY67: 2.5 | BZ67: 0.001188595041 | CA67: 26 | CB67: 3 | CC67: 63.41640786 | CD67: 26 | CQ67: 66 | CR67: =MOD(CR66*10000013,1) -> 0.9508005064 | CT67: -999 | CU67: -999
BU68: 0 | BV68: =IF($BY$12=1,NORMDIST(BY68,$Y$6,$Y$8,TRUE),IF($BY$12=2,IF(BY68<=$BX$31,0,IF(BY68>=$BX$32,1,(BY68-$BX$31)*$BX$33)),SUM($BU$42:BU68)/$BV$40)) -> 0.00889404263 | BW68: 0.003127224648 | BX68: =IF($BY$12<3,BV68,SUM($BZ$42:BZ68)/$BX$40) -> 0.00889404263 | BY68: 2.6 | BZ68: 0.001202778711 | CA68: 26 | CB68: 4 | CC68: 67.88854382 | CD68: 26 | CQ68: 67 | CR68: 0.424387401 | CT68: -999 | CU68: -999
BU69: 0 | BV69: =IF($BY$12=1,NORMDIST(BY69,$Y$6,$Y$8,TRUE),IF($BY$12=2,IF(BY69<=$BX$31,0,IF(BY69>=$BX$32,1,(BY69-$BX$31)*$BX$33)),SUM($BU$42:BU69)/$BV$40)) -> 0.009015035465 | BW69: 0.003286173261 | BX69: =IF($BY$12<3,BV69,SUM($BZ$42:BZ69)/$BX$40) -> 0.009015035465 | BY69: 2.7 | BZ69: 0.001217101208 | CA69: 26 | CB69: 5 | CC69: 72.36067977 | CD69: 26 | CQ69: 68 | CR69: 0.526734842 | CT69: -999 | CU69: -999
BU70: 0 | BV70: =IF($BY$12=1,NORMDIST(BY70,$Y$6,$Y$8,TRUE),IF($BY$12=2,IF(BY70<=$BX$31,0,IF(BY70>=$BX$32,1,(BY70-$BX$31)*$BX$33)),SUM($BU$42:BU70)/$BV$40)) -> 0.009137467531 | BW70: 0.003448377703 | BX70: =IF($BY$12<3,BV70,SUM($BZ$42:BZ70)/$BX$40) -> 0.009137467531 | BY70: 2.8 | BZ70: 0.001231563465 | CA70: 26 | CQ70: 69 | CR70: 0.2674278524 | CT70: -999 | CU70: -999
BU71: 0 | BV71: =IF($BY$12=1,NORMDIST(BY71,$Y$6,$Y$8,TRUE),IF($BY$12=2,IF(BY71<=$BX$31,0,IF(BY71>=$BX$32,1,(BY71-$BX$31)*$BX$33)),SUM($BU$42:BU71)/$BV$40)) -> 0.009261352848 | BW71: 0.003613882609 | BX71: =IF($BY$12<3,BV71,SUM($BZ$42:BZ71)/$BX$40) -> 0.009261352848 | BY71: 2.9 | BZ71: 0.001246166417 | CA71: 26 | CQ71: 70 | CR71: 0.0003350358456 | CT71: -999 | CU71: -999
BU72: 0 | BV72: =IF($BY$12=1,NORMDIST(BY72,$Y$6,$Y$8,TRUE),IF($BY$12=2,IF(BY72<=$BX$31,0,IF(BY72>=$BX$32,1,(BY72-$BX$31)*$BX$33)),SUM($BU$42:BU72)/$BV$40)) -> 0.009386705535 | BW72: 0.003782732987 | BX72: =IF($BY$12<3,BV72,SUM($BZ$42:BZ72)/$BX$40) -> 0.009386705535 | BY72: 3 | BZ72: 0.001260910996 | CA72: 26 | CQ72: 71 | CR72: 0.3628118392 | CT72: -999 | CU72: -999
BU73: 0 | BV73: =IF($BY$12=1,NORMDIST(BY73,$Y$6,$Y$8,TRUE),IF($BY$12=2,IF(BY73<=$BX$31,0,IF(BY73>=$BX$32,1,(BY73-$BX$31)*$BX$33)),SUM($BU$42:BU73)/$BV$40)) -> 0.0095135398 | BW73: 0.003954974223 | BX73: =IF($BY$12<3,BV73,SUM($BZ$42:BZ73)/$BX$40) -> 0.0095135398 | BY73: 3.1 | BZ73: 0.001275798137 | CA73: 26 | CQ73: 72 | CR73: 0.1086339783 | CT73: -999 | CU73: -999
BU74: 0 | BV74: =IF($BY$12=1,NORMDIST(BY74,$Y$6,$Y$8,TRUE),IF($BY$12=2,IF(BY74<=$BX$31,0,IF(BY74>=$BX$32,1,(BY74-$BX$31)*$BX$33)),SUM($BU$42:BU74)/$BV$40)) -> 0.009641869945 | BW74: 0.004130652075 | BX74: =IF($BY$12<3,BV74,SUM($BZ$42:BZ74)/$BX$40) -> 0.009641869945 | BY74: 3.2 | BZ74: 0.001290828774 | CA74: 26 | CQ74: 73 | CR74: 0.1951651778 | CT74: -999 | CU74: -999
BU75: 0 | BV75: =IF($BY$12=1,NORMDIST(BY75,$Y$6,$Y$8,TRUE),IF($BY$12=2,IF(BY75<=$BX$31,0,IF(BY75>=$BX$32,1,(BY75-$BX$31)*$BX$33)),SUM($BU$42:BU75)/$BV$40)) -> 0.009771710369 | BW75: 0.004309812677 | BX75: =IF($BY$12<3,BV75,SUM($BZ$42:BZ75)/$BX$40) -> 0.009771710369 | BY75: =BY74+$BZ$1 -> 3.3 | BZ75: 0.001306003841 | CA75: 26 | CQ75: 74 | CR75: 0.3152194303 | CT75: -999 | CU75: -999
BU76: 0 | BV76: =IF($BY$12=1,NORMDIST(BY76,$Y$6,$Y$8,TRUE),IF($BY$12=2,IF(BY76<=$BX$31,0,IF(BY76>=$BX$32,1,(BY76-$BX$31)*$BX$33)),SUM($BU$42:BU76)/$BV$40)) -> 0.009903075559 | BW76: 0.004492502535 | BX76: =IF($BY$12<3,BV76,SUM($BZ$42:BZ76)/$BX$40) -> 0.009903075559 | BY76: 3.4 | BZ76: 0.001321324275 | CA76: 26 | CQ76: 75 | CR76: 0.4003816899 | CT76: -999 | CU76: -999
BU77: 0 | BV77: =IF($BY$12=1,NORMDIST(BY77,$Y$6,$Y$8,TRUE),IF($BY$12=2,IF(BY77<=$BX$31,0,IF(BY77>=$BX$32,1,(BY77-$BX$31)*$BX$33)),SUM($BU$42:BU77)/$BV$40)) -> 0.0100359801 | BW77: 0.00467876853 | BX77: =IF($BY$12<3,BV77,SUM($BZ$42:BZ77)/$BX$40) -> 0.0100359801 | BY77: 3.5 | BZ77: 0.001336791009 | CA77: 26 | CQ77: 76 | CR77: 0.10387416 | CT77: -999 | CU77: -999
BU78: 0 | BV78: =IF($BY$12=1,NORMDIST(BY78,$Y$6,$Y$8,TRUE),IF($BY$12=2,IF(BY78<=$BX$31,0,IF(BY78>=$BX$32,1,(BY78-$BX$31)*$BX$33)),SUM($BU$42:BU78)/$BV$40)) -> 0.01017043867 | BW78: 0.004868657918 | BX78: =IF($BY$12<3,BV78,SUM($BZ$42:BZ78)/$BX$40) -> 0.01017043867 | BY78: 3.6 | BZ78: 0.001352404977 | CA78: 26 | CQ78: 77 | CR78: 0.9501324799 | CT78: -999 | CU78: -999
BU79: 0 | BV79: =IF($BY$12=1,NORMDIST(BY79,$Y$6,$Y$8,TRUE),IF($BY$12=2,IF(BY79<=$BX$31,0,IF(BY79>=$BX$32,1,(BY79-$BX$31)*$BX$33)),SUM($BU$42:BU79)/$BV$40)) -> 0.01030646603 | BW79: 0.005062218328 | BX79: =IF($BY$12<3,BV79,SUM($BZ$42:BZ79)/$BX$40) -> 0.01030646603 | BY79: 3.7 | BZ79: 0.001368167116 | CA79: 26 | CQ79: 78 | CR79: 0.1506340485 | CT79: -999 | CU79: -999
BU80: 0 | BV80: =IF($BY$12=1,NORMDIST(BY80,$Y$6,$Y$8,TRUE),IF($BY$12=2,IF(BY80<=$BX$31,0,IF(BY80>=$BX$32,1,(BY80-$BX$31)*$BX$33)),SUM($BU$42:BU80)/$BV$40)) -> 0.01044407706 | BW80: 0.005259497758 | BX80: =IF($BY$12<3,BV80,SUM($BZ$42:BZ80)/$BX$40) -> 0.01044407706 | BY80: 3.8 | BZ80: 0.001384078357 | CA80: 26 | CQ80: 79 | CR80: 0.443308806 | CT80: -999 | CU80: -999
BU81: 0 | BV81: =IF($BY$12=1,NORMDIST(BY81,$Y$6,$Y$8,TRUE),IF($BY$12=2,IF(BY81<=$BX$31,0,IF(BY81>=$BX$32,1,(BY81-$BX$31)*$BX$33)),SUM($BU$42:BU81)/$BV$40)) -> 0.01058328671 | BW81: 0.005460544584 | BX81: =IF($BY$12<3,BV81,SUM($BZ$42:BZ81)/$BX$40) -> 0.01058328671 | BY81: 3.9 | BZ81: 0.001400139637 | CA81: 26 | CQ81: 80 | CR81: 0.8234829139 | CT81: -999 | CU81: -999
BU82: 0 | BV82: =IF($BY$12=1,NORMDIST(BY82,$Y$6,$Y$8,TRUE),IF($BY$12=2,IF(BY82<=$BX$31,0,IF(BY82>=$BX$32,1,(BY82-$BX$31)*$BX$33)),SUM($BU$42:BU82)/$BV$40)) -> 0.01072411002 | BW82: 0.005665407548 | BX82: =IF($BY$12<3,BV82,SUM($BZ$42:BZ82)/$BX$40) -> 0.01072411002 | BY82: 4 | BZ82: 0.001416351887 | CA82: 26 | CQ82: 81 | CR82: 0.8442422953 | CT82: -999 | CU82: -999
BU83: 0 | BV83: =IF($BY$12=1,NORMDIST(BY83,$Y$6,$Y$8,TRUE),IF($BY$12=2,IF(BY83<=$BX$31,0,IF(BY83>=$BX$32,1,(BY83-$BX$31)*$BX$33)),SUM($BU$42:BU83)/$BV$40)) -> 0.01086656215 | BW83: 0.005874135768 | BX83: =IF($BY$12<3,BV83,SUM($BZ$42:BZ83)/$BX$40) -> 0.01086656215 | BY83: 4.1 | BZ83: 0.001432716041 | CA83: 26 | CQ83: 82 | CR83: 0.9276528042 | CT83: -999 | CU83: -999
BU84: 0 | BV84: =IF($BY$12=1,NORMDIST(BY84,$Y$6,$Y$8,TRUE),IF($BY$12=2,IF(BY84<=$BX$31,0,IF(BY84>=$BX$32,1,(BY84-$BX$31)*$BX$33)),SUM($BU$42:BU84)/$BV$40)) -> 0.01101065832 | BW84: 0.006086778729 | BX84: =IF($BY$12<3,BV84,SUM($BZ$42:BZ84)/$BX$40) -> 0.01101065832 | BY84: 4.2 | BZ84: 0.001449233031 | CA84: 26 | CQ84: 83 | CR84: 0.1012962516 | CT84: -999 | CU84: -999
BU85: 0 | BV85: =IF($BY$12=1,NORMDIST(BY85,$Y$6,$Y$8,TRUE),IF($BY$12=2,IF(BY85<=$BX$31,0,IF(BY85>=$BX$32,1,(BY85-$BX$31)*$BX$33)),SUM($BU$42:BU85)/$BV$40)) -> 0.01115641388 | BW85: 0.006303386287 | BX85: =IF($BY$12<3,BV85,SUM($BZ$42:BZ85)/$BX$40) -> 0.01115641388 | BY85: 4.3 | BZ85: 0.001465903788 | CA85: 26 | CQ85: 84 | CR85: 0.8332485091 | CT85: -999 | CU85: -999
BU86: 0 | BV86: =IF($BY$12=1,NORMDIST(BY86,$Y$6,$Y$8,TRUE),IF($BY$12=2,IF(BY86<=$BX$31,0,IF(BY86>=$BX$32,1,(BY86-$BX$31)*$BX$33)),SUM($BU$42:BU86)/$BV$40)) -> 0.01130384424 | BW86: 0.006524008666 | BX86: =IF($BY$12<3,BV86,SUM($BZ$42:BZ86)/$BX$40) -> 0.01130384424 | BY86: 4.4 | BZ86: 0.001482729242 | CA86: 26 | CQ86: 85 | CR86: 0.9231718089 | CT86: -999 | CU86: -999
BU87: 0 | BV87: =IF($BY$12=1,NORMDIST(BY87,$Y$6,$Y$8,TRUE),IF($BY$12=2,IF(BY87<=$BX$31,0,IF(BY87>=$BX$32,1,(BY87-$BX$31)*$BX$33)),SUM($BU$42:BU87)/$BV$40)) -> 0.01145296492 | BW87: 0.006748696459 | BX87: =IF($BY$12<3,BV87,SUM($BZ$42:BZ87)/$BX$40) -> 0.01145296492 | BY87: 4.5 | BZ87: 0.001499710324 | CA87: 26 | CQ87: 86 | CR87: 0.09066504054 | CT87: -999 | CU87: -999
BU88: 0 | BV88: =IF($BY$12=1,NORMDIST(BY88,$Y$6,$Y$8,TRUE),IF($BY$12=2,IF(BY88<=$BX$31,0,IF(BY88>=$BX$32,1,(BY88-$BX$31)*$BX$33)),SUM($BU$42:BU88)/$BV$40)) -> 0.01160379152 | BW88: 0.006977500623 | BX88: =IF($BY$12<3,BV88,SUM($BZ$42:BZ88)/$BX$40) -> 0.01160379152 | BY88: 4.6 | BZ88: 0.001516847962 | CA88: 26 | CQ88: 87 | CR88: 0.5840226766 | CT88: -999 | CU88: -999
BU89: 0 | BV89: =IF($BY$12=1,NORMDIST(BY89,$Y$6,$Y$8,TRUE),IF($BY$12=2,IF(BY89<=$BX$31,0,IF(BY89>=$BX$32,1,(BY89-$BX$31)*$BX$33)),SUM($BU$42:BU89)/$BV$40)) -> 0.01175633976 | BW89: 0.007210472484 | BX89: =IF($BY$12<3,BV89,SUM($BZ$42:BZ89)/$BX$40) -> 0.01175633976 | BY89: 4.7 | BZ89: 0.001534143082 | CA89: 26 | CQ89: 88 | CR89: 0.3580168318 | CT89: -999 | CU89: -999
BU90: 0 | BV90: =IF($BY$12=1,NORMDIST(BY90,$Y$6,$Y$8,TRUE),IF($BY$12=2,IF(BY90<=$BX$31,0,IF(BY90>=$BX$32,1,(BY90-$BX$31)*$BX$33)),SUM($BU$42:BU90)/$BV$40)) -> 0.01191062542 | BW90: 0.007447663732 | BX90: =IF($BY$12<3,BV90,SUM($BZ$42:BZ90)/$BX$40) -> 0.01191062542 | BY90: 4.8 | BZ90: 0.001551596611 | CA90: 26 | CQ90: 89 | CR90: 0.9722222295 | CT90: -999 | CU90: -999
BU91: 0 | BV91: =IF($BY$12=1,NORMDIST(BY91,$Y$6,$Y$8,TRUE),IF($BY$12=2,IF(BY91<=$BX$31,0,IF(BY91>=$BX$32,1,(BY91-$BX$31)*$BX$33)),SUM($BU$42:BU91)/$BV$40)) -> 0.01206666439 | BW91: 0.007689126418 | BX91: =IF($BY$12<3,BV91,SUM($BZ$42:BZ91)/$BX$40) -> 0.01206666439 | BY91: 4.9 | BZ91: 0.001569209473 | CA91: 26 | CQ91: 90 | CR91: 0.9335474055 | CT91: -999 | CU91: -999
BU92: 0 | BV92: =IF($BY$12=1,NORMDIST(BY92,$Y$6,$Y$8,TRUE),IF($BY$12=2,IF(BY92<=$BX$31,0,IF(BY92>=$BX$32,1,(BY92-$BX$31)*$BX$33)),SUM($BU$42:BU92)/$BV$40)) -> 0.01222447266 | BW92: 0.007934912959 | BX92: =IF($BY$12<3,BV92,SUM($BZ$42:BZ92)/$BX$40) -> 0.01222447266 | BY92: 5 | BZ92: 0.001586982592 | CA92: 26 | CQ92: 91 | CR92: 0.1913766917 | CT92: -999 | CU92: -999
BU93: 0 | BV93: =IF($BY$12=1,NORMDIST(BY93,$Y$6,$Y$8,TRUE),IF($BY$12=2,IF(BY93<=$BX$31,0,IF(BY93>=$BX$32,1,(BY93-$BX$31)*$BX$33)),SUM($BU$42:BU93)/$BV$40)) -> 0.01238406628 | BW93: 0.00818507613 | BX93: =IF($BY$12<3,BV93,SUM($BZ$42:BZ93)/$BX$40) -> 0.01238406628 | BY93: 5.1 | BZ93: 0.001604916888 | CA93: 26 | CQ93: 92 | CR93: 0.4047382604 | CT93: -999 | CU93: -999
BU94: 0 | BV94: =IF($BY$12=1,NORMDIST(BY94,$Y$6,$Y$8,TRUE),IF($BY$12=2,IF(BY94<=$BX$31,0,IF(BY94>=$BX$32,1,(BY94-$BX$31)*$BX$33)),SUM($BU$42:BU94)/$BV$40)) -> 0.01254546144 | BW94: 0.008439669067 | BX94: =IF($BY$12<3,BV94,SUM($BZ$42:BZ94)/$BX$40) -> 0.01254546144 | BY94: 5.2 | BZ94: 0.001623013282 | CA94: 26 | CQ94: 93 | CR94: 0.8659281638 | CT94: -999 | CU94: -999
BU95: 0 | BV95: =IF($BY$12=1,NORMDIST(BY95,$Y$6,$Y$8,TRUE),IF($BY$12=2,IF(BY95<=$BX$31,0,IF(BY95>=$BX$32,1,(BY95-$BX$31)*$BX$33)),SUM($BU$42:BU95)/$BV$40)) -> 0.01270867437 | BW95: 0.008698745264 | BX95: =IF($BY$12<3,BV95,SUM($BZ$42:BZ95)/$BX$40) -> 0.01270867437 | BY95: 5.3 | BZ95: 0.001641272691 | CA95: 26 | CQ95: 94 | CR95: 0.8945857268 | CT95: -999 | CU95: -999
BU96: 0 | BV96: =IF($BY$12=1,NORMDIST(BY96,$Y$6,$Y$8,TRUE),IF($BY$12=2,IF(BY96<=$BX$31,0,IF(BY96>=$BX$32,1,(BY96-$BX$31)*$BX$33)),SUM($BU$42:BU96)/$BV$40)) -> 0.01287372144 | BW96: 0.008962358572 | BX96: =IF($BY$12<3,BV96,SUM($BZ$42:BZ96)/$BX$40) -> 0.01287372144 | BY96: 5.4 | BZ96: 0.001659696032 | CA96: 26 | CQ96: 95 | CR96: 0.8974412438 | CT96: -999 | CU96: -999
BU97: 0 | BV97: =IF($BY$12=1,NORMDIST(BY97,$Y$6,$Y$8,TRUE),IF($BY$12=2,IF(BY97<=$BX$31,0,IF(BY97>=$BX$32,1,(BY97-$BX$31)*$BX$33)),SUM($BU$42:BU97)/$BV$40)) -> 0.01304061907 | BW97: 0.009230563194 | BX97: =IF($BY$12<3,BV97,SUM($BZ$42:BZ97)/$BX$40) -> 0.01304061907 | BY97: 5.5 | BZ97: 0.001678284217 | CA97: 26 | CQ97: 96 | CR97: 0.1042645406 | CT97: -999 | CU97: -999
BU98: 0 | BV98: =IF($BY$12=1,NORMDIST(BY98,$Y$6,$Y$8,TRUE),IF($BY$12=2,IF(BY98<=$BX$31,0,IF(BY98>=$BX$32,1,(BY98-$BX$31)*$BX$33)),SUM($BU$42:BU98)/$BV$40)) -> 0.01320938381 | BW98: 0.009503413691 | BX98: =IF($BY$12<3,BV98,SUM($BZ$42:BZ98)/$BX$40) -> 0.01320938381 | BY98: 5.6 | BZ98: 0.001697038159 | CA98: 26 | CQ98: 97 | CR98: 0.7614169922 | CS98: =IF(AND($CB$7,$CQ98<=$T$18),IF($BY$12=1,$C$4+$D$4*NORMSINV(CR98),IF($BY$12=2,$CW$8+CR98*$CW$11,VLOOKUP(CR98,$BV$42:$BY$4042,4))),"") ->  | CT98: =IF(AND($CB$4,CS98<>"",$M$4<>""),CS98,-999) -> -999 | CU98: =IF(CT98=-999,-999,0) -> -999
BU99: 0 | BV99: =IF($BY$12=1,NORMDIST(BY99,$Y$6,$Y$8,TRUE),IF($BY$12=2,IF(BY99<=$BX$31,0,IF(BY99>=$BX$32,1,(BY99-$BX$31)*$BX$33)),SUM($BU$42:BU99)/$BV$40)) -> 0.01338003226 | BW99: 0.009780964972 | BX99: =IF($BY$12<3,BV99,SUM($BZ$42:BZ99)/$BX$40) -> 0.01338003226 | BY99: 5.7 | BZ99: 0.001715958767 | CA99: 26 | CQ99: 98 | CR99: 0.8201468866 | CS99: =IF(AND($CB$7,$CQ99<=$T$18),IF($BY$12=1,$C$4+$D$4*NORMSINV(CR99),IF($BY$12=2,$CW$8+CR99*$CW$11,VLOOKUP(CR99,$BV$42:$BY$4042,4))),"") ->  | CT99: =IF(AND($CB$4,CS99<>"",$M$4<>""),CS99,-999) -> -999 | CU99: =IF(CT99=-999,-999,0) -> -999
BU100: 0 | BV100: =IF($BY$12=1,NORMDIST(BY100,$Y$6,$Y$8,TRUE),IF($BY$12=2,IF(BY100<=$BX$31,0,IF(BY100>=$BX$32,1,(BY100-$BX$31)*$BX$33)),SUM($BU$42:BU100)/$BV$40)) -> 0.01355258115 | BW100: 0.0100632723 | BX100: =IF($BY$12<3,BV100,SUM($BZ$42:BZ100)/$BX$40) -> 0.01355258115 | BY100: 5.8 | BZ100: 0.001735046948 | CA100: 26 | CQ100: 99 | CR100: 0.5282279905 | CS100: =IF(AND($CB$7,$CQ100<=$T$18),IF($BY$12=1,$C$4+$D$4*NORMSINV(CR100),IF($BY$12=2,$CW$8+CR100*$CW$11,VLOOKUP(CR100,$BV$42:$BY$4042,4))),"") ->  | CT100: =IF(AND($CB$4,CS100<>"",$M$4<>""),CS100,-999) -> -999 | CU100: =IF(CT100=-999,-999,0) -> -999
BU101: 0 | BV101: =IF($BY$12=1,NORMDIST(BY101,$Y$6,$Y$8,TRUE),IF($BY$12=2,IF(BY101<=$BX$31,0,IF(BY101>=$BX$32,1,(BY101-$BX$31)*$BX$33)),SUM($BU$42:BU101)/$BV$40)) -> 0.01372704727 | BW101: 0.01035039127 | BX101: =IF($BY$12<3,BV101,SUM($BZ$42:BZ101)/$BX$40) -> 0.01372704727 | BY101: 5.9 | BZ101: 0.001754303606 | CA101: 26 | CQ101: 100 | CR101: 0.7718956601 | CS101: =IF(AND($CB$7,$CQ101<=$T$18),IF($BY$12=1,$C$4+$D$4*NORMSINV(CR101),IF($BY$12=2,$CW$8+CR101*$CW$11,VLOOKUP(CR101,$BV$42:$BY$4042,4))),"") ->  | CT101: =IF(AND($CB$4,CS101<>"",$M$4<>""),CS101,-999) -> -999 | CU101: =IF(CT101=-999,-999,0) -> -999
BU102: 0 | BV102: =IF($BY$12=1,NORMDIST(BY102,$Y$6,$Y$8,TRUE),IF($BY$12=2,IF(BY102<=$BX$31,0,IF(BY102>=$BX$32,1,(BY102-$BX$31)*$BX$33)),SUM($BU$42:BU102)/$BV$40)) -> 0.01390344751 | BW102: 0.01064237785 | BX102: =IF($BY$12<3,BV102,SUM($BZ$42:BZ102)/$BX$40) -> 0.01390344751 | BY102: 6 | BZ102: 0.001773729642 | CA102: 26 | CF102: highest | CG102: lowest | CH102: Heap N | CK102: SE heap
BU103: 0 | BV103: =IF($BY$12=1,NORMDIST(BY103,$Y$6,$Y$8,TRUE),IF($BY$12=2,IF(BY103<=$BX$31,0,IF(BY103>=$BX$32,1,(BY103-$BX$31)*$BX$33)),SUM($BU$42:BU103)/$BV$40)) -> 0.01408179887 | BW103: 0.01093928834 | BX103: =IF($BY$12<3,BV103,SUM($BZ$42:BZ103)/$BX$40) -> 0.01408179887 | BY103: 6.1 | BZ103: 0.001793325957 | CA103: 26 | CB103: Display mean heap | CD103: =CD105 -> 45.408 | CE103: =IF(AND($CB$7,$CB$4),CE105,NA()) -> 22.645 | CF103: =MIN(CF105:CF704) -> 22.645 | CG103: =MAX(CG105:CG704) -> 25.695 | CH103: =SUM(CH105:CH4042) -> 39 | CK103: =IF(CH103>1,STDEV(CK105:CK4042),"") -> 4.215376169
BU104: 0 | BV104: =IF($BY$12=1,NORMDIST(BY104,$Y$6,$Y$8,TRUE),IF($BY$12=2,IF(BY104<=$BX$31,0,IF(BY104>=$BX$32,1,(BY104-$BX$31)*$BX$33)),SUM($BU$42:BU104)/$BV$40)) -> 0.01426211841 | BW104: 0.01124117936 | BX104: =IF($BY$12<3,BV104,SUM($BZ$42:BZ104)/$BX$40) -> 0.01426211841 | BY104: 6.2 | BZ104: 0.001813093445 | CA104: 26 | CB104: xticks | CC104: yticks | CD104: x for display | CE104: y for display | CF104: y and 99 | CG104: y and 0 | CH104: In heap? | CI104: y | CJ104: y disp | CK104: X in heap | CM104: =STDEV(CM101:CM103) -> 
BU105: 0 | BV105: =IF($BY$12=1,NORMDIST(BY105,$Y$6,$Y$8,TRUE),IF($BY$12=2,IF(BY105<=$BX$31,0,IF(BY105>=$BX$32,1,(BY105-$BX$31)*$BX$33)),SUM($BU$42:BU105)/$BV$40)) -> 0.0144444233 | BW105: 0.0115481079 | BX105: =IF($BY$12<3,BV105,SUM($BZ$42:BZ105)/$BX$40) -> 0.0144444233 | BY105: 6.3 | BZ105: 0.001833033 | CA105: 26 | CB105: =IF(M4="","",ROUND(M4/$P$24,0)) -> 33 | CC105: =IF(CB105="",NA(),COUNTIF(CB105:$CB$704,CB105)) -> 6 | CD105: =IF(CB105<>"",CB105*$P$24,NA()) -> 45.408 | CE105: =IF(AND($CB$7,$CD$2,$CD$1),26+$P$23/2-CC105*$P$23,NA()) -> 22.645 | CF105: =IF(ISNA(CJ105),99,CJ105) -> 99 | CG105: =IF(ISNA(CJ105),0,CJ105) -> 0 | CH105: =IF(ISNA(CE105),0,IF(CI105>(CE105-$P$23),1,0)) -> 0 | CI105: 1 | CJ105: =IF(CH105=1,CE105,NA()) ->  | CK105: =IF(CH105=1,M4,"") -> 
BU106: 0 | BV106: =IF($BY$12=1,NORMDIST(BY106,$Y$6,$Y$8,TRUE),IF($BY$12=2,IF(BY106<=$BX$31,0,IF(BY106>=$BX$32,1,(BY106-$BX$31)*$BX$33)),SUM($BU$42:BU106)/$BV$40)) -> 0.01462873078 | BW106: 0.01186013128 | BX106: =IF($BY$12<3,BV106,SUM($BZ$42:BZ106)/$BX$40) -> 0.01462873078 | BY106: 6.4 | BZ106: =IF($BZ$5,IF($BY$12=1,NORMDIST(BY106,$Y$6,$Y$8,FALSE),IF($BY$12=2,IF(AND(BY106>=$BX$31,BY106<=$BX$32),$BX$33,0),IF(BY106<=$BX$13,0,NORMDIST(LN((BY106-$BX$13)/$BX$12),0,$BW$8,FALSE)/((BY106-$BX$13)/$BX$12)))),-999) -> 0.001853145512 | CA106: 26 | CB106: =IF(M5="","",ROUND(M5/$P$24,0)) -> 37 | CC106: =IF(CB106="",NA(),COUNTIF(CB106:$CB$704,CB106)) -> 6 | CD106: =IF(CB106<>"",CB106*$P$24,NA()) -> 50.912 | CE106: =IF(AND($CB$7,$CD$2,$CD$1),26+$P$23/2-CC106*$P$23,NA()) -> 22.645 | CF106: =IF(ISNA(CJ106),99,CJ106) -> 99 | CG106: =IF(ISNA(CJ106),0,CJ106) -> 0 | CH106: =IF(ISNA(CE106),0,IF(CI106>(CE106-$P$23),1,0)) -> 0 | CI106: 2 | CJ106: =IF(CH106=1,CE106,NA()) ->  | CK106: =IF(CH106=1,M5,"") -> 
BU107: =IF($BY$12<3,0,IF(BY107<=$BX$13,0,NORMDIST(LN((BY107-$BX$13)/$BX$12),0,$BW$8,FALSE)/((BY107-$BX$13)/$BX$12))) -> 0 | BV107: =IF($BY$12=1,NORMDIST(BY107,$Y$6,$Y$8,TRUE),IF($BY$12=2,IF(BY107<=$BX$31,0,IF(BY107>=$BX$32,1,(BY107-$BX$31)*$BX$33)),SUM($BU$42:BU107)/$BV$40)) -> 0.01481505819 | BW107: =BY107*BZ107 -> 0.01217730714 | BX107: =IF($BY$12<3,BV107,SUM($BZ$42:BZ107)/$BX$40) -> 0.01481505819 | BY107: =BY106+$BZ$1 -> 6.5 | BZ107: 0.001873431868 | CA107: =IF(AND($CD$1,$CD$3),26-$CD$40*NORMDIST(BY107,$Y$6,$Y$8/SQRT($T$18),FALSE),-999) -> 26 | CB107: 35 | CC107: =IF(CB107="",NA(),COUNTIF(CB107:$CB$704,CB107)) -> 11 | CD107: 48.16 | CE107: 19.595 | CF107: 99 | CG107: 0 | CH107: 0 | CI107: 3
BU108: 0 | BV108: =IF($BY$12=1,NORMDIST(BY108,$Y$6,$Y$8,TRUE),IF($BY$12=2,IF(BY108<=$BX$31,0,IF(BY108>=$BX$32,1,(BY108-$BX$31)*$BX$33)),SUM($BU$42:BU108)/$BV$40)) -> 0.01500342297 | BW108: 0.01249969347 | BX108: =IF($BY$12<3,BV108,SUM($BZ$42:BZ108)/$BX$40) -> 0.01500342297 | BY108: 6.6 | BZ108: 0.001893892949 | CA108: 26 | CB108: 33 | CC108: =IF(CB108="",NA(),COUNTIF(CB108:$CB$704,CB108)) -> 5 | CD108: 45.408 | CE108: 23.255 | CF108: 99 | CG108: 0 | CH108: 0 | CI108: 4
BU109: 0 | BV109: =IF($BY$12=1,NORMDIST(BY109,$Y$6,$Y$8,TRUE),IF($BY$12=2,IF(BY109<=$BX$31,0,IF(BY109>=$BX$32,1,(BY109-$BX$31)*$BX$33)),SUM($BU$42:BU109)/$BV$40)) -> 0.01519384264 | BW109: 0.01282734857 | BX109: =IF($BY$12<3,BV109,SUM($BZ$42:BZ109)/$BX$40) -> 0.01519384264 | BY109: 6.7 | BZ109: 0.001914529637 | CA109: 26 | CB109: 30 | CC109: =IF(CB109="",NA(),COUNTIF(CB109:$CB$704,CB109)) -> 4 | CD109: 41.28 | CE109: 23.865 | CF109: 99 | CG109: 0 | CH109: 0 | CI109: 5
BU110: 0 | BV110: =IF($BY$12=1,NORMDIST(BY110,$Y$6,$Y$8,TRUE),IF($BY$12=2,IF(BY110<=$BX$31,0,IF(BY110>=$BX$32,1,(BY110-$BX$31)*$BX$33)),SUM($BU$42:BU110)/$BV$40)) -> 0.01538633478 | BW110: 0.01316033109 | BX110: =IF($BY$12<3,BV110,SUM($BZ$42:BZ110)/$BX$40) -> 0.01538633478 | BY110: 6.8 | BZ110: 0.001935342807 | CA110: 26 | CB110: 34 | CC110: =IF(CB110="",NA(),COUNTIF(CB110:$CB$704,CB110)) -> 8 | CD110: 46.784 | CE110: 21.425 | CF110: 99 | CG110: 0 | CH110: 0 | CI110: 6
BU111: 0 | BV111: =IF($BY$12=1,NORMDIST(BY111,$Y$6,$Y$8,TRUE),IF($BY$12=2,IF(BY111<=$BX$31,0,IF(BY111>=$BX$32,1,(BY111-$BX$31)*$BX$33)),SUM($BU$42:BU111)/$BV$40)) -> 0.01558091711 | BW111: 0.01349869999 | BX111: =IF($BY$12<3,BV111,SUM($BZ$42:BZ111)/$BX$40) -> 0.01558091711 | BY111: 6.9 | BZ111: 0.001956333332 | CA111: 26 | CB111: 41 | CC111: =IF(CB111="",NA(),COUNTIF(CB111:$CB$704,CB111)) -> 4 | CD111: 56.416 | CE111: 23.865 | CF111: 99 | CG111: 0 | CH111: 0 | CI111: 7
AN112: Upper limit of X axis | AO112: 99.9 | BU112: 0 | BV112: =IF($BY$12=1,NORMDIST(BY112,$Y$6,$Y$8,TRUE),IF($BY$12=2,IF(BY112<=$BX$31,0,IF(BY112>=$BX$32,1,(BY112-$BX$31)*$BX$33)),SUM($BU$42:BU112)/$BV$40)) -> 0.01577760739 | BW112: 0.01384251456 | BX112: =IF($BY$12<3,BV112,SUM($BZ$42:BZ112)/$BX$40) -> 0.01577760739 | BY112: 7 | BZ112: 0.001977502079 | CA112: 26 | CB112: 34 | CC112: =IF(CB112="",NA(),COUNTIF(CB112:$CB$704,CB112)) -> 7 | CD112: 46.784 | CE112: 22.035 | CF112: 99 | CG112: 0 | CH112: 0 | CI112: 8
AM113: To fill population curve with data points | AT113: X adjust | AU113: -0.5 | BU113: 0 | BV113: =IF($BY$12=1,NORMDIST(BY113,$Y$6,$Y$8,TRUE),IF($BY$12=2,IF(BY113<=$BX$31,0,IF(BY113>=$BX$32,1,(BY113-$BX$31)*$BX$33)),SUM($BU$42:BU113)/$BV$40)) -> 0.01597642349 | BW113: 0.01419183439 | BX113: =IF($BY$12<3,BV113,SUM($BZ$42:BZ113)/$BX$40) -> 0.01597642349 | BY113: 7.1 | BZ113: 0.001998849914 | CA113: 26 | CB113: 34 | CC113: =IF(CB113="",NA(),COUNTIF(CB113:$CB$704,CB113)) -> 6 | CD113: 46.784 | CE113: 22.645 | CF113: 99 | CG113: 0 | CH113: 0 | CI113: 9
AM114: rand | AN114: rand | AP114: x | AQ114: y | AR114: rand | AS114: rand | AU114: x | AV114: y | AW114: rand | AX114: rand | AZ114: x | BA114: y | BB114: rand | BC114: rand | BE114: x | BF114: y | BU114: 0 | BV114: =IF($BY$12=1,NORMDIST(BY114,$Y$6,$Y$8,TRUE),IF($BY$12=2,IF(BY114<=$BX$31,0,IF(BY114>=$BX$32,1,(BY114-$BX$31)*$BX$33)),SUM($BU$42:BU114)/$BV$40)) -> 0.01617738337 | BW114: 0.01454671941 | BX114: =IF($BY$12<3,BV114,SUM($BZ$42:BZ114)/$BX$40) -> 0.01617738337 | BY114: 7.2 | BZ114: 0.002020377696 | CA114: 26 | CB114: 38 | CC114: =IF(CB114="",NA(),COUNTIF(CB114:$CB$704,CB114)) -> 5 | CD114: 52.288 | CE114: 23.255 | CF114: 99 | CG114: 0 | CH114: 0 | CI114: 10
AM115: =P18 -> 0.3616096414 | AN115: =MOD(AM115*10000013,1) -> 0.1149676298 | AO115: =IF(VLOOKUP(AM115,$BX$42:$BY$4042,2)>=$AO$112,NA(),VLOOKUP(AM115,$BX$42:$BY$4042,2)) -> 42.9 | AP115: =IF(AND(AO115<100,$P$16),AO115+AM116+$AU$113,NA()) -> 43.19237049 | AQ115: =IF(AN115*VLOOKUP(AO115,$BY$42:$BZ$1042,2)<VLOOKUP(AO115,$BY$42:$BZ$1042,2)-$BZ$40/$CB$40,AN115*VLOOKUP(AO115,$BY$42:$BZ$1042,2),NA()) -> 0.002153226256 | AR115: =MOD(AM515*10000013,1) -> 0.2397646643 | AS115: =MOD(AR115*10000013,1) -> 0.7601620145 | AT115: =IF(VLOOKUP(AR115,$BX$42:$BY$4042,2)>=$AO$112,NA(),VLOOKUP(AR115,$BX$42:$BY$4042,2)) -> 35.8 | AU115: =IF(AND(AT115<100,$P$16),AT115+AR116+$AU$113,NA()) -> 35.32724827 | AV115: =IF(AS115*VLOOKUP(AT115,$BY$42:$BZ$1042,2)<VLOOKUP(AT115,$BY$42:$BZ$1042,2)-$BZ$40/$CB$40,AS115*VLOOKUP(AT115,$BY$42:$BZ$1042,2),NA()) -> 0.01178480254 | AW115: =MOD(AR515*10000013,1) -> 0.7822171636 | AX115: =MOD(AW115*10000013,1) -> 0.8047488965 | AY115: =IF(VLOOKUP(AW115,$BX$42:$BY$4042,2)>=$AO$112,NA(),VLOOKUP(AW115,$BX$42:$BY$4042,2)) -> 65.5 | AZ115: =IF(AND(AY115<100,$P$16),AY115+AW116+$AU$113,NA()) -> 65.42682974 | BA115: =IF(AX115*VLOOKUP(AY115,$BY$42:$BZ$1042,2)<VLOOKUP(AY115,$BY$42:$BZ$1042,2)-$BZ$40/$CB$40,AX115*VLOOKUP(AY115,$BY$42:$BZ$1042,2),NA()) -> 0.01188820809 | BB115: =MOD(AW515*10000013,1) -> 0.2219589986 | BC115: =MOD(BB115*10000013,1) -> 0.8713740595 | BD115: =IF(VLOOKUP(BB115,$BX$42:$BY$4042,2)>=$AO$112,NA(),VLOOKUP(BB115,$BX$42:$BY$4042,2)) -> 34.6 | BE115: =IF(AND(BD115<100,$P$16),BD115+BB116+$AU$113,NA()) -> 35.02254785 | BF115: =IF(BC115*VLOOKUP(BD115,$BY$42:$BZ$1042,2)<VLOOKUP(BD115,$BY$42:$BZ$1042,2)-$BZ$40/$CB$40,BC115*VLOOKUP(BD115,$BY$42:$BZ$1042,2),NA()) -> 0.01292224878 | BU115: 0 | BV115: =IF($BY$12=1,NORMDIST(BY115,$Y$6,$Y$8,TRUE),IF($BY$12=2,IF(BY115<=$BX$31,0,IF(BY115>=$BX$32,1,(BY115-$BX$31)*$BX$33)),SUM($BU$42:BU115)/$BV$40)) -> 0.01638050506 | BW115: 0.01490722985 | BX115: =IF($BY$12<3,BV115,SUM($BZ$42:BZ115)/$BX$40) -> 0.01638050506 | BY115: 7.3 | BZ115: 0.002042086281 | CA115: 26 | CB115: 35 | CC115: =IF(CB115="",NA(),COUNTIF(CB115:$CB$704,CB115)) -> 10 | CD115: 48.16 | CE115: 20.205 | CF115: 99 | CG115: 0 | CH115: 0 | CI115: 11
AM116: =MOD(AN115*10000013,1) -> 0.7923704893 | AN116: 0.1941446103 | AO116: 66.2 | AP116: 66.32703555 | AQ116: 0.002789556126 | AR116: =MOD(AS115*10000013,1) -> 0.02724826708 | AS116: 0.02507107332 | AT116: 11.5 | AU116: 11.05915884 | AV116: 7.841276214e-05 | AW116: =MOD(AX115*10000013,1) -> 0.4268297441 | AX116: 0.9900904037 | AY116: 46.3 | AZ116: 46.7082336 | BA116: =IF(AX116*VLOOKUP(AY116,$BY$42:$BZ$1042,2)<VLOOKUP(AY116,$BY$42:$BZ$1042,2)-$BZ$40/$CB$40,AX116*VLOOKUP(AY116,$BY$42:$BZ$1042,2),NA()) ->  | BB116: =MOD(BC115*10000013,1) -> 0.9225478508 | BC116: 0.5007004328 | BD116: 78.4 | BE116: 78.7371777 | BF116: 0.003644201146 | BU116: 0 | BV116: =IF($BY$12=1,NORMDIST(BY116,$Y$6,$Y$8,TRUE),IF($BY$12=2,IF(BY116<=$BX$31,0,IF(BY116>=$BX$32,1,(BY116-$BX$31)*$BX$33)),SUM($BU$42:BU116)/$BV$40)) -> 0.01658580668 | BW116: 0.01527342626 | BX116: =IF($BY$12<3,BV116,SUM($BZ$42:BZ116)/$BX$40) -> 0.01658580668 | BY116: 7.4 | BZ116: 0.002063976521 | CA116: 26 | CB116: 35 | CC116: =IF(CB116="",NA(),COUNTIF(CB116:$CB$704,CB116)) -> 9 | CD116: 48.16 | CE116: 20.815 | CF116: 99 | CG116: 0 | CH116: 0 | CI116: 12
AM117: 0.627035547 | AN117: 0.6219406463 | AO117: 56.4 | AP117: 56.44843422 | AQ117: 0.01178672452 | AR117: 0.05915883556 | AS117: 0.1246656962 | AT117: 18.7 | AU117: 18.78239311 | AV117: 0.000730776521 | AW117: 0.9082336016 | AX117: 0.823036138 | AY117: 76.5 | AZ117: 76.07915281 | BA117: 0.006824484472 | BB117: 0.8371776976 | BC117: 0.8590013869 | BD117: 69.6 | BE117: 69.1361248 | BF117: 0.01060048473 | BU117: 0 | BV117: =IF($BY$12=1,NORMDIST(BY117,$Y$6,$Y$8,TRUE),IF($BY$12=2,IF(BY117<=$BX$31,0,IF(BY117>=$BX$32,1,(BY117-$BX$31)*$BX$33)),SUM($BU$42:BU117)/$BV$40)) -> 0.01679330645 | BW117: 0.01564536947 | BX117: =IF($BY$12<3,BV117,SUM($BZ$42:BZ117)/$BX$40) -> 0.01679330645 | BY117: 7.5 | BZ117: 0.002086049263 | CA117: 26 | CB117: 34 | CC117: =IF(CB117="",NA(),COUNTIF(CB117:$CB$704,CB117)) -> 5 | CD117: 46.784 | CE117: 23.255 | CF117: 99 | CG117: 0 | CH117: 0 | CI117: 13
AM118: 0.5484342165 | AN118: 0.2949361242 | AO118: 52.4 | AP118: 51.97652353 | AQ118: 0.005840918128 | AR118: 0.5823931135 | AS118: 0.7063476928 | AT118: 54.1 | AU118: 53.71009846 | AV118: 0.01379662907 | AW118: 0.07915281132 | AX118: 0.1421729065 | AY118: 21.7 | AZ118: 22.11372563 | BA118: 0.001042123712 | BB118: 0.0361247994 | BC118: 0.4636280723 | BD118: 14 | BE118: 14.25008107 | BF118: 0.001830175485 | BU118: 0 | BV118: =IF($BY$12=1,NORMDIST(BY118,$Y$6,$Y$8,TRUE),IF($BY$12=2,IF(BY118<=$BX$31,0,IF(BY118>=$BX$32,1,(BY118-$BX$31)*$BX$33)),SUM($BU$42:BU118)/$BV$40)) -> 0.01700302265 | BW118: 0.01602312065 | BX118: =IF($BY$12<3,BV118,SUM($BZ$42:BZ118)/$BX$40) -> 0.01700302265 | BY118: 7.6 | BZ118: 0.002108305348 | CA118: 26 | CB118: 39 | CC118: =IF(CB118="",NA(),COUNTIF(CB118:$CB$704,CB118)) -> 5 | CD118: 53.664 | CE118: 23.255 | CF118: 99 | CG118: 0 | CH118: 0 | CI118: 14
AM119: 0.07652353123 | AN119: 0.3070889451 | AO119: 21.4 | AP119: 21.34276597 | AQ119: 0.002203433052 | AR119: 0.1100984551 | AS119: 0.9822924323 | AT119: 25.4 | AU119: 24.99318161 | AW119: 0.9137256332 | AX119: 0.2101750411 | AY119: 77.2 | AZ119: 76.84336877 | BA119: 0.001662745091 | BB119: 0.750081066 | BC119: 0.4114757068 | BD119: 63.4 | BE119: 63.31763941 | BF119: 0.006557629468 | BU119: 0 | BV119: =IF($BY$12=1,NORMDIST(BY119,$Y$6,$Y$8,TRUE),IF($BY$12=2,IF(BY119<=$BX$31,0,IF(BY119>=$BX$32,1,(BY119-$BX$31)*$BX$33)),SUM($BU$42:BU119)/$BV$40)) -> 0.01721497366 | BW119: 0.01640674123 | BX119: =IF($BY$12<3,BV119,SUM($BZ$42:BZ119)/$BX$40) -> 0.01721497366 | BY119: 7.7 | BZ119: 0.002130745615 | CA119: 26 | CB119: 35 | CC119: =IF(CB119="",NA(),COUNTIF(CB119:$CB$704,CB119)) -> 8 | CD119: 48.16 | CE119: 21.425 | CF119: 99 | CG119: 0 | CH119: 0 | CI119: 15
AM120: 0.4427659698 | AN120: 0.4537882842 | AO120: 47.1 | AP120: 47.3413712 | AQ120: 0.008957108369 | AR120: 0.09318161383 | AS120: 0.3496881016 | AT120: 23.5 | AU120: 23.56154409 | AV120: 0.002899558001 | AW120: 0.1433687694 | AX120: 0.5581647493 | AY120: 28.6 | AZ120: 28.84908694 | BA120: 0.006281026118 | BB120: 0.4176394083 | BC120: 0.5119181462 | BD120: 45.8 | BE120: 45.41656815 | BF120: 0.009988594926 | BU120: 0 | BV120: =IF($BY$12=1,NORMDIST(BY120,$Y$6,$Y$8,TRUE),IF($BY$12=2,IF(BY120<=$BX$31,0,IF(BY120>=$BX$32,1,(BY120-$BX$31)*$BX$33)),SUM($BU$42:BU120)/$BV$40)) -> 0.01742917794 | BW120: 0.01679629298 | BX120: =IF($BY$12<3,BV120,SUM($BZ$42:BZ120)/$BX$40) -> 0.01742917794 | BY120: 7.8 | BZ120: 0.002153370894 | CA120: 26 | CB120: 34 | CC120: =IF(CB120="",NA(),COUNTIF(CB120:$CB$704,CB120)) -> 4 | CD120: 46.784 | CE120: 23.865 | CF120: 99 | CG120: 0 | CH120: 0 | CI120: 16
AM121: 0.7413712032 | AN121: 0.6699649431 | AO121: 62.9 | AP121: 62.54035567 | AQ121: 0.01085409123 | AR121: 0.5615440942 | AS121: 0.2424202748 | AT121: 53 | AU121: 53.39910657 | AV121: 0.004781489389 | AW121: 0.7490869351 | AX121: 0.08886152878 | AY121: 63.4 | AZ121: 63.34304024 | BA121: 0.00141617347 | BB121: 0.1165681519 | BC121: 0.03400026634 | BD121: 26.1 | BE121: 25.70543701 | BF121: 0.0003321013955 | BU121: 0 | BV121: =IF($BY$12=1,NORMDIST(BY121,$Y$6,$Y$8,TRUE),IF($BY$12=2,IF(BY121<=$BX$31,0,IF(BY121>=$BX$32,1,(BY121-$BX$31)*$BX$33)),SUM($BU$42:BU121)/$BV$40)) -> 0.01764565403 | BW121: 0.01719183792 | BX121: =IF($BY$12<3,BV121,SUM($BZ$42:BZ121)/$BX$40) -> 0.01764565403 | BY121: 7.9 | BZ121: 0.002176182015 | CA121: 26 | CB121: 30 | CC121: =IF(CB121="",NA(),COUNTIF(CB121:$CB$704,CB121)) -> 3 | CD121: 41.28 | CE121: 24.475 | CF121: 99 | CG121: 0 | CH121: 0 | CI121: 17
AM122: 0.1403556652 | AN122: 0.4769907631 | AO122: 28.4 | AP122: 28.73185994 | AQ122: 0.005310183114 | AR122: 0.8991065659 | AS122: 0.3470142968 | AT122: 75.5 | AU122: 75.47918484 | AV122: 0.003070629758 | AW122: 0.4430402406 | AX122: 0.1650831439 | AY122: 47.1 | AZ122: 47.18468189 | BA122: 0.003258496662 | BB122: 0.1054370143 | BC122: 0.5132006593 | BD122: 24.9 | BE122: 24.66465714 | BF122: 0.004657522296 | BU122: 0 | BV122: =IF($BY$12=1,NORMDIST(BY122,$Y$6,$Y$8,TRUE),IF($BY$12=2,IF(BY122<=$BX$31,0,IF(BY122>=$BX$32,1,(BY122-$BX$31)*$BX$33)),SUM($BU$42:BU122)/$BV$40)) -> 0.01786442056 | BW122: 0.01759343839 | BX122: =IF($BY$12<3,BV122,SUM($BZ$42:BZ122)/$BX$40) -> 0.01786442056 | BY122: 8 | BZ122: 0.002199179799 | CA122: 26 | CB122: 35 | CC122: =IF(CB122="",NA(),COUNTIF(CB122:$CB$704,CB122)) -> 7 | CD122: 48.16 | CE122: 22.035 | CF122: 99 | CG122: 0 | CH122: 0 | CI122: 18
AM123: 0.8318599351 | AN123: 0.1649296023 | AO123: 69.2 | AP123: 68.86703643 | AQ123: 0.002075180055 | AR123: 0.4791848399 | AS123: 0.6281479783 | AT123: 48.9 | AU123: 49.34927991 | AV123: 0.01251080244 | AW123: 0.5846818872 | AX123: 0.4726606645 | AY123: 54.2 | AZ123: 54.48927867 | BA123: 0.009222599258 | BB123: 0.2646571435 | BC123: 0.8755771406 | BD123: 37.4 | BE123: 37.68849772 | BF123: 0.01432150783 | BU123: 0 | BV123: =IF($BY$12=1,NORMDIST(BY123,$Y$6,$Y$8,TRUE),IF($BY$12=2,IF(BY123<=$BX$31,0,IF(BY123>=$BX$32,1,(BY123-$BX$31)*$BX$33)),SUM($BU$42:BU123)/$BV$40)) -> 0.01808549624 | BW123: 0.01800115701 | BX123: =IF($BY$12<3,BV123,SUM($BZ$42:BZ123)/$BX$40) -> 0.01808549624 | BY123: 8.1 | BZ123: 0.002222365062 | CA123: 26 | CB123: 41 | CC123: =IF(CB123="",NA(),COUNTIF(CB123:$CB$704,CB123)) -> 3 | CD123: 56.416 | CE123: 24.475 | CF123: 99 | CG123: 0 | CH123: 0 | CI123: 19
AM124: 0.1670364328 | AN124: 0.4992023744 | AO124: 30.6 | AP124: 30.33331993 | AQ124: 0.006220751794 | AR124: 0.9492799081 | AS124: 0.4215471037 | AT124: 82.7 | AU124: 82.71684454 | AV124: 0.002209239231 | AW124: 0.7892786749 | AX124: 0.009330067784 | AY124: 66 | AZ124: 66.29912682 | BA124: 0.0001351420912 | BB124: 0.7884977199 | BC124: 0.4496075697 | BD124: 66 | BE124: 66.04214162 | BF124: 0.00651237575 | BU124: 0 | BV124: =IF($BY$12=1,NORMDIST(BY124,$Y$6,$Y$8,TRUE),IF($BY$12=2,IF(BY124<=$BX$31,0,IF(BY124>=$BX$32,1,(BY124-$BX$31)*$BX$33)),SUM($BU$42:BU124)/$BV$40)) -> 0.01830889985 | BW124: 0.01841505666 | BX124: =IF($BY$12<3,BV124,SUM($BZ$42:BZ124)/$BX$40) -> 0.01830889985 | BY124: 8.2 | BZ124: 0.002245738617 | CA124: 26 | CB124: 38 | CC124: =IF(CB124="",NA(),COUNTIF(CB124:$CB$704,CB124)) -> 4 | CD124: 52.288 | CE124: 23.865 | CF124: 99 | CG124: 0 | CH124: 0 | CI124: 20
AM125: 0.233319927 | AN125: 0.3032286502 | AO125: 35.4 | AP125: 35.34439336 | AQ125: 0.004633749351 | AR125: 0.5168445446 | AS125: 0.1645762511 | AT125: 50.8 | AU125: 50.95008897 | AV125: 0.003280196038 | AW125: 0.7991268225 | AX125: 0.6136629023 | AY125: 66.7 | AZ125: 66.2002756 | BA125: 0.008637925515 | BB125: 0.5421416201 | BC125: 0.2485384829 | BD125: 52.1 | BE125: 51.66034264 | BF125: 0.004930371734 | BU125: 0 | BV125: =IF($BY$12=1,NORMDIST(BY125,$Y$6,$Y$8,TRUE),IF($BY$12=2,IF(BY125<=$BX$31,0,IF(BY125>=$BX$32,1,(BY125-$BX$31)*$BX$33)),SUM($BU$42:BU125)/$BV$40)) -> 0.01853465027 | BW125: 0.01883520052 | BX125: =IF($BY$12<3,BV125,SUM($BZ$42:BZ125)/$BX$40) -> 0.01853465027 | BY125: 8.3 | BZ125: 0.002269301267 | CA125: 26 | CB125: 30 | CC125: =IF(CB125="",NA(),COUNTIF(CB125:$CB$704,CB125)) -> 2 | CD125: 41.28 | CE125: 25.085 | CF125: 99 | CG125: 0 | CH125: 0 | CI125: 21
AM126: 0.4443933554 | AN126: 0.3311073221 | AO126: 47.2 | AP126: 47.22566146 | AQ126: 0.0065402262 | AR126: 0.6500889696 | AS126: 0.1473374255 | AT126: 57.7 | AU126: 57.37038808 | AV126: 0.00272901861 | AW126: 0.0002756007016 | AX126: 0.01059851423 | BB126: 0.06034264341 | BC126: 0.2185540386 | BD126: 18.9 | BE126: 18.6267468 | BF126: 0.001301282079 | BU126: 0 | BV126: =IF($BY$12=1,NORMDIST(BY126,$Y$6,$Y$8,TRUE),IF($BY$12=2,IF(BY126<=$BX$31,0,IF(BY126>=$BX$32,1,(BY126-$BX$31)*$BX$33)),SUM($BU$42:BU126)/$BV$40)) -> 0.01876276643 | BW126: 0.01926165203 | BX126: =IF($BY$12<3,BV126,SUM($BZ$42:BZ126)/$BX$40) -> 0.01876276643 | BY126: 8.4 | BZ126: 0.002293053814 | CA126: 26 | CB126: 33 | CC126: =IF(CB126="",NA(),COUNTIF(CB126:$CB$704,CB126)) -> 4 | CD126: 45.408 | CE126: 23.865 | CF126: 99 | CG126: 0 | CH126: 0 | CI126: 22
AM127: 0.5256614573 | AN127: 0.4068988301 | AO127: 51.2 | AP127: 51.29054472 | AQ127: 0.008101860876 | AR127: 0.1703880765 | AS127: 0.9795890041 | AT127: 30.9 | AU127: 31.17535272 | AW127: 0.2800712772 | AX127: 0.4126403369 | AY127: 38.3 | AZ127: 38.53333387 | BA127: 0.006936470362 | BB127: 0.2267468013 | BC127: 0.9605777748 | BD127: 35 | BE127: 34.73544017 | BF127: 0.01446329622 | BU127: 0 | BV127: =IF($BY$12=1,NORMDIST(BY127,$Y$6,$Y$8,TRUE),IF($BY$12=2,IF(BY127<=$BX$31,0,IF(BY127>=$BX$32,1,(BY127-$BX$31)*$BX$33)),SUM($BU$42:BU127)/$BV$40)) -> 0.01899326739 | BW127: 0.01969447492 | BX127: =IF($BY$12<3,BV127,SUM($BZ$42:BZ127)/$BX$40) -> 0.01899326739 | BY127: 8.5 | BZ127: 0.00231699705 | CA127: 26 | CB127: 32 | CC127: =IF(CB127="",NA(),COUNTIF(CB127:$CB$704,CB127)) -> 1 | CD127: 44.032 | CE127: 25.695 | CF127: 99 | CG127: 0 | CH127: 0 | CI127: 23
AM128: 0.5905447192 | AN128: 0.8695714511 | AO128: 54.5 | AP128: 54.81540613 | AQ128: 0.01691189463 | AR128: 0.7753527202 | AS128: 0.2812974937 | AT128: 65.1 | AU128: 65.19412757 | AV128: 0.004219554269 | AW128: 0.7333338745 | AX128: 0.278278742 | AY128: 62.4 | AZ128: 61.93747924 | BA128: 0.004580244924 | BB128: 0.2354401685 | BC128: 0.7460196801 | BD128: 35.5 | BE128: 35.4987858 | BF128: 0.01144174688 | BU128: 0 | BV128: =IF($BY$12=1,NORMDIST(BY128,$Y$6,$Y$8,TRUE),IF($BY$12=2,IF(BY128<=$BX$31,0,IF(BY128>=$BX$32,1,(BY128-$BX$31)*$BX$33)),SUM($BU$42:BU128)/$BV$40)) -> 0.01922617223 | BW128: 0.02013373317 | BX128: =IF($BY$12<3,BV128,SUM($BZ$42:BZ128)/$BX$40) -> 0.01922617223 | BY128: 8.6 | BZ128: 0.002341131764 | CA128: 26 | CB128: 38 | CC128: =IF(CB128="",NA(),COUNTIF(CB128:$CB$704,CB128)) -> 3 | CD128: 52.288 | CE128: 24.475 | CF128: 24.475 | CG128: 24.475 | CH128: 1 | CI128: 24 | CJ128: 24.475 | CK128: 51.7618609
AM129: 0.8154061325 | AN129: 0.9251741506 | AO129: 67.9 | AP129: 67.93342326 | AQ129: 0.01236411943 | AR129: 0.5941275693 | AS129: 0.4171346016 | AT129: 54.7 | AU129: 54.63897802 | AV129: 0.008094021062 | AW129: 0.03747924045 | AX129: 0.8917029537 | AY129: 14.3 | AZ129: 13.92939893 | BB129: 0.4987857975 | BC129: 0.4592810757 | BD129: 49.9 | BE129: 50.12811219 | BF129: 0.009161217469 | BU129: 0 | BV129: =IF($BY$12=1,NORMDIST(BY129,$Y$6,$Y$8,TRUE),IF($BY$12=2,IF(BY129<=$BX$31,0,IF(BY129>=$BX$32,1,(BY129-$BX$31)*$BX$33)),SUM($BU$42:BU129)/$BV$40)) -> 0.01946150015 | BW129: 0.02057949101 | BX129: =IF($BY$12<3,BV129,SUM($BZ$42:BZ129)/$BX$40) -> 0.01946150015 | BY129: 8.7 | BZ129: 0.002365458737 | CA129: 26 | CB129: 41 | CC129: =IF(CB129="",NA(),COUNTIF(CB129:$CB$704,CB129)) -> 2 | CD129: 56.416 | CE129: 25.085 | CF129: 25.085 | CG129: 25.085 | CH129: 1 | CI129: 25 | CJ129: 25.085 | CK129: 56.5973977
AM130: 0.5334232636 | AN130: 0.5702984966 | AO130: 51.6 | AP130: 51.48021814 | AQ130: 0.01133946473 | AR130: 0.4389780201 | AS130: 0.9077321179 | AT130: 46.9 | AU130: 47.37972867 | AV130: 0.01789043127 | AW130: 0.1293989308 | AX130: 0.9903645255 | AY130: 27.4 | AZ130: 27.0294104 | BB130: 0.7281121947 | BC130: 0.4123298116 | BD130: 62.1 | BE130: 62.07631586 | BF130: 0.006849257388 | BU130: 0 | BV130: =IF($BY$12=1,NORMDIST(BY130,$Y$6,$Y$8,TRUE),IF($BY$12=2,IF(BY130<=$BX$31,0,IF(BY130>=$BX$32,1,(BY130-$BX$31)*$BX$33)),SUM($BU$42:BU130)/$BV$40)) -> 0.01969927041 | BW130: 0.02103181295 | BX130: =IF($BY$12<3,BV130,SUM($BZ$42:BZ130)/$BX$40) -> 0.01969927041 | BY130: 8.8 | BZ130: 0.002389978744 | CA130: 26 | CB130: 33 | CC130: =IF(CB130="",NA(),COUNTIF(CB130:$CB$704,CB130)) -> 3 | CD130: 45.408 | CE130: 24.475 | CF130: 24.475 | CG130: 24.475 | CH130: =IF(CB130="",0,1) -> 1 | CJ130: 24.475 | CK130: 45.66049993
AM131: 0.3802181371 | AN131: 0.3133921362 | AO131: 43.9 | AP131: 43.83655743 | AQ131: 0.005967164945 | AR131: 0.9797286727 | AS131: 0.4630071111 | AT131: 90.9 | AU131: 90.53011587 | AV131: 0.001141175768 | AW131: 0.1294104047 | AX131: 0.7294548787 | AY131: 27.4 | AZ131: 27.17009003 | BA131: 0.007684280179 | BB131: 0.4763158597 | BC131: 0.7891582735 | BD131: 48.8 | BE131: 49.29394039 | BF131: 0.01571312097 | BU131: 0 | BV131: =IF($BY$12=1,NORMDIST(BY131,$Y$6,$Y$8,TRUE),IF($BY$12=2,IF(BY131<=$BX$31,0,IF(BY131>=$BX$32,1,(BY131-$BX$31)*$BX$33)),SUM($BU$42:BU131)/$BV$40)) -> 0.01993950236 | BW131: 0.02149076373 | BX131: =IF($BY$12<3,BV131,SUM($BZ$42:BZ131)/$BX$40) -> 0.01993950236 | BY131: 8.9 | BZ131: 0.002414692554 | CA131: 26 | CB131: 44 | CC131: =IF(CB131="",NA(),COUNTIF(CB131:$CB$704,CB131)) -> 1 | CD131: 60.544 | CE131: 25.695 | CF131: 25.695 | CG131: 25.695 | CH131: =IF(CB131="",0,1) -> 1 | CJ131: 25.695 | CK131: 60.17757455
AM132: 0.4365574308 | AN132: 0.9829863347 | AO132: 46.8 | AP132: 46.42593548 | AR132: 0.1301158704 | AS132: 0.3953699358 | AT132: 27.4 | AU132: 27.3976168 | AV132: 0.004164936653 | AW132: 0.2700900324 | AX132: 0.8348594047 | AY132: 37.7 | AZ132: 38.10030142 | BA132: 0.01378360754 | BB132: 0.9939403869 | BC132: 0.7904367037 | BU132: 0 | BV132: =IF($BY$12=1,NORMDIST(BY132,$Y$6,$Y$8,TRUE),IF($BY$12=2,IF(BY132<=$BX$31,0,IF(BY132>=$BX$32,1,(BY132-$BX$31)*$BX$33)),SUM($BU$42:BU132)/$BV$40)) -> 0.02018221541 | BW132: 0.02195640836 | BX132: =IF($BY$12<3,BV132,SUM($BZ$42:BZ132)/$BX$40) -> 0.02018221541 | BY132: 9 | BZ132: 0.002439600929 | CA132: 26 | CB132: 43 | CC132: =IF(CB132="",NA(),COUNTIF(CB132:$CB$704,CB132)) -> 1 | CD132: 59.168 | CE132: 25.695 | CF132: 25.695 | CG132: 25.695 | CH132: 1 | CJ132: 25.695 | CK132: 58.49045775
AM133: 0.1259354837 | AN133: 0.474400077 | AO133: 27 | AP133: 27.43735262 | AQ133: 0.004884809087 | AR133: 0.4976168014 | AS133: 0.483127553 | AT133: 49.8 | AU133: 50.11081766 | AV133: 0.009636518548 | AW133: 0.9003014155 | AX133: 0.8586506285 | AY133: 75.6 | AZ133: 75.54723152 | BA133: 0.007549575327 | BB133: 0.3127946295 | BC133: 0.3611743338 | BD133: 40.2 | BE133: 39.73367243 | BF133: 0.006389397361 | BU133: 0 | BV133: =IF($BY$12=1,NORMDIST(BY133,$Y$6,$Y$8,TRUE),IF($BY$12=2,IF(BY133<=$BX$31,0,IF(BY133>=$BX$32,1,(BY133-$BX$31)*$BX$33)),SUM($BU$42:BU133)/$BV$40)) -> 0.02042742905 | BW133: 0.02242881208 | BX133: =IF($BY$12<3,BV133,SUM($BZ$42:BZ133)/$BX$40) -> 0.02042742905 | BY133: 9.1 | BZ133: 0.002464704624 | CA133: 26 | CB133: 35 | CC133: =IF(CB133="",NA(),COUNTIF(CB133:$CB$704,CB133)) -> 6 | CD133: 48.16 | CE133: 22.645 | CF133: 22.645 | CG133: 22.645 | CH133: 1 | CJ133: 22.645 | CK133: 48.50563745
AM134: 0.9373526163 | AN134: 0.3489832319 | AO134: 80.6 | AP134: 80.95610126 | AQ134: 0.002159556914 | AR134: 0.8108176626 | AS134: 0.1668946631 | AT134: 67.6 | AU134: 67.90088339 | AV134: 0.002260287566 | AW134: 0.44723152 | AX134: 0.01368293539 | AY134: 47.3 | AZ134: 47.33174712 | BA134: 0.000270459249 | BB134: 0.0336724259 | BC134: 0.69670083 | BD134: 13.4 | BE134: 13.25723639 | BF134: 0.002604485853 | BU134: 0 | BV134: =IF($BY$12=1,NORMDIST(BY134,$Y$6,$Y$8,TRUE),IF($BY$12=2,IF(BY134<=$BX$31,0,IF(BY134>=$BX$32,1,(BY134-$BX$31)*$BX$33)),SUM($BU$42:BU134)/$BV$40)) -> 0.02067516287 | BW134: 0.02290804036 | BX134: =IF($BY$12<3,BV134,SUM($BZ$42:BZ134)/$BX$40) -> 0.02067516287 | BY134: 9.2 | BZ134: 0.002490004387 | CA134: 26 | CB134: 37 | CC134: =IF(CB134="",NA(),COUNTIF(CB134:$CB$704,CB134)) -> 5 | CD134: 50.912 | CE134: 23.255 | CF134: 23.255 | CG134: 23.255 | CH134: 1 | CJ134: 23.255 | CK134: 50.80214369
AM135: 0.8561012633 | AN135: 0.7624612786 | AO135: 71.2 | AP135: 71.39787242 | AQ135: 0.00867183934 | AR135: 0.8008833863 | AS135: 0.274325151 | AT135: 66.8 | AU135: 66.37619143 | AV135: 0.003845267912 | AW135: 0.5317471214 | AX135: 0.1263513602 | AY135: 51.5 | AZ135: 51.24488406 | BA135: 0.002513266478 | BB135: 0.3572363891 | BC135: 0.5347805507 | BD135: 42.6 | BE135: 42.55962826 | BF135: 0.00996157977 | BU135: 0 | BV135: =IF($BY$12=1,NORMDIST(BY135,$Y$6,$Y$8,TRUE),IF($BY$12=2,IF(BY135<=$BX$31,0,IF(BY135>=$BX$32,1,(BY135-$BX$31)*$BX$33)),SUM($BU$42:BU135)/$BV$40)) -> 0.02092543649 | BW135: 0.02339415892 | BX135: =IF($BY$12<3,BV135,SUM($BZ$42:BZ135)/$BX$40) -> 0.02092543649 | BY135: 9.3 | BZ135: 0.002515500959 | CA135: 26 | CB135: 34 | CC135: =IF(CB135="",NA(),COUNTIF(CB135:$CB$704,CB135)) -> 3 | CD135: 46.784 | CE135: 24.475 | CF135: 24.475 | CG135: 24.475 | CH135: 1 | CJ135: 24.475 | CK135: 46.38070258
AM136: 0.6978724189 | AN136: 0.2614440955 | AO136: 60.3 | AP136: 60.15399489 | AQ136: 0.004567368279 | AR136: 0.07619142905 | AS136: 0.2809763439 | AT136: 21.3 | AU136: 20.89169212 | AV136: 0.002001680692 | AW136: 0.2448840626 | AX136: 0.8090769388 | AY136: 36.1 | AZ136: 36.50578182 | BA136: 0.01267600339 | BB136: 0.4596282579 | BC136: 0.5541721173 | BD136: 47.9 | BE136: 47.77686831 | BF136: 0.01099336614 | BU136: 0 | BV136: =IF($BY$12=1,NORMDIST(BY136,$Y$6,$Y$8,TRUE),IF($BY$12=2,IF(BY136<=$BX$31,0,IF(BY136>=$BX$32,1,(BY136-$BX$31)*$BX$33)),SUM($BU$42:BU136)/$BV$40)) -> 0.02117826964 | BW136: 0.0238872337 | BX136: =IF($BY$12<3,BV136,SUM($BZ$42:BZ136)/$BX$40) -> 0.02117826964 | BY136: 9.4 | BZ136: 0.002541195075 | CA136: 26 | CB136: 37 | CC136: =IF(CB136="",NA(),COUNTIF(CB136:$CB$704,CB136)) -> 4 | CD136: 50.912 | CE136: 23.865 | CF136: 23.865 | CG136: 23.865 | CH136: 1 | CJ136: 23.865 | CK136: 51.44165472
AM137: 0.3539948948 | AN137: 0.5496613123 | AO137: 42.5 | AP137: 42.26811989 | AQ137: 0.01021971794 | AR137: 0.09169212356 | AS137: 0.4276185818 | AT137: 23.3 | AU137: 23.17705809 | AV137: 0.00349889893 | AW137: 0.9057818241 | AX137: 0.01658112183 | AY137: 76.3 | AZ137: 76.23387591 | BA137: 0.0001393148921 | BB137: 0.3768683113 | BC137: 0.01244579628 | BD137: 43.7 | BE137: 43.32460634 | BF137: 0.0002362415716 | BU137: 0 | BV137: =IF($BY$12=1,NORMDIST(BY137,$Y$6,$Y$8,TRUE),IF($BY$12=2,IF(BY137<=$BX$31,0,IF(BY137>=$BX$32,1,(BY137-$BX$31)*$BX$33)),SUM($BU$42:BU137)/$BV$40)) -> 0.02143368211 | BW137: 0.02438733087 | BX137: =IF($BY$12<3,BV137,SUM($BZ$42:BZ137)/$BX$40) -> 0.02143368211 | BY137: 9.5 | BZ137: 0.00256708746 | CA137: 26 | CB137: 34 | CC137: =IF(CB137="",NA(),COUNTIF(CB137:$CB$704,CB137)) -> 2 | CD137: 46.784 | CE137: 25.085 | CF137: 25.085 | CG137: 25.085 | CH137: 1 | CJ137: 25.085 | CK137: 46.45264775
AM138: 0.2681198902 | AN138: 0.3879867233 | AO138: 37.6 | AP138: 37.37716338 | AQ138: 0.006385950316 | AR138: 0.3770580925 | AS138: 0.8268026002 | AT138: 43.7 | AU138: 43.95018523 | AV138: 0.01569406579 | AW138: 0.4338759072 | AX138: 0.7125117518 | AY138: 46.6 | AZ138: 46.88066053 | BA138: 0.01400865845 | BB138: 0.1246063448 | BC138: 0.06837119535 | BD138: 26.9 | BE138: 27.24228671 | BF138: 0.0006999602778 | BU138: 0 | BV138: =IF($BY$12=1,NORMDIST(BY138,$Y$6,$Y$8,TRUE),IF($BY$12=2,IF(BY138<=$BX$31,0,IF(BY138>=$BX$32,1,(BY138-$BX$31)*$BX$33)),SUM($BU$42:BU138)/$BV$40)) -> 0.02169169377 | BW138: 0.02489451681 | BX138: =IF($BY$12<3,BV138,SUM($BZ$42:BZ138)/$BX$40) -> 0.02169169377 | BY138: 9.6 | BZ138: 0.002593178834 | CA138: 26 | CB138: 36 | CC138: =IF(CB138="",NA(),COUNTIF(CB138:$CB$704,CB138)) -> 5 | CD138: 49.536 | CE138: 23.255 | CF138: 23.255 | CG138: 23.255 | CH138: 1 | CJ138: 23.255 | CK138: 49.20004756
AM139: 0.2771633752 | AN139: 0.3548142649 | AO139: 38.1 | AP139: 37.86181879 | AQ139: 0.005929329565 | AR139: 0.7501852252 | AS139: 0.003997225314 | AT139: 63.5 | AU139: 63.30510772 | AV139: 6.348936561e-05 | AW139: 0.7806605287 | AX139: 0.4354831018 | AY139: 65.4 | AZ139: 65.57883413 | BA139: 0.006458100193 | BB139: 0.8422867097 | BC139: 0.04668777063 | BD139: 70 | BE139: 69.81328991 | BF139: 0.0005648536843 | BU139: 0 | BV139: =IF($BY$12=1,NORMDIST(BY139,$Y$6,$Y$8,TRUE),IF($BY$12=2,IF(BY139<=$BX$31,0,IF(BY139>=$BX$32,1,(BY139-$BX$31)*$BX$33)),SUM($BU$42:BU139)/$BV$40)) -> 0.02195232454 | BW139: 0.02540885811 | BX139: =IF($BY$12<3,BV139,SUM($BZ$42:BZ139)/$BX$40) -> 0.02195232454 | BY139: =BY138+$BZ$1 -> 9.7 | BZ139: 0.002619469908 | CA139: 26 | CB139: 39 | CC139: =IF(CB139="",NA(),COUNTIF(CB139:$CB$704,CB139)) -> 4 | CD139: 53.664 | CE139: 23.865 | CF139: 23.865 | CG139: 23.865 | CH139: 1 | CJ139: 23.865 | CK139: 52.99740756
AM140: 0.2618187852 | AN140: 0.2558480538 | AO140: 37.2 | AP140: 37.56445253 | AQ140: 0.004158327382 | AR140: 0.3051077165 | AS140: 0.1311098821 | AT140: 39.8 | AU140: 39.82588967 | AV140: 0.002296336346 | AW140: 0.6788341291 | AX140: 0.116092477 | AY140: 59.2 | AZ140: 58.97914019 | BA140: 0.002083223143 | BB140: 0.3132899143 | BC140: 0.2155706473 | BD140: 40.2 | BE140: 39.97511329 | BF140: 0.003813578086 | BU140: 0 | BV140: =IF($BY$12=1,NORMDIST(BY140,$Y$6,$Y$8,TRUE),IF($BY$12=2,IF(BY140<=$BX$31,0,IF(BY140>=$BX$32,1,(BY140-$BX$31)*$BX$33)),SUM($BU$42:BU140)/$BV$40)) -> 0.02221559443 | BW140: 0.02593042158 | BX140: =IF($BY$12<3,BV140,SUM($BZ$42:BZ140)/$BX$40) -> 0.02221559443 | BY140: 9.8 | BZ140: 0.002645961386 | CA140: 26 | CB140: 40 | CC140: =IF(CB140="",NA(),COUNTIF(CB140:$CB$704,CB140)) -> 4 | CD140: 55.04 | CE140: 23.865 | CF140: 23.865 | CG140: 23.865 | CH140: 1 | CJ140: 23.865 | CK140: 54.69390195
AM141: 0.8644525297 | AN141: 0.5348689891 | AO141: 72 | AP141: 72.34469481 | AQ141: 0.005826118686 | AR141: 0.5258896686 | AS141: 0.5227024145 | AT141: 51.2 | AU141: 51.64055576 | AV141: 0.01040765401 | AW141: 0.279140193 | AX141: 0.5589758791 | AY141: 38.2 | AZ141: 37.75771588 | BA141: 0.009368804644 | BB141: 0.2751132883 | BC141: 0.4596042521 | BD141: 38 | BE141: 37.99615321 | BF141: 0.00765757222 | BU141: 0 | BV141: =IF($BY$12=1,NORMDIST(BY141,$Y$6,$Y$8,TRUE),IF($BY$12=2,IF(BY141<=$BX$31,0,IF(BY141>=$BX$32,1,(BY141-$BX$31)*$BX$33)),SUM($BU$42:BU141)/$BV$40)) -> 0.02248152352 | BW141: 0.02645927423 | BX141: =IF($BY$12<3,BV141,SUM($BZ$42:BZ141)/$BX$40) -> 0.02248152352 | BY141: 9.9 | BZ141: 0.002672653963 | CA141: 26 | CB141: 40 | CC141: =IF(CB141="",NA(),COUNTIF(CB141:$CB$704,CB141)) -> 3 | CD141: 55.04 | CE141: 24.475 | CF141: 24.475 | CG141: 24.475 | CH141: 1 | CJ141: 24.475 | CK141: 55.34348413
AM142: 0.8446948119 | AN142: 0.09954041615 | AO142: 70.2 | AP142: 70.15553826 | AQ142: 0.001192250798 | AR142: 0.940555755 | AS142: 0.7777147181 | AT142: 81.1 | AU142: 80.89162345 | AV142: 0.004630553762 | AW142: 0.05771588162 | AX142: 0.5664652325 | AY142: 18.5 | AZ142: 18.68926098 | BA142: 0.003268830904 | BB142: 0.4961532094 | BC142: 0.5435762592 | BD142: 49.8 | BE142: 49.95815139 | BF142: 0.01084223549 | BU142: 0 | BV142: =IF($BY$12=1,NORMDIST(BY142,$Y$6,$Y$8,TRUE),IF($BY$12=2,IF(BY142<=$BX$31,0,IF(BY142>=$BX$32,1,(BY142-$BX$31)*$BX$33)),SUM($BU$42:BU142)/$BV$40)) -> 0.02275013195 | BW142: 0.02699548326 | BX142: =IF($BY$12<3,BV142,SUM($BZ$42:BZ142)/$BX$40) -> 0.02275013195 | BY142: 10 | BZ142: 0.002699548326 | CA142: 26 | CB142: 41 | CC142: =IF(CB142="",NA(),COUNTIF(CB142:$CB$704,CB142)) -> 1 | CD142: 56.416 | CE142: 25.695 | CF142: 25.695 | CG142: 25.695 | CH142: 1 | CJ142: 25.695 | CK142: 55.83753962
AM143: 0.4555382617 | AN143: 0.5388153531 | AO143: 47.7 | AP143: 47.73525688 | AQ143: 0.01067697584 | AR143: 0.2916234471 | AS143: 0.2620086856 | AT143: 39 | AU143: 38.7622993 | AV143: 0.004492713435 | AW143: 0.6892609783 | AX143: 0.7429096736 | AY143: 59.8 | AZ143: 59.69383965 | BA143: 0.01314253163 | BB143: 0.6581513919 | BC143: 0.4749043472 | BD143: 58.1 | BE143: 58.24586774 | BF143: 0.008727073608 | BU143: 0 | BV143: =IF($BY$12=1,NORMDIST(BY143,$Y$6,$Y$8,TRUE),IF($BY$12=2,IF(BY143<=$BX$31,0,IF(BY143>=$BX$32,1,(BY143-$BX$31)*$BX$33)),SUM($BU$42:BU143)/$BV$40)) -> 0.02302143993 | BW143: 0.02753911606 | BX143: =IF($BY$12<3,BV143,SUM($BZ$42:BZ143)/$BX$40) -> 0.02302143993 | BY143: 10.1 | BZ143: 0.002726645154 | CA143: 26 | CB143: 39 | CC143: =IF(CB143="",NA(),COUNTIF(CB143:$CB$704,CB143)) -> 3 | CD143: 53.664 | CE143: 24.475 | CF143: 24.475 | CG143: 24.475 | CH143: 1 | CJ143: 24.475 | CK143: 53.7925723
AM144: 0.5352568813 | AN144: 0.77100778 | AO144: 51.7 | AP144: 52.0229578 | AQ144: 0.01532392232 | AR144: 0.262299303 | AS144: 0.4395449646 | AT144: 37.2 | AU144: 37.05990182 | AV144: 0.007143974068 | AW144: 0.3938396461 | AX144: 0.5812234022 | AY144: 44.6 | AZ144: 44.6776275 | BA144: 0.01117874703 | BB144: 0.6458677389 | BC144: 0.7850082703 | BD144: 57.4 | BE144: 57.80804226 | BF144: 0.01462267559 | BU144: 0 | BV144: =IF($BY$12=1,NORMDIST(BY144,$Y$6,$Y$8,TRUE),IF($BY$12=2,IF(BY144<=$BX$31,0,IF(BY144>=$BX$32,1,(BY144-$BX$31)*$BX$33)),SUM($BU$42:BU144)/$BV$40)) -> 0.02329546775 | BW144: 0.02809024021 | BX144: =IF($BY$12<3,BV144,SUM($BZ$42:BZ144)/$BX$40) -> 0.02329546775 | BY144: 10.2 | BZ144: 0.002753945119 | CA144: 26 | CB144: 35 | CC144: =IF(CB144="",NA(),COUNTIF(CB144:$CB$704,CB144)) -> 5 | CD144: 48.16 | CE144: 23.255 | CF144: 23.255 | CG144: 23.255 | CH144: 1 | CJ144: 23.255 | CK144: 48.01799202
AM145: 0.8229578026 | AN145: 0.7240904905 | AO145: 68.5 | AP145: 68.31807836 | AQ145: 0.009416213696 | AR145: 0.3599018194 | AS145: 0.8725050278 | AT145: 42.8 | AU145: 42.92057335 | AV145: 0.01631194416 | AW145: 0.5776274987 | AX145: 0.4957225956 | AY145: 53.9 | AZ145: 53.80041648 | BA145: 0.009702010969 | BB145: 0.9080422558 | BC145: 0.3624397404 | BD145: 76.5 | BE145: 76.11620853 | BF145: 0.003005292558 | BU145: 0 | BV145: =IF($BY$12=1,NORMDIST(BY145,$Y$6,$Y$8,TRUE),IF($BY$12=2,IF(BY145<=$BX$31,0,IF(BY145>=$BX$32,1,(BY145-$BX$31)*$BX$33)),SUM($BU$42:BU145)/$BV$40)) -> 0.02357223575 | BW145: 0.02864892348 | BX145: =IF($BY$12<3,BV145,SUM($BZ$42:BZ145)/$BX$40) -> 0.02357223575 | BY145: 10.3 | BZ145: 0.002781448881 | CA145: 26 | CB145: 40 | CC145: =IF(CB145="",NA(),COUNTIF(CB145:$CB$704,CB145)) -> 2 | CD145: 55.04 | CE145: 25.085 | CF145: 25.085 | CG145: 25.085 | CH145: 1 | CJ145: 25.085 | CK145: 55.64446133
AM146: 0.3180783577 | AN146: 0.7122820057 | AO146: 40.5 | AP146: 40.31664096 | AQ146: 0.0126922377 | AR146: 0.6205733456 | AS146: 0.5231710561 | AT146: 56.1 | AU146: 55.96184356 | AV146: 0.009961475178 | AW146: 0.4004164822 | AX146: 0.02781388536 | AY146: 44.9 | AZ146: 44.61519007 | BA146: 0.0005370586689 | BB146: 0.1162085272 | BC146: 0.783082623 | BD146: 26.1 | BE146: 26.01042126 | BF146: 0.007648846903 | BU146: 0 | BV146: =IF($BY$12=1,NORMDIST(BY146,$Y$6,$Y$8,TRUE),IF($BY$12=2,IF(BY146<=$BX$31,0,IF(BY146>=$BX$32,1,(BY146-$BX$31)*$BX$33)),SUM($BU$42:BU146)/$BV$40)) -> 0.02385176434 | BW146: 0.02921523379 | BX146: =IF($BY$12<3,BV146,SUM($BZ$42:BZ146)/$BX$40) -> 0.02385176434 | BY146: 10.4 | BZ146: 0.002809157095 | CA146: 26 | CB146: 35 | CC146: =IF(CB146="",NA(),COUNTIF(CB146:$CB$704,CB146)) -> 4 | CD146: 48.16 | CE146: 23.865 | CF146: 23.865 | CG146: 23.865 | CH146: 1 | CJ146: 23.865 | CK146: 48.17440216
AM147: 0.3166409619 | AN147: 0.7354850508 | AO147: 40.4 | AP147: 39.96957831 | AQ147: 0.01307444299 | AR147: 0.3618435599 | AS147: 0.3028761335 | AT147: 42.9 | AU147: 42.67210701 | AV147: 0.005672560566 | AW147: 0.2151900716 | AX147: 0.5135968961 | AY147: 34.2 | AZ147: 34.33758128 | BA147: 0.007498611741 | BB147: 0.410421256 | BC147: 0.8952359445 | BD147: 45.4 | BE147: 44.98346036 | BF147: 0.01739123775 | BU147: 0 | BV147: =IF($BY$12=1,NORMDIST(BY147,$Y$6,$Y$8,TRUE),IF($BY$12=2,IF(BY147<=$BX$31,0,IF(BY147>=$BX$32,1,(BY147-$BX$31)*$BX$33)),SUM($BU$42:BU147)/$BV$40)) -> 0.024134074 | BW147: 0.02978923925 | BX147: =IF($BY$12<3,BV147,SUM($BZ$42:BZ147)/$BX$40) -> 0.024134074 | BY147: 10.5 | BZ147: 0.002837070405 | CA147: 26 | CB147: 35 | CC147: =IF(CB147="",NA(),COUNTIF(CB147:$CB$704,CB147)) -> 3 | CD147: 48.16 | CE147: 24.475 | CF147: 24.475 | CG147: 24.475 | CH147: 1 | CJ147: 24.475 | CK147: 48.27922486
AM148: 0.06957830861 | AN148: 0.9906390943 | AO148: 20.4 | AP148: 20.72094138 | AR148: 0.2721070088 | AS148: 0.6258372553 | AT148: 37.8 | AU148: 37.98857721 | AV148: 0.01036432432 | AW148: 0.6375812776 | AX148: 0.06494334713 | AY148: 57 | AZ148: 56.81552597 | BA148: 0.001218468205 | BB148: 0.08346036449 | BC148: 0.7298922129 | BD148: 22.3 | BE148: 22.41757416 | BF148: 0.005579580325 | BU148: 0 | BV148: =IF($BY$12=1,NORMDIST(BY148,$Y$6,$Y$8,TRUE),IF($BY$12=2,IF(BY148<=$BX$31,0,IF(BY148>=$BX$32,1,(BY148-$BX$31)*$BX$33)),SUM($BU$42:BU148)/$BV$40)) -> 0.02441918528 | BW148: 0.03037100813 | BX148: =IF($BY$12<3,BV148,SUM($BZ$42:BZ148)/$BX$40) -> 0.02441918528 | BY148: 10.6 | BZ148: 0.002865189446 | CA148: 26 | CB148: 33 | CC148: =IF(CB148="",NA(),COUNTIF(CB148:$CB$704,CB148)) -> 2 | CD148: 45.408 | CE148: 25.085 | CF148: 25.085 | CG148: 25.085 | CH148: 1 | CJ148: 25.085 | CK148: 44.95444476
AM149: 0.8209413774 | AN149: 0.4465494491 | AO149: 68.3 | AP149: 68.09630275 | AQ149: 0.005860687021 | AR149: 0.6885772087 | AS149: 0.03818364814 | AT149: 59.8 | AU149: 60.27777981 | AV149: 0.0006754923531 | AW149: 0.3155259676 | AX149: 0.7781152166 | AY149: 40.3 | AZ149: 40.081924 | BA149: 0.01379893341 | BB149: 0.6175741591 | BC149: 0.6190235503 | BD149: 55.9 | BE149: 55.95032406 | BF149: 0.01182197409 | BU149: 0 | BV149: =IF($BY$12=1,NORMDIST(BY149,$Y$6,$Y$8,TRUE),IF($BY$12=2,IF(BY149<=$BX$31,0,IF(BY149>=$BX$32,1,(BY149-$BX$31)*$BX$33)),SUM($BU$42:BU149)/$BV$40)) -> 0.02470711877 | BW149: 0.03096060883 | BX149: =IF($BY$12<3,BV149,SUM($BZ$42:BZ149)/$BX$40) -> 0.02470711877 | BY149: 10.7 | BZ149: 0.002893514844 | CA149: 26 | CB149: 38 | CC149: =IF(CB149="",NA(),COUNTIF(CB149:$CB$704,CB149)) -> 2 | CD149: 52.288 | CE149: 25.085 | CF149: 25.085 | CG149: 25.085 | CH149: 1 | CJ149: 25.085 | CK149: 52.65132129
AM150: 0.2963027544 | AN150: 0.3962554373 | AO150: 39.2 | AP150: 39.22416776 | AQ150: 0.006831800397 | AR150: 0.9777798094 | AS150: 0.804992903 | AT150: 90.1 | AU150: 90.09514732 | AV150: 0.002151467472 | AW150: 0.2819239981 | AX150: 0.6464844681 | AY150: 38.4 | AZ150: 37.98562066 | BA150: 0.01089907983 | BB150: 0.5503240563 | BC150: 0.7171881385 | BD150: 52.5 | BE150: 52.70859337 | BF150: 0.01419450469 | BU150: 0 | BV150: =IF($BY$12=1,NORMDIST(BY150,$Y$6,$Y$8,TRUE),IF($BY$12=2,IF(BY150<=$BX$31,0,IF(BY150>=$BX$32,1,(BY150-$BX$31)*$BX$33)),SUM($BU$42:BU150)/$BV$40)) -> 0.02499789515 | BW150: 0.03155810994 | BX150: =IF($BY$12<3,BV150,SUM($BZ$42:BZ150)/$BX$40) -> 0.02499789515 | BY150: 10.8 | BZ150: 0.002922047217 | CA150: 26 | CB150: 33 | CC150: =IF(CB150="",NA(),COUNTIF(CB150:$CB$704,CB150)) -> 1 | CD150: 45.408 | CE150: 25.695 | CF150: 25.695 | CG150: 25.695 | CH150: 1 | CJ150: 25.695 | CK150: 45.73142641
AM151: 0.5241677649 | AN151: 0.463500116 | AO151: 51.2 | AP151: 50.88570592 | AQ151: 0.00922886275 | AR151: 0.4951473214 | AS151: 0.6506474204 | AT151: 49.7 | AU151: 49.8627779 | AV151: 0.01297707828 | AW151: 0.08562066033 | AX151: 0.7164168395 | AY151: 22.6 | AZ151: 22.80852094 | BA151: 0.00559090611 | BB151: 0.7085933723 | BC151: 0.9342694767 | BD151: 60.9 | BE151: 61.31232267 | BF151: 0.0160640139 | BU151: 0 | BV151: =IF($BY$12=1,NORMDIST(BY151,$Y$6,$Y$8,TRUE),IF($BY$12=2,IF(BY151<=$BX$31,0,IF(BY151>=$BX$32,1,(BY151-$BX$31)*$BX$33)),SUM($BU$42:BU151)/$BV$40)) -> 0.02529153514 | BW151: 0.03216358016 | BX151: =IF($BY$12<3,BV151,SUM($BZ$42:BZ151)/$BX$40) -> 0.02529153514 | BY151: 10.9 | BZ151: 0.002950787171 | CA151: 26 | CB151: 35 | CC151: =IF(CB151="",NA(),COUNTIF(CB151:$CB$704,CB151)) -> 2 | CD151: 48.16 | CE151: 25.085 | CF151: 25.085 | CG151: 25.085 | CH151: 1 | CJ151: 25.085 | CK151: 47.53160844
AM152: 0.1857059188 | AN152: 0.602364067 | AO152: 32.1 | AP152: 32.10061517 | AQ152: 0.008050053346 | AR152: 0.6627779044 | AS152: 0.6603236683 | AT152: 58.4 | AU152: 58.16692072 | AV152: 0.01205957939 | AW152: 0.7085209377 | AX152: 0.5878821947 | AY152: 60.9 | AZ152: 60.98914908 | BA152: 0.01010816256 | BB152: 0.9123226739 | BC152: 0.5996609516 | BD152: 77.1 | BE152: 76.91203419 | BF152: 0.004776371263 | BU152: 0 | BV152: =IF($BY$12=1,NORMDIST(BY152,$Y$6,$Y$8,TRUE),IF($BY$12=2,IF(BY152<=$BX$31,0,IF(BY152>=$BX$32,1,(BY152-$BX$31)*$BX$33)),SUM($BU$42:BU152)/$BV$40)) -> 0.02558805952 | BW152: 0.03277708834 | BX152: =IF($BY$12<3,BV152,SUM($BZ$42:BZ152)/$BX$40) -> 0.02558805952 | BY152: 11 | BZ152: 0.002979735303 | CA152: 26 | CB152: 36 | CC152: =IF(CB152="",NA(),COUNTIF(CB152:$CB$704,CB152)) -> 4 | CD152: 49.536 | CE152: 23.865 | CF152: 23.865 | CG152: 23.865 | CH152: 1 | CJ152: 23.865 | CK152: 49.47905464
AM153: 0.5006151684 | AN153: 0.1916257478 | AO153: 50 | AP153: 50.46943148 | AQ153: 0.003822380641 | AR153: 0.2669207193 | AS153: 0.6629267521 | AT153: 37.5 | AU153: 37.13925034 | AV153: 0.01087733425 | AW153: 0.5891490765 | AX153: 0.4238539375 | AY153: 54.5 | AZ153: 54.88546597 | BA153: 0.008243340005 | BB153: 0.3120341934 | BC153: 0.9907082208 | BD153: 40.1 | BE153: 39.6867078 | BU153: 0 | BV153: =IF($BY$12=1,NORMDIST(BY153,$Y$6,$Y$8,TRUE),IF($BY$12=2,IF(BY153<=$BX$31,0,IF(BY153>=$BX$32,1,(BY153-$BX$31)*$BX$33)),SUM($BU$42:BU153)/$BV$40)) -> 0.02588748915 | BW153: 0.03339870346 | BX153: =IF($BY$12<3,BV153,SUM($BZ$42:BZ153)/$BX$40) -> 0.02588748915 | BY153: 11.1 | BZ153: 0.003008892203 | CA153: 26 | CB153: 31 | CC153: =IF(CB153="",NA(),COUNTIF(CB153:$CB$704,CB153)) -> 1 | CD153: 42.656 | CE153: 25.695 | CF153: 25.695 | CG153: 25.695 | CH153: 1 | CJ153: 25.695 | CK153: 42.34555317
AM154: 0.9694314785 | AN154: 0.3879109062 | AO154: 87.4 | AP154: 87.00509621 | AQ154: 0.00134669694 | AR154: 0.1392503418 | AS154: 0.2282827981 | AT154: 28.3 | AU154: 28.74849274 | AV154: 0.002527680025 | AW154: 0.8854659684 | AX154: 0.1950599886 | AY154: 74 | AZ154: 73.92225685 | BA154: 0.001893896484 | BB154: 0.08670780435 | BC154: 0.1707219072 | BD154: 22.7 | BE154: 22.49107106 | BF154: 0.001341452057 | BU154: 0 | BV154: =IF($BY$12=1,NORMDIST(BY154,$Y$6,$Y$8,TRUE),IF($BY$12=2,IF(BY154<=$BX$31,0,IF(BY154>=$BX$32,1,(BY154-$BX$31)*$BX$33)),SUM($BU$42:BU154)/$BV$40)) -> 0.02618984494 | BW154: 0.03402849461 | BX154: =IF($BY$12<3,BV154,SUM($BZ$42:BZ154)/$BX$40) -> 0.02618984494 | BY154: 11.2 | BZ154: 0.003038258448 | CA154: 26 | CB154: 38 | CC154: =IF(CB154="",NA(),COUNTIF(CB154:$CB$704,CB154)) -> 1 | CD154: 52.288 | CE154: 25.695 | CF154: 25.695 | CG154: 25.695 | CH154: 1 | CJ154: 25.695 | CK154: 52.11029385
AM155: 0.1050962098 | AN155: 0.4641935565 | AO155: 24.9 | AP155: 24.99909381 | AQ155: 0.004212761227 | AR155: 0.9484927393 | AS155: 0.7239016481 | AT155: 82.6 | AU155: 82.99146531 | AV155: 0.003824909211 | AW155: 0.422256846 | AX155: 0.9491478242 | AY155: 46 | AZ155: 46.08090179 | BA155: 0.01855786611 | BB155: 0.291071061 | BC155: 0.3943731077 | BD155: 38.9 | BE155: 38.6038658 | BF155: 0.006743736366 | BU155: 0 | BV155: =IF($BY$12=1,NORMDIST(BY155,$Y$6,$Y$8,TRUE),IF($BY$12=2,IF(BY155<=$BX$31,0,IF(BY155>=$BX$32,1,(BY155-$BX$31)*$BX$33)),SUM($BU$42:BU155)/$BV$40)) -> 0.02649514784 | BW155: 0.03466653103 | BX155: =IF($BY$12<3,BV155,SUM($BZ$42:BZ155)/$BX$40) -> 0.02649514784 | BY155: 11.3 | BZ155: 0.003067834605 | CA155: 26 | CB155: 40 | CC155: =IF(CB155="",NA(),COUNTIF(CB155:$CB$704,CB155)) -> 1 | CD155: 55.04 | CE155: 25.695 | CF155: 25.695 | CG155: 25.695 | CH155: 1 | CJ155: 25.695 | CK155: 55.33945218
AM156: 0.5990938134 | AN156: 0.9227110185 | AO156: 55 | AP156: 54.67997234 | AQ156: 0.01783914659 | AR156: 0.89146531 | AS156: 0.6891223677 | AT156: 74.6 | AU156: 74.73509348 | AV156: 0.006451405734 | AW156: 0.5809017904 | AX156: 0.4558260776 | AY156: 54 | AZ156: 54.20184155 | BA156: 0.008912372869 | BB156: 0.2038658001 | BC156: 0.6507842131 | BD156: 33.4 | BE156: 33.4911538 | BF156: 0.009198655303 | BU156: 0 | BV156: =IF($BY$12=1,NORMDIST(BY156,$Y$6,$Y$8,TRUE),IF($BY$12=2,IF(BY156<=$BX$31,0,IF(BY156>=$BX$32,1,(BY156-$BX$31)*$BX$33)),SUM($BU$42:BU156)/$BV$40)) -> 0.02680341888 | BW156: 0.03531288204 | BX156: =IF($BY$12<3,BV156,SUM($BZ$42:BZ156)/$BX$40) -> 0.02680341888 | BY156: 11.4 | BZ156: 0.003097621231 | CA156: 26 | CB156: 39 | CC156: =IF(CB156="",NA(),COUNTIF(CB156:$CB$704,CB156)) -> 2 | CD156: 53.664 | CE156: 25.085 | CF156: 25.085 | CG156: 25.085 | CH156: 1 | CJ156: 25.085 | CK156: 53.78119834
AM157: 0.1799723394 | AN157: 0.7338555194 | AO157: 31.6 | AP157: 31.83455926 | AQ157: 0.009587319716 | AR157: 0.6350934841 | AS157: 0.09695406631 | AT157: 56.9 | AU157: 57.32346639 | AV157: 0.001822217227 | AW157: 0.7018415518 | AX157: 0.6420452036 | AY157: 60.5 | AZ157: 60.38255118 | BA157: 0.01115820838 | BB157: 0.5911538042 | BC157: 0.7271275409 | BD157: 54.6 | BE157: 54.96122403 | BF157: 0.01412549174 | BU157: 0 | BV157: =IF($BY$12=1,NORMDIST(BY157,$Y$6,$Y$8,TRUE),IF($BY$12=2,IF(BY157<=$BX$31,0,IF(BY157>=$BX$32,1,(BY157-$BX$31)*$BX$33)),SUM($BU$42:BU157)/$BV$40)) -> 0.02711467912 | BW157: 0.03596761706 | BX157: =IF($BY$12<3,BV157,SUM($BZ$42:BZ157)/$BX$40) -> 0.02711467912 | BY157: 11.5 | BZ157: 0.003127618875 | CA157: 26 | CB157: 36 | CC157: =IF(CB157="",NA(),COUNTIF(CB157:$CB$704,CB157)) -> 3 | CD157: 49.536 | CE157: 24.475 | CF157: 24.475 | CG157: 24.475 | CH157: 1 | CJ157: 24.475 | CK157: 49.02694245
AM158: 0.7345592566 | AN158: 0.1151048578 | AO158: 62.5 | AP158: 62.07468509 | AQ158: 0.001888646082 | AR158: 0.9234663881 | AS158: 0.8864245303 | AT158: 78.5 | AU158: 78.82649407 | AV158: 0.006405856711 | AW158: 0.3825511821 | AX158: 0.7937797047 | AY158: 44 | AZ158: 43.86633398 | BA158: 0.01513689538 | BB158: 0.8612240292 | BC158: 0.4880442806 | BD158: 71.7 | BE158: 71.35016389 | BF158: 0.005403910369 | BU158: 0 | BV158: =IF($BY$12=1,NORMDIST(BY158,$Y$6,$Y$8,TRUE),IF($BY$12=2,IF(BY158<=$BX$31,0,IF(BY158>=$BX$32,1,(BY158-$BX$31)*$BX$33)),SUM($BU$42:BU158)/$BV$40)) -> 0.0274289497 | BW158: 0.03663080563 | BX158: =IF($BY$12<3,BV158,SUM($BZ$42:BZ158)/$BX$40) -> 0.0274289497 | BY158: 11.6 | BZ158: 0.003157828072 | CA158: 26 | CB158: 36 | CC158: =IF(CB158="",NA(),COUNTIF(CB158:$CB$704,CB158)) -> 2 | CD158: 49.536 | CE158: 25.085 | CF158: 25.085 | CG158: 25.085 | CH158: 1 | CJ158: 25.085 | CK158: 49.49926271
AM159: 0.07468508556 | AN159: 0.82655463 | AO159: 21.1 | AP159: 20.64472734 | AQ159: 0.005804205298 | AR159: 0.8264940716 | AS159: 0.4607491679 | AT159: 68.8 | AU159: 68.9692288 | AV159: 0.005908446775 | AW159: 0.3663339801 | AX159: 0.5634744205 | AY159: 43.1 | AZ159: 43.12974825 | BA159: 0.01059030152 | BB159: 0.1501638927 | BC159: 0.8786962517 | BD159: 29.2 | BE159: 29.63965713 | BF159: 0.01020592537 | BU159: 0 | BV159: =IF($BY$12=1,NORMDIST(BY159,$Y$6,$Y$8,TRUE),IF($BY$12=2,IF(BY159<=$BX$31,0,IF(BY159>=$BX$32,1,(BY159-$BX$31)*$BX$33)),SUM($BU$42:BU159)/$BV$40)) -> 0.02774625181 | BW159: 0.03730251736 | BX159: =IF($BY$12<3,BV159,SUM($BZ$42:BZ159)/$BX$40) -> 0.02774625181 | BY159: 11.7 | BZ159: 0.003188249347 | CA159: 26 | CB159: 37 | CC159: =IF(CB159="",NA(),COUNTIF(CB159:$CB$704,CB159)) -> 3 | CD159: 50.912 | CE159: 24.475 | CF159: 24.475 | CG159: 24.475 | CH159: 1 | CJ159: 24.475 | CK159: 50.92842298
AM160: 0.04472734407 | AN160: 0.02211451903 | AO160: 16 | AP160: 15.9777873 | AQ160: 0.0001039925056 | AR160: 0.6692287959 | AS160: 0.6591327675 | AT160: 58.7 | AU160: 58.44341289 | AV160: 0.0119608842 | AW160: 0.5297482498 | AX160: 0.3847173788 | AY160: 51.4 | AZ160: 51.68897937 | BA160: 0.007655223129 | BB160: 0.9396571256 | BC160: 0.4717629738 | BD160: 81 | BE160: 81.37107069 | BF160: 0.002830790153 | BU160: 0 | BV160: =IF($BY$12=1,NORMDIST(BY160,$Y$6,$Y$8,TRUE),IF($BY$12=2,IF(BY160<=$BX$31,0,IF(BY160>=$BX$32,1,(BY160-$BX$31)*$BX$33)),SUM($BU$42:BU160)/$BV$40)) -> 0.02806660666 | BW160: 0.03798282195 | BX160: =IF($BY$12<3,BV160,SUM($BZ$42:BZ160)/$BX$40) -> 0.02806660666 | BY160: 11.8 | BZ160: 0.003218883216 | CA160: 26 | CB160: 37 | CC160: =IF(CB160="",NA(),COUNTIF(CB160:$CB$704,CB160)) -> 2 | CD160: 50.912 | CE160: 25.085 | CF160: 25.085 | CG160: 25.085 | CH160: 1 | CJ160: 25.085 | CK160: 51.15280588
AM161: 0.4777873047 | AN161: 0.2579311468 | AO161: 48.8 | AP161: 49.12081207 | AQ161: 0.005135729356 | AR161: 0.2434128858 | AS161: 0.02251656726 | AT161: 36 | AU161: 36.46531564 | AV161: 0.0003515443346 | AW161: 0.7889793701 | AX161: 0.9582017101 | AY161: 66 | AZ161: 66.05796968 | BA161: 0.01387914706 | BB161: 0.8710706867 | BC161: 0.1911965497 | BD161: 72.6 | BE161: 73.08239324 | BF161: 0.002014117528 | BU161: 0 | BV161: =IF($BY$12=1,NORMDIST(BY161,$Y$6,$Y$8,TRUE),IF($BY$12=2,IF(BY161<=$BX$31,0,IF(BY161>=$BX$32,1,(BY161-$BX$31)*$BX$33)),SUM($BU$42:BU161)/$BV$40)) -> 0.02839003555 | BW161: 0.03867178918 | BX161: =IF($BY$12<3,BV161,SUM($BZ$42:BZ161)/$BX$40) -> 0.02839003555 | BY161: 11.9 | BZ161: 0.003249730183 | CA161: 26 | CB161: 36 | CC161: =IF(CB161="",NA(),COUNTIF(CB161:$CB$704,CB161)) -> 1 | CD161: 49.536 | CE161: 25.695 | CF161: 25.695 | CG161: 25.695 | CH161: 1 | CJ161: 25.695 | CK161: 50.08969423
AM162: 0.8208120652 | AN162: 0.3220999874 | AO162: 68.3 | AP162: 67.86147443 | AQ162: 0.004227364336 | AR162: 0.9653156437 | AS162: 0.9860831387 | AT162: 86.3 | AU162: 86.00642183 | AW162: 0.5579696782 | AX162: 0.03553912416 | AY162: 52.9 | AZ162: 53.10361866 | BA162: 0.0007014896539 | BB162: 0.9823932387 | BC162: 0.1580468602 | BD162: 92.1 | BE162: 92.25708769 | BF162: 0.0003439387348 | BU162: 0 | BV162: =IF($BY$12=1,NORMDIST(BY162,$Y$6,$Y$8,TRUE),IF($BY$12=2,IF(BY162<=$BX$31,0,IF(BY162>=$BX$32,1,(BY162-$BX$31)*$BX$33)),SUM($BU$42:BU162)/$BV$40)) -> 0.02871655982 | BW162: 0.03936948886 | BX162: =IF($BY$12<3,BV162,SUM($BZ$42:BZ162)/$BX$40) -> 0.02871655982 | BY162: 12 | BZ162: 0.003280790739 | CA162: 26 | CB162: 30 | CC162: =IF(CB162="",NA(),COUNTIF(CB162:$CB$704,CB162)) -> 1 | CD162: 41.28 | CE162: 25.695 | CF162: 25.695 | CG162: 25.695 | CH162: 1 | CJ162: 25.695 | CK162: 41.09043737
AM163: 0.06147443131 | AN163: 0.1122288443 | AO163: 19.1 | AP163: 19.50212311 | AQ163: 0.0006786543983 | AR163: 0.206421826 | AS163: 0.9438315816 | AT163: 33.6 | AU163: 33.18603418 | AV163: 0.01345131585 | AW163: 0.7036186643 | AX163: 0.7899874486 | AY163: 60.6 | AZ163: 60.85586598 | BA163: 0.01369315743 | BB163: 0.6570876874 | BC163: 0.4161695726 | BD163: 58 | BE163: 57.63642028 | BF163: 0.007663141345 | BU163: 0 | BV163: =IF($BY$12=1,NORMDIST(BY163,$Y$6,$Y$8,TRUE),IF($BY$12=2,IF(BY163<=$BX$31,0,IF(BY163>=$BX$32,1,(BY163-$BX$31)*$BX$33)),SUM($BU$42:BU163)/$BV$40)) -> 0.02904620084 | BW163: 0.04007599092 | BX163: =IF($BY$12<3,BV163,SUM($BZ$42:BZ163)/$BX$40) -> 0.02904620084 | BY163: 12.1 | BZ163: 0.003312065365 | CA163: 26 | CB163: 39 | CC163: =IF(CB163="",NA(),COUNTIF(CB163:$CB$704,CB163)) -> 1 | CD163: 53.664 | CE163: 25.695 | CF163: 25.695 | CG163: 25.695 | CH163: 1 | CJ163: 25.695 | CK163: 52.99032852
AM164: 0.9021231122 | AN164: 0.849915389 | AO164: 75.8 | AP164: 76.23861573 | AQ164: 0.007377361065 | AR164: 0.08603418246 | AS164: 0.9430355318 | AT164: 22.6 | AU164: 22.67735256 | AW164: 0.7558659799 | AX164: 0.6256547309 | AY164: 63.8 | AZ164: 63.74296976 | BA164: 0.009836282689 | BB164: 0.1364202835 | BC164: 0.6081294604 | BD164: 28 | BE164: 28.00932879 | BF164: 0.006624116343 | BU164: 0 | BV164: =IF($BY$12=1,NORMDIST(BY164,$Y$6,$Y$8,TRUE),IF($BY$12=2,IF(BY164<=$BX$31,0,IF(BY164>=$BX$32,1,(BY164-$BX$31)*$BX$33)),SUM($BU$42:BU164)/$BV$40)) -> 0.02937898004 | BW164: 0.04079136529 | BX164: =IF($BY$12<3,BV164,SUM($BZ$42:BZ164)/$BX$40) -> 0.02937898004 | BY164: 12.2 | BZ164: 0.003343554532 | CA164: 26 | CB164: 34 | CC164: =IF(CB164="",NA(),COUNTIF(CB164:$CB$704,CB164)) -> 1 | CD164: 46.784 | CE164: 25.695 | CF164: 25.695 | CG164: 25.695 | CH164: 1 | CJ164: 25.695 | CK164: 47.43525643
AM165: 0.9386157282 | AN165: 0.4837012626 | AO165: 80.8 | AP165: 81.21434713 | AQ165: 0.002947615927 | AR165: 0.5773525573 | AS165: 0.07889648154 | AT165: 53.9 | AU165: 54.24109205 | AV165: 0.001544118699 | AW165: 0.4429697581 | AX165: 0.3392424025 | AY165: 47.1 | AZ165: 47.03479275 | BA165: 0.006696142381 | BB165: 0.5093287863 | BC165: 0.4841115363 | BD165: 50.4 | BE165: 50.55639219 | BF165: 0.00965469688 | BU165: 0 | BV165: =IF($BY$12=1,NORMDIST(BY165,$Y$6,$Y$8,TRUE),IF($BY$12=2,IF(BY165<=$BX$31,0,IF(BY165>=$BX$32,1,(BY165-$BX$31)*$BX$33)),SUM($BU$42:BU165)/$BV$40)) -> 0.02971491891 | BW165: 0.04151568197 | BX165: =IF($BY$12<3,BV165,SUM($BZ$42:BZ165)/$BX$40) -> 0.02971491891 | BY165: 12.3 | BZ165: 0.003375258697 | CA165: 26 | CB165: 35 | CC165: =IF(CB165="",NA(),COUNTIF(CB165:$CB$704,CB165)) -> 1 | CD165: 48.16 | CE165: 25.695 | CF165: 25.695 | CG165: 25.695 | CH165: 1 | CJ165: 25.695 | CK165: 47.95264815
AM166: 0.9143471308 | AN166: 0.1945652403 | AO166: 77.3 | AP166: 77.73228554 | AQ166: 0.0015288017 | AR166: 0.8410920538 | AS166: 0.4722049125 | AT166: 69.9 | AU166: 69.66320276 | AV166: 0.005741552942 | AW166: 0.4347927459 | AX166: 0.1108900048 | AY166: 46.7 | AZ166: 46.68940875 | BA166: 0.002182029605 | BB166: 0.6563921906 | BC166: 0.4391524978 | BD166: 58 | BE166: 58.18696452 | BF166: 0.008086337599 | BU166: 0 | BV166: =IF($BY$12=1,NORMDIST(BY166,$Y$6,$Y$8,TRUE),IF($BY$12=2,IF(BY166<=$BX$31,0,IF(BY166>=$BX$32,1,(BY166-$BX$31)*$BX$33)),SUM($BU$42:BU166)/$BV$40)) -> 0.03005403896 | BW166: 0.04224901098 | BX166: =IF($BY$12<3,BV166,SUM($BZ$42:BZ166)/$BX$40) -> 0.03005403896 | BY166: 12.4 | BZ166: 0.003407178305 | CA166: 26 | CB166: 37 | CC166: =IF(CB166="",NA(),COUNTIF(CB166:$CB$704,CB166)) -> 1 | CD166: 50.912 | CE166: 25.695 | CF166: 25.695 | CG166: 25.695 | CH166: 1 | CJ166: 25.695 | CK166: 51.25874454
AM167: 0.9322855361 | AN167: 0.4805179574 | AO167: 79.8 | AP167: 80.12032897 | AQ167: 0.003158647069 | AR167: 0.2632027604 | AS167: 0.02532174066 | AT167: 37.3 | AU167: 37.53575354 | AV167: 0.0004128710487 | AW167: 0.4894087501 | AX167: 0.8631839789 | AY167: 49.4 | AZ167: 48.91084189 | BA167: 0.01721028288 | BB167: 0.6869645156 | BC167: 0.08650498465 | BD167: 59.7 | BE167: 60.17103516 | BF167: 0.001534061405 | BU167: 0 | BV167: =IF($BY$12=1,NORMDIST(BY167,$Y$6,$Y$8,TRUE),IF($BY$12=2,IF(BY167<=$BX$31,0,IF(BY167>=$BX$32,1,(BY167-$BX$31)*$BX$33)),SUM($BU$42:BU167)/$BV$40)) -> 0.03039636177 | BW167: 0.04299142239 | BX167: =IF($BY$12<3,BV167,SUM($BZ$42:BZ167)/$BX$40) -> 0.03039636177 | BY167: 12.5 | BZ167: 0.003439313791 | CA167: 26 | CC167: =IF(CB167="",NA(),COUNTIF(CB167:$CB$704,CB167)) ->  | CF167: 99 | CG167: 0 | CH167: 0
AM168: 0.8203289695 | AN168: 0.3593606986 | AO168: 68.3 | AP168: 68.45779452 | AQ168: 0.004716388266 | AR168: 0.7357535399 | AS168: 0.9642925747 | AT168: 62.6 | AU168: 62.38254238 | AV168: 0.01577259503 | AW168: 0.01084189489 | AX168: 0.08989301696 | AY168: 4 | AZ168: 3.838251192 | BA168: 0.0001273201442 | BB168: 0.9710351564 | BC168: 0.1874471493 | BD168: 87.9 | BE168: 88.3298783 | BF168: 0.000620837211 | BU168: 0 | BV168: =IF($BY$12=1,NORMDIST(BY168,$Y$6,$Y$8,TRUE),IF($BY$12=2,IF(BY168<=$BX$31,0,IF(BY168>=$BX$32,1,(BY168-$BX$31)*$BX$33)),SUM($BU$42:BU168)/$BV$40)) -> 0.03074190893 | BW168: 0.04374298627 | BX168: =IF($BY$12<3,BV168,SUM($BZ$42:BZ168)/$BX$40) -> 0.03074190893 | BY168: 12.6 | BZ168: 0.003471665577 | CA168: 26 | CC168: =IF(CB168="",NA(),COUNTIF(CB168:$CB$704,CB168)) ->  | CF168: 99 | CG168: 0 | CH168: 0
AM169: 0.657794524 | AN169: 0.7911707498 | AO169: 58.1 | AP169: 58.38335293 | AQ169: 0.01453893907 | AR169: 0.2825423814 | AS169: 0.4874072857 | AT169: 38.4 | AU169: 38.09349581 | AV169: 0.008217198061 | AW169: 0.3382511921 | AX169: 0.3184924759 | AY169: 41.6 | AZ169: 41.99937292 | BA169: 0.005816670648 | BB169: 0.9298782982 | BC169: 0.07035003975 | BD169: 79.4 | BE169: 79.21205389 | BF169: 0.0004763333007 | BU169: 0 | BV169: =IF($BY$12=1,NORMDIST(BY169,$Y$6,$Y$8,TRUE),IF($BY$12=2,IF(BY169<=$BX$31,0,IF(BY169>=$BX$32,1,(BY169-$BX$31)*$BX$33)),SUM($BU$42:BU169)/$BV$40)) -> 0.0310907021 | BW169: 0.04450377271 | BX169: =IF($BY$12<3,BV169,SUM($BZ$42:BZ169)/$BX$40) -> 0.0310907021 | BY169: 12.7 | BZ169: 0.003504234072 | CA169: 26 | CC169: =IF(CB169="",NA(),COUNTIF(CB169:$CB$704,CB169)) ->  | CF169: 99 | CG169: 0 | CH169: 0
AM170: 0.7833529301 | AN170: 0.4845758118 | AO170: 65.6 | AP170: 65.51722094 | AQ170: 0.007130654936 | AR170: 0.1934958138 | AS170: 0.6530173905 | AT170: 32.6 | AU170: 32.49441988 | AV170: 0.008921668261 | AW170: 0.8993729241 | AX170: 0.9330403544 | AY170: 75.5 | AZ170: 75.67353334 | BA170: 0.00825620588 | BB170: 0.3120538928 | BC170: 0.9843152948 | BD170: 40.1 | BE170: 40.3438227 | BU170: 0 | BV170: =IF($BY$12=1,NORMDIST(BY170,$Y$6,$Y$8,TRUE),IF($BY$12=2,IF(BY170<=$BX$31,0,IF(BY170>=$BX$32,1,(BY170-$BX$31)*$BX$33)),SUM($BU$42:BU170)/$BV$40)) -> 0.03144276298 | BW170: 0.04527385181 | BX170: =IF($BY$12<3,BV170,SUM($BZ$42:BZ170)/$BX$40) -> 0.03144276298 | BY170: 12.8 | BZ170: =IF($BZ$5,IF($BY$12=1,NORMDIST(BY170,$Y$6,$Y$8,FALSE),IF($BY$12=2,IF(AND(BY170>=$BX$31,BY170<=$BX$32),$BX$33,0),IF(BY170<=$BX$13,0,NORMDIST(LN((BY170-$BX$13)/$BX$12),0,$BW$8,FALSE)/((BY170-$BX$13)/$BX$12)))),-999) -> 0.003537019673 | CA170: 26 | CB170: =IF(M69="","",ROUND(M69/$P$24,0)) ->  | CC170: =IF(CB170="",NA(),COUNTIF(CB170:$CB$704,CB170)) ->  | CD170: =IF(CB170<>"",CB170*$P$24,NA()) ->  | CE170: =IF(AND($CB$7,$CD$2,$CD$1),26+$P$23/2-CC170*$P$23,NA()) ->  | CF170: =IF(ISNA(CJ170),99,CJ170) -> 99 | CG170: =IF(ISNA(CJ170),0,CJ170) -> 0 | CH170: 0 | CJ170: =IF(CH170=1,CE170,NA()) ->  | CK170: =IF(CH170=1,M69,"") -> 
AM171: 0.417220939 | AN171: 0.8133799769 | AO171: 45.8 | AP171: 45.64292402 | AQ171: 0.01587074647 | AR171: 0.3944198824 | AS171: 0.9519237466 | AT171: 44.6 | AU171: 44.94116519 | AV171: 0.01830847609 | AW171: 0.6735333391 | AX171: 0.1464673318 | AY171: 58.9 | AZ171: 58.62204416 | BA171: 0.002646185332 | BB171: 0.7438226976 | BC171: 0.6451956518 | BD171: 63.1 | BE171: 63.50553788 | BF171: 0.01038508145 | BU171: =IF($BY$12<3,0,IF(BY171<=$BX$13,0,NORMDIST(LN((BY171-$BX$13)/$BX$12),0,$BW$8,FALSE)/((BY171-$BX$13)/$BX$12))) -> 0 | BV171: =IF($BY$12=1,NORMDIST(BY171,$Y$6,$Y$8,TRUE),IF($BY$12=2,IF(BY171<=$BX$31,0,IF(BY171>=$BX$32,1,(BY171-$BX$31)*$BX$33)),SUM($BU$42:BU171)/$BV$40)) -> 0.03179811329 | BW171: =BY171*BZ171 -> 0.04605329365 | BX171: =IF($BY$12<3,BV171,SUM($BZ$42:BZ171)/$BX$40) -> 0.03179811329 | BY171: =BY170+$BZ$1 -> 12.9 | BZ171: 0.003570022764 | CA171: =IF(AND($CD$1,$CD$3),26-$CD$40*NORMDIST(BY171,$Y$6,$Y$8/SQRT($T$18),FALSE),-999) -> 26 | CC171: =IF(CB171="",NA(),COUNTIF(CB171:$CB$704,CB171)) ->  | CF171: 99 | CG171: 0 | CH171: 0
AM172: 0.3429240175 | AN172: 0.6326037683 | AO172: 41.9 | AP172: 42.30644186 | AQ172: 0.01162503498 | AR172: 0.8411651887 | AS172: 0.8221470602 | AT172: 69.9 | AU172: 69.68976849 | AV172: 0.009996509456 | AW172: 0.2220441587 | AX172: 0.4738433696 | AY172: 34.6 | AZ172: 34.9562934 | BA172: 0.007026972906 | BB172: 0.9055378772 | BC172: 0.5443107672 | BD172: 76.2 | BE172: 76.44807567 | BF172: 0.00460342016 | BU172: 0 | BV172: =IF($BY$12=1,NORMDIST(BY172,$Y$6,$Y$8,TRUE),IF($BY$12=2,IF(BY172<=$BX$31,0,IF(BY172>=$BX$32,1,(BY172-$BX$31)*$BX$33)),SUM($BU$42:BU172)/$BV$40)) -> 0.0321567748 | BW172: 0.04684216832 | BX172: =IF($BY$12<3,BV172,SUM($BZ$42:BZ172)/$BX$40) -> 0.0321567748 | BY172: 13 | BZ172: 0.003603243717 | CA172: 26 | CC172: =IF(CB172="",NA(),COUNTIF(CB172:$CB$704,CB172)) ->  | CF172: 99 | CG172: 0 | CH172: 0
AM173: 0.9064418562 | AN173: 0.3455007412 | AO173: 76.3 | AP173: 76.70304919 | AQ173: 0.002902903612 | AR173: 0.2897684909 | AS173: 0.6763937064 | AT173: 38.9 | AU173: 39.25663337 | AV173: 0.0115662573 | AW173: 0.8562933989 | AX173: 0.1206833757 | AY173: 71.2 | AZ173: 71.026344 | BA173: 0.001372590156 | BB173: 0.7480756678 | BC173: 0.4026708491 | BD173: 63.3 | BE173: 63.5258676 | BF173: 0.006438761255 | BU173: 0 | BV173: =IF($BY$12=1,NORMDIST(BY173,$Y$6,$Y$8,TRUE),IF($BY$12=2,IF(BY173<=$BX$31,0,IF(BY173>=$BX$32,1,(BY173-$BX$31)*$BX$33)),SUM($BU$42:BU173)/$BV$40)) -> 0.03251876931 | BW173: 0.04764054586 | BX173: =IF($BY$12<3,BV173,SUM($BZ$42:BZ173)/$BX$40) -> 0.03251876931 | BY173: 13.1 | BZ173: 0.00363668289 | CA173: 26 | CC173: =IF(CB173="",NA(),COUNTIF(CB173:$CB$704,CB173)) ->  | CF173: 99 | CG173: 0 | CH173: 0
AM174: 0.9030491896 | AN174: 0.6356131472 | AO174: 75.9 | AP174: 76.13466443 | AQ174: 0.005481653628 | AR174: 0.8566333689 | AS174: 0.825029362 | AT174: 71.3 | AU174: 71.14531245 | AV174: 0.009333738854 | AW174: 0.326344002 | AX174: 0.2628544308 | AY174: 40.9 | AZ174: 41.12535278 | BA174: 0.004727597178 | BB174: 0.725867603 | BC174: 0.4660206027 | BD174: 62 | BE174: 61.5855968 | BF174: 0.007764476514 | BU174: 0 | BV174: =IF($BY$12=1,NORMDIST(BY174,$Y$6,$Y$8,TRUE),IF($BY$12=2,IF(BY174<=$BX$31,0,IF(BY174>=$BX$32,1,(BY174-$BX$31)*$BX$33)),SUM($BU$42:BU174)/$BV$40)) -> 0.03288411866 | BW174: 0.0484484963 | BX174: =IF($BY$12<3,BV174,SUM($BZ$42:BZ174)/$BX$40) -> 0.03288411866 | BY174: 13.2 | BZ174: 0.003670340629 | CA174: 26 | CC174: =IF(CB174="",NA(),COUNTIF(CB174:$CB$704,CB174)) ->  | CF174: 99 | CG174: 0 | CH174: 0
AM175: 0.734664429 | AN175: 0.8404291607 | AO175: 62.5 | AP175: 62.53301861 | AQ175: 0.01378980237 | AR175: 0.3453124501 | AS175: 0.9898729511 | AT175: 42 | AU175: 41.8789537 | AW175: 0.7253527828 | AX175: 0.2571470775 | AY175: 61.9 | AZ175: 61.51762219 | BA175: 0.004297205382 | BB175: 0.08559680358 | BC175: 0.1485159881 | BD175: 22.6 | BE175: 22.91212083 | BF175: 0.001159016511 | BU175: 0 | BV175: =IF($BY$12=1,NORMDIST(BY175,$Y$6,$Y$8,TRUE),IF($BY$12=2,IF(BY175<=$BX$31,0,IF(BY175>=$BX$32,1,(BY175-$BX$31)*$BX$33)),SUM($BU$42:BU175)/$BV$40)) -> 0.03325284473 | BW175: 0.04926608964 | BX175: =IF($BY$12<3,BV175,SUM($BZ$42:BZ175)/$BX$40) -> 0.03325284473 | BY175: 13.3 | BZ175: 0.003704217266 | CA175: 26 | CC175: =IF(CB175="",NA(),COUNTIF(CB175:$CB$704,CB175)) ->  | CF175: 99 | CG175: 0 | CH175: 0
AM176: 0.5330186076 | AN176: 0.00570416823 | AO176: 51.6 | AP176: 51.85645714 | AQ176: 0.0001134181746 | AR176: 0.378953699 | AS176: 0.9166234024 | AT176: 43.8 | AU176: 44.23997327 | AV176: 0.01742621875 | AW176: 0.1176221855 | AX176: 0.3840731718 | AY176: 26.2 | AZ176: 26.41059735 | BA176: 0.003773912566 | BB176: 0.8121208288 | BC176: 0.8453462906 | BD176: 67.7 | BE176: 68.09568359 | BF176: 0.01139828662 | BU176: 0 | BV176: =IF($BY$12=1,NORMDIST(BY176,$Y$6,$Y$8,TRUE),IF($BY$12=2,IF(BY176<=$BX$31,0,IF(BY176>=$BX$32,1,(BY176-$BX$31)*$BX$33)),SUM($BU$42:BU176)/$BV$40)) -> 0.03362496942 | BW176: 0.05009339581 | BX176: =IF($BY$12<3,BV176,SUM($BZ$42:BZ176)/$BX$40) -> 0.03362496942 | BY176: 13.4 | BZ176: 0.00373831312 | CA176: 26 | CC176: =IF(CB176="",NA(),COUNTIF(CB176:$CB$704,CB176)) ->  | CF176: 99 | CG176: 0 | CH176: 0
AM177: 0.7564571388 | AN177: 0.2220086195 | AO177: 63.8 | AP177: 63.38068689 | AQ177: 0.003490326905 | AR177: 0.9399732687 | AS177: 0.90623172 | AT177: 81 | AU177: 81.48101741 | AV177: 0.005437798156 | AW177: 0.7105973549 | AX177: 0.7869527973 | AY177: 61.1 | AZ177: 60.80362102 | BA177: 0.01345680548 | BB177: 0.8956835903 | BC177: 0.5471140034 | BD177: 75.1 | BE177: 74.74697883 | BF177: 0.00496530085 | BU177: 0 | BV177: =IF($BY$12=1,NORMDIST(BY177,$Y$6,$Y$8,TRUE),IF($BY$12=2,IF(BY177<=$BX$31,0,IF(BY177>=$BX$32,1,(BY177-$BX$31)*$BX$33)),SUM($BU$42:BU177)/$BV$40)) -> 0.03400051467 | BW177: 0.05093048469 | BX177: =IF($BY$12<3,BV177,SUM($BZ$42:BZ177)/$BX$40) -> 0.03400051467 | BY177: 13.5 | BZ177: 0.003772628496 | CA177: 26 | CC177: =IF(CB177="",NA(),COUNTIF(CB177:$CB$704,CB177)) ->  | CF177: 99 | CG177: 0 | CH177: 0
AM178: 0.08068688586 | AN178: 0.9075649418 | AO178: 21.9 | AP178: 21.61628105 | AQ178: 0.00674689108 | AR178: 0.9810174145 | AS178: 0.8980308659 | AT178: 91.5 | AU178: 91.33377597 | AW178: 0.2036210187 | AX178: 0.8338527419 | AY178: 33.4 | AZ178: 33.15875868 | BA178: 0.01178627845 | BB178: 0.1469788291 | BC178: 0.2012850232 | BD178: 29 | BE178: 29.34912765 | BF178: 0.002313591602 | BU178: 0 | BV178: =IF($BY$12=1,NORMDIST(BY178,$Y$6,$Y$8,TRUE),IF($BY$12=2,IF(BY178<=$BX$31,0,IF(BY178>=$BX$32,1,(BY178-$BX$31)*$BX$33)),SUM($BU$42:BU178)/$BV$40)) -> 0.03437950245 | BW178: 0.05177742611 | BX178: =IF($BY$12<3,BV178,SUM($BZ$42:BZ178)/$BX$40) -> 0.03437950245 | BY178: 13.6 | BZ178: 0.003807163685 | CA178: 26 | CC178: =IF(CB178="",NA(),COUNTIF(CB178:$CB$704,CB178)) ->  | CF178: 99 | CG178: 0 | CH178: 0
AM179: 0.2162810452 | AN179: =MOD(AM179*10000013,1) -> 0.2639360167 | AO179: =IF(VLOOKUP(AM179,$BX$42:$BY$4042,2)>=$AO$112,NA(),VLOOKUP(AM179,$BX$42:$BY$4042,2)) -> 34.3 | AP179: =IF(AND(AO179<100,$P$16),AO179+AM180+$AU$113,NA()) -> 34.39825434 | AQ179: =IF(AN179*VLOOKUP(AO179,$BY$42:$BZ$1042,2)<VLOOKUP(AO179,$BY$42:$BZ$1042,2)-$BZ$40/$CB$40,AN179*VLOOKUP(AO179,$BY$42:$BZ$1042,2),NA()) -> 0.003868718851 | AR179: 0.3337759711 | AS179: =MOD(AR179*10000013,1) -> 0.04993595555 | AT179: =IF(VLOOKUP(AR179,$BX$42:$BY$4042,2)>=$AO$112,NA(),VLOOKUP(AR179,$BX$42:$BY$4042,2)) -> 41.4 | AU179: =IF(AND(AT179<100,$P$16),AT179+AR180+$AU$113,NA()) -> 41.10470989 | AV179: =IF(AS179*VLOOKUP(AT179,$BY$42:$BZ$1042,2)<VLOOKUP(AT179,$BY$42:$BZ$1042,2)-$BZ$40/$CB$40,AS179*VLOOKUP(AT179,$BY$42:$BZ$1042,2),NA()) -> 0.0009081193091 | AW179: 0.2587586828 | AX179: =MOD(AW179*10000013,1) -> 0.1914390363 | AY179: =IF(VLOOKUP(AW179,$BX$42:$BY$4042,2)>=$AO$112,NA(),VLOOKUP(AW179,$BX$42:$BY$4042,2)) -> 37 | AZ179: =IF(AND(AY179<100,$P$16),AY179+AW180+$AU$113,NA()) -> 37.35150664 | BA179: 0.003091475864 | BB179: 0.849127654 | BC179: =MOD(BB179*10000013,1) -> 0.5785216577 | BD179: =IF(VLOOKUP(BB179,$BX$42:$BY$4042,2)>=$AO$112,NA(),VLOOKUP(BB179,$BX$42:$BY$4042,2)) -> 70.6 | BE179: =IF(AND(BD179<100,$P$16),BD179+BB180+$AU$113,NA()) -> 70.19813264 | BF179: =IF(BC179*VLOOKUP(BD179,$BY$42:$BZ$1042,2)<VLOOKUP(BD179,$BY$42:$BZ$1042,2)-$BZ$40/$CB$40,BC179*VLOOKUP(BD179,$BY$42:$BZ$1042,2),NA()) -> 0.006789349789 | BU179: 0 | BV179: =IF($BY$12=1,NORMDIST(BY179,$Y$6,$Y$8,TRUE),IF($BY$12=2,IF(BY179<=$BX$31,0,IF(BY179>=$BX$32,1,(BY179-$BX$31)*$BX$33)),SUM($BU$42:BU179)/$BV$40)) -> 0.03476195474 | BW179: 0.05263428982 | BX179: =IF($BY$12<3,BV179,SUM($BZ$42:BZ179)/$BX$40) -> 0.03476195474 | BY179: 13.7 | BZ179: 0.003841918965 | CA179: 26 | CC179: =IF(CB179="",NA(),COUNTIF(CB179:$CB$704,CB179)) ->  | CF179: 99 | CG179: 0 | CH179: 0
AM180: =MOD(AN179*10000013,1) -> 0.5982543416 | AN180: 0.1936277188 | AO180: 54.9 | AP180: 55.10552104 | AQ180: 0.003748118698 | AR180: =MOD(AS179*10000013,1) -> 0.2047098912 | AS180: 0.5735272653 | AT180: 33.5 | AU180: 33.10925535 | AV180: 0.008140260408 | AW180: =MOD(AX179*10000013,1) -> 0.8515066393 | AX180: 0.4623060562 | AY180: 70.8 | AZ180: 70.87169529 | BA180: =IF(AX180*VLOOKUP(AY180,$BY$42:$BZ$1042,2)<VLOOKUP(AY180,$BY$42:$BZ$1042,2)-$BZ$40/$CB$40,AX180*VLOOKUP(AY180,$BY$42:$BZ$1042,2),NA()) -> 0.005369615606 | BB180: =MOD(BC179*10000013,1) -> 0.09813264385 | BC180: 0.7142109461 | BD180: 24.1 | BE180: 24.34587101 | BF180: 0.006159496608 | BU180: 0 | BV180: =IF($BY$12=1,NORMDIST(BY180,$Y$6,$Y$8,TRUE),IF($BY$12=2,IF(BY180<=$BX$31,0,IF(BY180>=$BX$32,1,(BY180-$BX$31)*$BX$33)),SUM($BU$42:BU180)/$BV$40)) -> 0.03514789358 | BW180: 0.05350114547 | BX180: =IF($BY$12<3,BV180,SUM($BZ$42:BZ180)/$BX$40) -> 0.03514789358 | BY180: 13.8 | BZ180: 0.0038768946 | CA180: 26 | CC180: =IF(CB180="",NA(),COUNTIF(CB180:$CB$704,CB180)) ->  | CF180: 99 | CG180: 0 | CH180: 0
AM181: 0.7055210359 | AN181: 0.5311680175 | AO181: 60.8 | AP181: 60.38054825 | AQ181: 0.009157814712 | AR181: 0.1092553474 | AS181: 0.8943285532 | AT181: 25.3 | AU181: 24.9585669 | AV181: 0.00832106216 | AW181: 0.5716952868 | AX181: 0.2998446859 | AY181: 53.6 | AZ181: 53.85740026 | BA181: 0.005884923964 | BB181: 0.7458710112 | BC181: 0.8080007918 | BD181: 63.2 | BE181: 63.12218933 | BF181: 0.01296291038 | BU181: 0 | BV181: =IF($BY$12=1,NORMDIST(BY181,$Y$6,$Y$8,TRUE),IF($BY$12=2,IF(BY181<=$BX$31,0,IF(BY181>=$BX$32,1,(BY181-$BX$31)*$BX$33)),SUM($BU$42:BU181)/$BV$40)) -> 0.03553734102 | BW181: 0.05437806265 | BX181: =IF($BY$12<3,BV181,SUM($BZ$42:BZ181)/$BX$40) -> 0.03553734102 | BY181: 13.9 | BZ181: 0.003912090838 | CA181: 26 | CC181: =IF(CB181="",NA(),COUNTIF(CB181:$CB$704,CB181)) ->  | CF181: 99 | CG181: 0 | CH181: 0
AM182: 0.08054824546 | AN182: 0.501725141 | AO182: 21.9 | AP182: 22.33201708 | AQ182: 0.003729854165 | AR182: 0.1585668959 | AS182: 0.02009319142 | AT182: 29.9 | AU182: 29.5753622 | AV182: 0.0002418827233 | AW182: 0.7574002631 | AX182: 0.4772120453 | AY182: 63.9 | AZ182: 64.05717389 | BA182: 0.007476596125 | BB182: 0.4221893288 | BC182: 0.7766564079 | BD182: 46 | BE182: 45.67516232 | BF182: 0.0151852907 | BU182: 0 | BV182: =IF($BY$12=1,NORMDIST(BY182,$Y$6,$Y$8,TRUE),IF($BY$12=2,IF(BY182<=$BX$31,0,IF(BY182>=$BX$32,1,(BY182-$BX$31)*$BX$33)),SUM($BU$42:BU182)/$BV$40)) -> 0.03593031911 | BW182: 0.05526511081 | BX182: =IF($BY$12<3,BV182,SUM($BZ$42:BZ182)/$BX$40) -> 0.03593031911 | BY182: 14 | BZ182: 0.003947507915 | CA182: 26 | CC182: =IF(CB182="",NA(),COUNTIF(CB182:$CB$704,CB182)) ->  | CF182: 99 | CG182: 0 | CH182: 0
AM183: 0.9320170768 | AN183: 0.8838273026 | AO183: 79.8 | AP183: 79.81580407 | AQ183: 0.005809769388 | AR183: 0.1753622033 | AS183: 0.3124106117 | AT183: 31.3 | AU183: 30.97793084 | AV183: 0.004025040926 | AW183: 0.6571738906 | AX183: 0.4494652785 | AY183: 58 | AZ183: 58.12840943 | BA183: 0.008276232059 | BB183: 0.1751623191 | BC183: 0.4680495746 | BD183: 31.3 | BE183: 31.63107821 | BF183: 0.006030264732 | BU183: 0 | BV183: =IF($BY$12=1,NORMDIST(BY183,$Y$6,$Y$8,TRUE),IF($BY$12=2,IF(BY183<=$BX$31,0,IF(BY183>=$BX$32,1,(BY183-$BX$31)*$BX$33)),SUM($BU$42:BU183)/$BV$40)) -> 0.03632684997 | BW183: 0.05616235932 | BX183: =IF($BY$12<3,BV183,SUM($BZ$42:BZ183)/$BX$40) -> 0.03632684997 | BY183: 14.1 | BZ183: 0.003983146051 | CA183: 26 | CC183: =IF(CB183="",NA(),COUNTIF(CB183:$CB$704,CB183)) ->  | CF183: 99 | CG183: 0 | CH183: 0
AM184: 0.515804071 | AN184: 0.4152464904 | AO184: 50.7 | AP184: 50.50209546 | AQ184: 0.008277897325 | AR184: 0.1779308356 | AS184: 0.6694455631 | AT184: 31.5 | AU184: 31.33386961 | AV184: 0.008705600423 | AW184: 0.6284094341 | AX184: 0.5104219057 | AY184: 56.5 | AZ184: 56.69215067 | BA184: 0.009657688588 | BB184: 0.8310782053 | BC184: 0.8565932103 | BD184: 69.1 | BE184: 68.83821313 | BF184: 0.01082956433 | BU184: 0 | BV184: =IF($BY$12=1,NORMDIST(BY184,$Y$6,$Y$8,TRUE),IF($BY$12=2,IF(BY184<=$BX$31,0,IF(BY184>=$BX$32,1,(BY184-$BX$31)*$BX$33)),SUM($BU$42:BU184)/$BV$40)) -> 0.0367269557 | BW184: 0.05706987743 | BX184: =IF($BY$12<3,BV184,SUM($BZ$42:BZ184)/$BX$40) -> 0.0367269557 | BY184: 14.2 | BZ184: 0.004019005453 | CA184: 26 | CC184: =IF(CB184="",NA(),COUNTIF(CB184:$CB$704,CB184)) ->  | CF184: 99 | CG184: 0 | CH184: 0
AM185: 0.3020954616 | AN185: 0.5436088182 | AO185: 39.6 | AP185: 39.34894674 | AQ185: 0.009472180151 | AR185: 0.33386961 | AS185: 0.4401226826 | AT185: 41.4 | AU185: 41.44760701 | AV185: 0.008003930275 | AW185: 0.692150671 | AX185: 0.7083092369 | AY185: 60 | AZ185: 60.07715927 | BA185: 0.01246855615 | BB185: 0.2382131256 | BC185: 0.3529337533 | BD185: 35.7 | BE185: 35.32095711 | BF185: 0.005452079332 | BU185: 0 | BV185: =IF($BY$12=1,NORMDIST(BY185,$Y$6,$Y$8,TRUE),IF($BY$12=2,IF(BY185<=$BX$31,0,IF(BY185>=$BX$32,1,(BY185-$BX$31)*$BX$33)),SUM($BU$42:BU185)/$BV$40)) -> 0.03713065844 | BW185: 0.05798773424 | BX185: =IF($BY$12<3,BV185,SUM($BZ$42:BZ185)/$BX$40) -> 0.03713065844 | BY185: 14.3 | BZ185: 0.00405508631 | CA185: 26 | CC185: =IF(CB185="",NA(),COUNTIF(CB185:$CB$704,CB185)) ->  | CF185: 99 | CG185: 0 | CH185: 0
AM186: 0.2489467449 | AN186: 0.68579394 | AO186: 36.4 | AP186: 36.21510006 | AQ186: 0.01085587488 | AR186: 0.5476070084 | AS186: 0.2025688775 | AT186: 52.3 | AU186: 52.20827915 | AV186: 0.004014033747 | AW186: 0.5771592744 | AX186: 0.2467653491 | AY186: 53.8 | AZ186: 53.99855251 | BA186: 0.004834206862 | BB186: 0.1209571101 | BC186: 0.6732138582 | BD186: 26.5 | BE186: 26.33335412 | BF186: 0.006733396796 | BU186: 0 | BV186: =IF($BY$12=1,NORMDIST(BY186,$Y$6,$Y$8,TRUE),IF($BY$12=2,IF(BY186<=$BX$31,0,IF(BY186>=$BX$32,1,(BY186-$BX$31)*$BX$33)),SUM($BU$42:BU186)/$BV$40)) -> 0.03753798035 | BW186: 0.05891599871 | BX186: =IF($BY$12<3,BV186,SUM($BZ$42:BZ186)/$BX$40) -> 0.03753798035 | BY186: 14.4 | BZ186: 0.0040913888 | CA186: 26 | CC186: =IF(CB186="",NA(),COUNTIF(CB186:$CB$704,CB186)) ->  | CF186: 99 | CG186: 0 | CH186: 0
AM187: 0.3151000626 | AN187: 0.7226860262 | AO187: 40.3 | AP187: 40.4573719 | AQ187: 0.01281596367 | AR187: 0.4082791544 | AS187: 0.8521260209 | AT187: 45.3 | AU187: 45.08701985 | AV187: 0.0165345333 | AW187: 0.6985525079 | AX187: 0.1602541246 | AY187: 60.4 | AZ187: 60.22882373 | BA187: 0.002792368127 | BB187: 0.3333541192 | BC187: 0.5257179029 | BD187: 41.3 | BE187: 41.66361865 | BF187: 0.009539885239 | BU187: 0 | BV187: =IF($BY$12=1,NORMDIST(BY187,$Y$6,$Y$8,TRUE),IF($BY$12=2,IF(BY187<=$BX$31,0,IF(BY187>=$BX$32,1,(BY187-$BX$31)*$BX$33)),SUM($BU$42:BU187)/$BV$40)) -> 0.03794894359 | BW187: 0.05985473969 | BX187: =IF($BY$12<3,BV187,SUM($BZ$42:BZ187)/$BX$40) -> 0.03794894359 | BY187: 14.5 | BZ187: 0.004127913082 | CA187: 26 | CC187: =IF(CB187="",NA(),COUNTIF(CB187:$CB$704,CB187)) ->  | CF187: 99 | CG187: 0 | CH187: 0
AM188: 0.6573718973 | AN188: 0.5183388032 | AO188: 58.1 | AP188: 58.37042358 | AQ188: 0.009525246328 | AR188: 0.2870198525 | AS188: 0.2567464598 | AT188: 38.7 | AU188: 39.13522719 | AV188: 0.004365818794 | AW188: 0.3288237341 | AX188: 0.6154568531 | AY188: 41.1 | AZ188: 41.13155823 | BA188: 0.01111929109 | BB188: 0.8636186458 | BC188: 0.6852128096 | BD188: 71.9 | BE188: 71.40369138 | BF188: 0.007504825054 | BU188: 0 | BV188: =IF($BY$12=1,NORMDIST(BY188,$Y$6,$Y$8,TRUE),IF($BY$12=2,IF(BY188<=$BX$31,0,IF(BY188>=$BX$32,1,(BY188-$BX$31)*$BX$33)),SUM($BU$42:BU188)/$BV$40)) -> 0.03836357036 | BW188: 0.06080402582 | BX188: =IF($BY$12<3,BV188,SUM($BZ$42:BZ188)/$BX$40) -> 0.03836357036 | BY188: 14.6 | BZ188: 0.004164659303 | CA188: 26 | CC188: =IF(CB188="",NA(),COUNTIF(CB188:$CB$704,CB188)) ->  | CF188: 99 | CG188: 0 | CH188: 0
AM189: 0.77042358 | AN189: 0.8151171543 | AO189: 64.8 | AP189: 64.43922711 | AQ189: 0.01236489048 | AR189: 0.9352271892 | AS189: 0.05008383468 | AT189: 80.3 | AU189: 80.7978692 | AV189: 0.0003170851238 | AW189: 0.5315582342 | AX189: 0.2527028956 | AY189: 51.5 | AZ189: 51.24065684 | BA189: 0.005026536438 | BB189: 0.003691378981 | BC189: 0.8377966769 | BU189: 0 | BV189: =IF($BY$12=1,NORMDIST(BY189,$Y$6,$Y$8,TRUE),IF($BY$12=2,IF(BY189<=$BX$31,0,IF(BY189>=$BX$32,1,(BY189-$BX$31)*$BX$33)),SUM($BU$42:BU189)/$BV$40)) -> 0.03878188286 | BW189: 0.06176392561 | BX189: =IF($BY$12<3,BV189,SUM($BZ$42:BZ189)/$BX$40) -> 0.03878188286 | BY189: 14.7 | BZ189: 0.004201627592 | CA189: 26 | CC189: =IF(CB189="",NA(),COUNTIF(CB189:$CB$704,CB189)) ->  | CF189: 99 | CG189: 0 | CH189: 0
AM190: 0.1392271109 | AN190: 0.9188777842 | AO190: 28.3 | AP190: 28.58703879 | AQ190: 0.01017434971 | AR190: 0.9978691973 | AS190: 0.9450917132 | AW190: 0.2406568415 | AX190: 0.5440019108 | AY190: 35.9 | AZ190: 35.58037989 | BA190: 0.008463556308 | BB190: 0.6603964306 | BC190: 0.8915677257 | BD190: 58.2 | BE190: 58.54726262 | BF190: 0.01635053463 | BU190: 0 | BV190: =IF($BY$12=1,NORMDIST(BY190,$Y$6,$Y$8,TRUE),IF($BY$12=2,IF(BY190<=$BX$31,0,IF(BY190>=$BX$32,1,(BY190-$BX$31)*$BX$33)),SUM($BU$42:BU190)/$BV$40)) -> 0.03920390329 | BW190: 0.06273450737 | BX190: =IF($BY$12<3,BV190,SUM($BZ$42:BZ190)/$BX$40) -> 0.03920390329 | BY190: 14.8 | BZ190: 0.004238818065 | CA190: 26 | CC190: =IF(CB190="",NA(),COUNTIF(CB190:$CB$704,CB190)) ->  | CF190: 99 | CG190: 0 | CH190: 0
AM191: 0.7870387919 | AN191: 0.1507514454 | AO191: 65.9 | AP191: 65.81419317 | AQ191: 0.002192295388 | AR191: 0.4183910824 | AS191: 0.263442535 | AT191: 45.8 | AU191: 46.07428651 | AV191: 0.005140315474 | AW191: 0.1803798862 | AX191: 0.2067401446 | AY191: 31.7 | AZ191: 31.33402395 | BA191: 0.002713337313 | BB191: 0.8472626247 | BC191: 0.2609260567 | BD191: 70.4 | BE191: 70.85857135 | BF191: 0.003093695257 | BU191: 0 | BV191: =IF($BY$12=1,NORMDIST(BY191,$Y$6,$Y$8,TRUE),IF($BY$12=2,IF(BY191<=$BX$31,0,IF(BY191>=$BX$32,1,(BY191-$BX$31)*$BX$33)),SUM($BU$42:BU191)/$BV$40)) -> 0.03962965388 | BW191: 0.06371583923 | BX191: =IF($BY$12<3,BV191,SUM($BZ$42:BZ191)/$BX$40) -> 0.03962965388 | BY191: 14.9 | BZ191: 0.004276230821 | CA191: 26 | CC191: =IF(CB191="",NA(),COUNTIF(CB191:$CB$704,CB191)) ->  | CF191: 99 | CG191: 0 | CH191: 0
AM192: 0.414193172 | AN192: 0.1045892276 | AO192: 45.6 | AP192: 45.7355298 | AQ192: 0.002036371918 | AR192: 0.7742865123 | AS192: 0.1885793693 | AT192: 65 | AU192: 64.64489547 | AV192: 0.002839415352 | AW192: 0.1340239532 | AX192: 0.2746032812 | AY192: 27.8 | AZ192: 27.68154395 | BA192: 0.002958275909 | BB192: 0.9585713483 | BC192: 0.9448207207 | BD192: 84.6 | BE192: 84.58969347 | BU192: 0 | BV192: =IF($BY$12=1,NORMDIST(BY192,$Y$6,$Y$8,TRUE),IF($BY$12=2,IF(BY192<=$BX$31,0,IF(BY192>=$BX$32,1,(BY192-$BX$31)*$BX$33)),SUM($BU$42:BU192)/$BV$40)) -> 0.04005915686 | BW192: 0.06470798912 | BX192: =IF($BY$12<3,BV192,SUM($BZ$42:BZ192)/$BX$40) -> 0.04005915686 | BY192: 15 | BZ192: 0.004313865941 | CA192: 26 | CC192: =IF(CB192="",NA(),COUNTIF(CB192:$CB$704,CB192)) ->  | CF192: 99 | CG192: 0 | CH192: 0
AM193: 0.635529805 | AN193: 0.3116354086 | AO193: 56.9 | AP193: 56.53676532 | AQ193: 0.005857076776 | AR193: 0.1448954679 | AS193: 0.562712986 | AT193: 28.8 | AU193: 28.47549116 | AV193: 0.006400005805 | AW193: 0.381543953 | AX193: 0.4897883572 | AY193: 43.9 | AZ193: 44.338933 | BA193: 0.009325849559 | BB193: 0.4896934666 | BC193: 0.03175460175 | BD193: 49.4 | BE193: 49.3302778 | BF193: 0.0006331276901 | BU193: 0 | BV193: =IF($BY$12=1,NORMDIST(BY193,$Y$6,$Y$8,TRUE),IF($BY$12=2,IF(BY193<=$BX$31,0,IF(BY193>=$BX$32,1,(BY193-$BX$31)*$BX$33)),SUM($BU$42:BU193)/$BV$40)) -> 0.04049243448 | BW193: 0.06571102476 | BX193: =IF($BY$12<3,BV193,SUM($BZ$42:BZ193)/$BX$40) -> 0.04049243448 | BY193: 15.1 | BZ193: 0.004351723494 | CA193: 26 | CC193: =IF(CB193="",NA(),COUNTIF(CB193:$CB$704,CB193)) ->  | CF193: 99 | CG193: 0 | CH193: 0
AM194: 0.1367653199 | AN194: 0.9764893688 | AO194: 28.1 | AP194: 27.9826233 | AR194: 0.1754911579 | AS194: 0.8605767377 | AT194: 31.3 | AU194: 31.3642185 | AV194: 0.01108751259 | AW194: 0.9389330037 | AX194: 0.2430672385 | AY194: 80.9 | AZ194: 80.94467263 | BA194: 0.001469841835 | BB194: 0.4302777983 | BC194: 0.576859612 | BD194: 46.4 | BE194: 46.51935366 | BF194: 0.01132177795 | BU194: 0 | BV194: =IF($BY$12=1,NORMDIST(BY194,$Y$6,$Y$8,TRUE),IF($BY$12=2,IF(BY194<=$BX$31,0,IF(BY194>=$BX$32,1,(BY194-$BX$31)*$BX$33)),SUM($BU$42:BU194)/$BV$40)) -> 0.04092950898 | BW194: 0.06672501366 | BX194: =IF($BY$12<3,BV194,SUM($BZ$42:BZ194)/$BX$40) -> 0.04092950898 | BY194: 15.2 | BZ194: 0.004389803531 | CA194: 26 | CC194: =IF(CB194="",NA(),COUNTIF(CB194:$CB$704,CB194)) ->  | CF194: 99 | CG194: 0 | CH194: 0
AM195: 0.3826233037 | AN195: 0.01091906801 | AO195: 44 | AP195: 44.3220345 | AQ195: 0.0002082199747 | AR195: 0.564218495 | AS195: 0.2852517553 | AT195: 53.2 | AU195: 52.96094664 | AV195: 0.005617582074 | AW195: 0.544672627 | AX195: 0.3507641591 | AY195: 52.2 | AZ195: 51.85106576 | BA195: 0.006954530234 | BB195: 0.6193536557 | BC195: 0.6088546999 | BD195: 56 | BE195: 56.41390995 | BF195: 0.0116104882 | BU195: 0 | BV195: =IF($BY$12=1,NORMDIST(BY195,$Y$6,$Y$8,TRUE),IF($BY$12=2,IF(BY195<=$BX$31,0,IF(BY195>=$BX$32,1,(BY195-$BX$31)*$BX$33)),SUM($BU$42:BU195)/$BV$40)) -> 0.04137040261 | BW195: 0.06775002309 | BX195: =IF($BY$12<3,BV195,SUM($BZ$42:BZ195)/$BX$40) -> 0.04137040261 | BY195: 15.3 | BZ195: 0.004428106085 | CA195: 26 | CC195: =IF(CB195="",NA(),COUNTIF(CB195:$CB$704,CB195)) ->  | CF195: 99 | CG195: 0 | CH195: =IF(CB195="",0,1) -> 0
AM196: 0.8220344968 | AN196: 0.6545885839 | AO196: 68.4 | AP196: 68.2482198 | AQ196: 0.008551751496 | AR196: 0.2609466352 | AS196: 0.7438749559 | AT196: 37.1 | AU196: 36.82959808 | AV196: 0.01205150615 | AW196: 0.1510657556 | AX196: 0.5202098228 | AY196: 29.3 | AZ196: 29.79076505 | BA196: 0.006073584323 | BB196: 0.9139099456 | BC196: 0.3371991701 | BD196: 77.3 | BE196: 76.88501333 | BF196: 0.002649551707 | BU196: 0 | BV196: =IF($BY$12=1,NORMDIST(BY196,$Y$6,$Y$8,TRUE),IF($BY$12=2,IF(BY196<=$BX$31,0,IF(BY196>=$BX$32,1,(BY196-$BX$31)*$BX$33)),SUM($BU$42:BU196)/$BV$40)) -> 0.04181513761 | BW196: 0.06878612009 | BX196: =IF($BY$12<3,BV196,SUM($BZ$42:BZ196)/$BX$40) -> 0.04181513761 | BY196: 15.4 | BZ196: 0.004466631174 | CA196: 26 | CC196: =IF(CB196="",NA(),COUNTIF(CB196:$CB$704,CB196)) ->  | CF196: 99 | CG196: 0 | CH196: 0
AM197: 0.3482198007 | AN197: 0.5342622139 | AO197: 42.1 | AP197: 41.6839686 | AQ197: 0.009857212777 | AR197: 0.2295980789 | AS197: 0.7735423632 | AT197: 35.1 | AU197: 35.28801684 | AV197: 0.01169074064 | AW197: 0.9907650538 | AX197: 0.4177345671 | AY197: 97.1 | AZ197: 96.70130905 | BA197: 0.0005205667886 | BB197: 0.08501333371 | BC197: 0.4422538169 | BD197: 22.5 | BE197: 22.91802797 | BF197: 0.003427738303 | BU197: 0 | BV197: =IF($BY$12=1,NORMDIST(BY197,$Y$6,$Y$8,TRUE),IF($BY$12=2,IF(BY197<=$BX$31,0,IF(BY197>=$BX$32,1,(BY197-$BX$31)*$BX$33)),SUM($BU$42:BU197)/$BV$40)) -> 0.04226373626 | BW197: 0.06983337142 | BX197: =IF($BY$12<3,BV197,SUM($BZ$42:BZ197)/$BX$40) -> 0.04226373626 | BY197: 15.5 | BZ197: 0.004505378802 | CA197: 26 | CC197: =IF(CB197="",NA(),COUNTIF(CB197:$CB$704,CB197)) ->  | CF197: 99 | CG197: 0 | CH197: 0
AM198: 0.0839685984 | AN198: 0.07554763928 | AO198: 22.4 | AP198: 22.27492489 | AQ198: 0.0005815214818 | AR198: 0.6880168356 | AS198: 0.3002202399 | AT198: 59.8 | AU198: 59.60193815 | AV198: 0.005311081738 | AW198: 0.1013090499 | AX198: 0.8157630898 | AY198: 24.5 | AZ198: 24.50297858 | BA198: 0.007218453079 | BB198: 0.9180279709 | BC198: 0.6437623687 | BD198: 77.8 | BE198: 77.35599928 | BF198: 0.004887147786 | BU198: 0 | BV198: =IF($BY$12=1,NORMDIST(BY198,$Y$6,$Y$8,TRUE),IF($BY$12=2,IF(BY198<=$BX$31,0,IF(BY198>=$BX$32,1,(BY198-$BX$31)*$BX$33)),SUM($BU$42:BU198)/$BV$40)) -> 0.04271622079 | BW198: 0.07089184363 | BX198: =IF($BY$12<3,BV198,SUM($BZ$42:BZ198)/$BX$40) -> 0.04271622079 | BY198: 15.6 | BZ198: 0.004544348951 | CA198: 26 | CC198: =IF(CB198="",NA(),COUNTIF(CB198:$CB$704,CB198)) ->  | CF198: 99 | CG198: 0 | CH198: 0
AM199: 0.374924887 | AN199: 0.7437406518 | AO199: 43.6 | AP199: 43.28619372 | AQ199: 0.01409502053 | AR199: 0.3019381501 | AS199: 0.4259765334 | AT199: 39.6 | AU199: 39.97212229 | AV199: 0.007422481626 | AW199: 0.5029785819 | AX199: 0.3580732383 | AY199: 50.1 | AZ199: 49.63778606 | BA199: 0.007142438431 | BB199: 0.05599928275 | BC199: 0.5554657467 | BD199: 18.2 | BE199: 18.38776432 | BF199: 0.003130166313 | BU199: 0 | BV199: =IF($BY$12=1,NORMDIST(BY199,$Y$6,$Y$8,TRUE),IF($BY$12=2,IF(BY199<=$BX$31,0,IF(BY199>=$BX$32,1,(BY199-$BX$31)*$BX$33)),SUM($BU$42:BU199)/$BV$40)) -> 0.04317261346 | BW199: 0.07196160296 | BX199: =IF($BY$12<3,BV199,SUM($BZ$42:BZ199)/$BX$40) -> 0.04317261346 | BY199: 15.7 | BZ199: 0.00458354159 | CA199: 26 | CC199: =IF(CB199="",NA(),COUNTIF(CB199:$CB$704,CB199)) ->  | CF199: 99 | CG199: 0 | CH199: 0
AM200: 0.1861937232 | AN200: 0.6528339423 | AO200: 32.1 | AP200: 32.51008048 | AQ200: 0.008724537783 | AR200: 0.8721222915 | AS200: 0.2523451336 | AT200: 72.7 | AU200: 72.8162149 | AV200: 0.002643263747 | AW200: 0.03778605536 | AX200: 0.04478136078 | AY200: 14.4 | AZ200: 14.08991001 | BA200: 0.0001832179579 | BB200: 0.6877643205 | BC200: 0.1461616345 | BD200: 59.7 | BE200: 59.44485118 | BF200: 0.002592000025 | BU200: 0 | BV200: =IF($BY$12=1,NORMDIST(BY200,$Y$6,$Y$8,TRUE),IF($BY$12=2,IF(BY200<=$BX$31,0,IF(BY200>=$BX$32,1,(BY200-$BX$31)*$BX$33)),SUM($BU$42:BU200)/$BV$40)) -> 0.04363293652 | BW200: 0.07304271538 | BX200: =IF($BY$12<3,BV200,SUM($BZ$42:BZ200)/$BX$40) -> 0.04363293652 | BY200: 15.8 | BZ200: 0.00462295667 | CA200: 26 | CC200: =IF(CB200="",NA(),COUNTIF(CB200:$CB$704,CB200)) ->  | CF200: 99 | CG200: 0 | CH200: 0
... 362 more rows
